BODY,BODY NAME,DATE,TRANSACTION NUMBER,THEIR REF,CATEGORY,AMOUNT,SUPPLIER NAME,SUPPLIER ID,EXPENSE AREA,EXPENSE TYPE,EXPENSE CODE
http://statistics.data.gov.uk/id/local-authority/12UE,Huntingdonshire District Council,20/11/2014,159276,B660/S50/LICENC,5,450,Cambridgeshire County Council,CR416949,Watercourses,Sitework,359
http://statistics.data.gov.uk/id/local-authority/12UE,Huntingdonshire District Council,04/12/2014,159714,26374/4663,5,694.66,J Breheny Contractors Ltd,CR000314,Watercourses,Sitework,359
http://statistics.data.gov.uk/id/local-authority/12UE,Huntingdonshire District Council,04/12/2014,159868,26372/4663/JC,5,"6,197.95",J Breheny Contractors Ltd,CR000314,Watercourses,Sitework,359
http://statistics.data.gov.uk/id/local-authority/12UE,Huntingdonshire District Council,16/10/2014,156006,26150/4663,5,"1,080.00",J Breheny Contractors Ltd,CR000314,Watercourses,Sitework,359
http://statistics.data.gov.uk/id/local-authority/12UE,Huntingdonshire District Council,16/10/2014,156023,26144/4663,5,"47,808.40",J Breheny Contractors Ltd,CR000314,Watercourses,Sitework,359
http://statistics.data.gov.uk/id/local-authority/12UE,Huntingdonshire District Council,02/10/2014,155261,8012,5,360,Adc East Anglia Limited,CR410308,Watercourses,Sitework,359
http://statistics.data.gov.uk/id/local-authority/12UE,Huntingdonshire District Council,18/12/2014,160530,4534,5,"3,600.00",Lattenbury Services,CR406847,Watercourses,Drains & Sewers,321
http://statistics.data.gov.uk/id/local-authority/12UE,Huntingdonshire District Council,18/12/2014,160267,4518,5,"6,636.00",Lattenbury Services,CR406847,Watercourses,Sitework,359
http://statistics.data.gov.uk/id/local-authority/12UE,Huntingdonshire District Council,23/10/2014,156394,4264,5,600,Lattenbury Services,CR406847,Watercourses,Drains & Sewers,321
http://statistics.data.gov.uk/id/local-authority/12UE,Huntingdonshire District Council,09/10/2014,155849,4228,5,"3,564.00",Lattenbury Services,CR406847,Watercourses,Sitework,359
http://statistics.data.gov.uk/id/local-authority/12UE,Huntingdonshire District Council,02/10/2014,155429,248631,5,"192,318.00",Dennis Eagle Ltd,CR000200,Vehicles & Plant Capital,Vehicles Purchased,600
http://statistics.data.gov.uk/id/local-authority/12UE,Huntingdonshire District Council,09/10/2014,156882,248628,5,"192,318.00",Dennis Eagle Ltd,CR000200,Vehicles & Plant Capital,Vehicles Purchased,600
http://statistics.data.gov.uk/id/local-authority/12UE,Huntingdonshire District Council,30/10/2014,157595,299,5,"12,500.00",Hact,CR455657,Transportation Mgt,Grants (Paid Out),800
http://statistics.data.gov.uk/id/local-authority/12UE,Huntingdonshire District Council,16/10/2014,155995,26154/4663,5,817.31,J Breheny Contractors Ltd,CR000314,Transport Schemes,Consultants,711
http://statistics.data.gov.uk/id/local-authority/12UE,Huntingdonshire District Council,04/12/2014,159326,10565094,5,"1,633.05",Cambridgeshire County Council,CR006678,Trade Refuse,Waste Disposal,763
http://statistics.data.gov.uk/id/local-authority/12UE,Huntingdonshire District Council,06/11/2014,158155,10559597,5,"2,093.80",Cambridgeshire County Council,CR006678,Trade Refuse,Waste Disposal,763
http://statistics.data.gov.uk/id/local-authority/12UE,Huntingdonshire District Council,09/10/2014,156150,10553051,5,"1,822.10",Cambridgeshire County Council,CR006678,Trade Refuse,Waste Disposal,763
http://statistics.data.gov.uk/id/local-authority/12UE,Huntingdonshire District Council,18/12/2014,161138,102967,5,"1,102.50",Lavat,CR480410,Trade Refuse,Consultants,711
http://statistics.data.gov.uk/id/local-authority/12UE,Huntingdonshire District Council,23/10/2014,156987,JBC/26189/4662,5,"2,609.87",J Breheny Contractors Ltd,CR000314,Street Naming,Signs,565
http://statistics.data.gov.uk/id/local-authority/12UE,Huntingdonshire District Council,23/10/2014,156989,JBC/26188/4662,5,"3,572.95",J Breheny Contractors Ltd,CR000314,Street Naming,Signs Erecting & Removal,361
http://statistics.data.gov.uk/id/local-authority/12UE,Huntingdonshire District Council,23/10/2014,157715,INV152289,5,307.2,Broxap Ltd,CR415958,Street Cleaning,Litter Bins,520
http://statistics.data.gov.uk/id/local-authority/12UE,Huntingdonshire District Council,27/11/2014,158951,INV: 31-10-14,5,650,R M Home Maintenance,CR455901,Street Cleaning,Waste Disposal,763
http://statistics.data.gov.uk/id/local-authority/12UE,Huntingdonshire District Council,18/12/2014,160940,IN0414151,5,416.98,Staffline Group,CR416827,Street Cleaning,Hired Staff,100
http://statistics.data.gov.uk/id/local-authority/12UE,Huntingdonshire District Council,18/12/2014,160941,IN0414150,5,489.16,Staffline Group,CR416827,Street Cleaning,Hired Staff,100
http://statistics.data.gov.uk/id/local-authority/12UE,Huntingdonshire District Council,18/12/2014,160936,IN0412781,5,647.75,Staffline Group,CR416827,Street Cleaning,Hired Staff,100
http://statistics.data.gov.uk/id/local-authority/12UE,Huntingdonshire District Council,18/12/2014,160955,IN0411699,5,749.64,Staffline Group,CR416827,Street Cleaning,Hired Staff,100
http://statistics.data.gov.uk/id/local-authority/12UE,Huntingdonshire District Council,18/12/2014,160954,IN0411698,5,545.86,Staffline Group,CR416827,Street Cleaning,Hired Staff,100
http://statistics.data.gov.uk/id/local-authority/12UE,Huntingdonshire District Council,11/12/2014,160244,IN0410920,5,"1,404.66",Staffline Group,CR416827,Street Cleaning,Hired Staff,100
http://statistics.data.gov.uk/id/local-authority/12UE,Huntingdonshire District Council,04/12/2014,159830,IN04101118,5,"1,295.50",Staffline Group,CR416827,Street Cleaning,Hired Staff,100
http://statistics.data.gov.uk/id/local-authority/12UE,Huntingdonshire District Council,27/11/2014,159398,IN0408806,5,538.57,Staffline Group,CR416827,Street Cleaning,Hired Staff,100
http://statistics.data.gov.uk/id/local-authority/12UE,Huntingdonshire District Council,20/11/2014,158465,IN0407505,5,975.25,Staffline Group,CR416827,Street Cleaning,Hired Staff,100
http://statistics.data.gov.uk/id/local-authority/12UE,Huntingdonshire District Council,13/11/2014,158466,IN0406413,5,"1,615.72",Staffline Group,CR416827,Street Cleaning,Hired Staff,100
http://statistics.data.gov.uk/id/local-authority/12UE,Huntingdonshire District Council,06/11/2014,157757,IN0405249,5,"1,670.74",Staffline Group,CR416827,Street Cleaning,Hired Staff,100
http://statistics.data.gov.uk/id/local-authority/12UE,Huntingdonshire District Council,30/10/2014,157345,IN0403920,5,327.52,Staffline Group,CR416827,Street Cleaning,Hired Staff,100
http://statistics.data.gov.uk/id/local-authority/12UE,Huntingdonshire District Council,30/10/2014,157343,IN0403919,5,"1,615.73",Staffline Group,CR416827,Street Cleaning,Hired Staff,100
http://statistics.data.gov.uk/id/local-authority/12UE,Huntingdonshire District Council,23/10/2014,156896,IN0402853,5,320.24,Staffline Group,CR416827,Street Cleaning,Hired Staff,100
http://statistics.data.gov.uk/id/local-authority/12UE,Huntingdonshire District Council,23/10/2014,156895,IN0402852,5,"1,732.18",Staffline Group,CR416827,Street Cleaning,Hired Staff,100
http://statistics.data.gov.uk/id/local-authority/12UE,Huntingdonshire District Council,16/10/2014,156420,IN0402309,5,"2,154.29",Staffline Group,CR416827,Street Cleaning,Hired Staff,100
http://statistics.data.gov.uk/id/local-authority/12UE,Huntingdonshire District Council,09/10/2014,156426,IN0400885,5,583.48,Staffline Group,CR416827,Street Cleaning,Hired Staff,100
http://statistics.data.gov.uk/id/local-authority/12UE,Huntingdonshire District Council,09/10/2014,156427,IN0400884,5,"1,991.74",Staffline Group,CR416827,Street Cleaning,Hired Staff,100
http://statistics.data.gov.uk/id/local-authority/12UE,Huntingdonshire District Council,02/10/2014,155719,IN0399718,5,"1,068.66",Staffline Group,CR416827,Street Cleaning,Hired Staff,100
http://statistics.data.gov.uk/id/local-authority/12UE,Huntingdonshire District Council,02/10/2014,155718,IN0399717,5,"1,506.55",Staffline Group,CR416827,Street Cleaning,Hired Staff,100
http://statistics.data.gov.uk/id/local-authority/12UE,Huntingdonshire District Council,09/10/2014,156953,IN0392321,5,"1,020.16",Staffline Group,CR416827,Street Cleaning,Hired Staff,100
http://statistics.data.gov.uk/id/local-authority/12UE,Huntingdonshire District Council,09/10/2014,156954,IN0392320,5,"1,437.40",Staffline Group,CR416827,Street Cleaning,Hired Staff,100
http://statistics.data.gov.uk/id/local-authority/12UE,Huntingdonshire District Council,18/12/2014,160225,B/IN208653,5,480,Trevor Iles Ltd,CR40014,Street Cleaning,Litter Bins,520
http://statistics.data.gov.uk/id/local-authority/12UE,Huntingdonshire District Council,16/10/2014,156924,26142/4663/JC,5,524.34,J Breheny Contractors Ltd,CR000314,Street Cleaning,Litter Bins,520
http://statistics.data.gov.uk/id/local-authority/12UE,Huntingdonshire District Council,18/12/2014,160547,252372I,5,89.1,A C Commercials,CR000141,Street Cleaning,Vehicle Parts & Fittings,625
http://statistics.data.gov.uk/id/local-authority/12UE,Huntingdonshire District Council,18/12/2014,160548,251969I,5,512.09,A C Commercials,CR000141,Street Cleaning,Vehicle Oil & Lubricants,626
http://statistics.data.gov.uk/id/local-authority/12UE,Huntingdonshire District Council,23/10/2014,156976,250716I,5,302.58,A C Commercials,CR000141,Street Cleaning,Vehicle Parts & Fittings,625
http://statistics.data.gov.uk/id/local-authority/12UE,Huntingdonshire District Council,11/12/2014,159847,1147229796,5,2.6,Orange Airtime,CR455799,Street Cleaning,Mobile Telephones & Radios,241
http://statistics.data.gov.uk/id/local-authority/12UE,Huntingdonshire District Council,06/11/2014,157774,84005625,5,"1,549.81",Chassis-Cab Ltd,CR422248,Street Cleaning,Vehicle Maintenance External,619
http://statistics.data.gov.uk/id/local-authority/12UE,Huntingdonshire District Council,18/12/2014,160578,80015540,5,440.63,Chassis-Cab Ltd,CR422248,Street Cleaning,Vehicle Parts & Fittings,625
http://statistics.data.gov.uk/id/local-authority/12UE,Huntingdonshire District Council,18/12/2014,160581,80015485,5,565.18,Chassis-Cab Ltd,CR422248,Street Cleaning,Vehicle Parts & Fittings,625
http://statistics.data.gov.uk/id/local-authority/12UE,Huntingdonshire District Council,18/12/2014,160580,80015464,5,324.76,Chassis-Cab Ltd,CR422248,Street Cleaning,Vehicle Parts & Fittings,625
http://statistics.data.gov.uk/id/local-authority/12UE,Huntingdonshire District Council,04/12/2014,158897,80013882,5,320.56,Chassis-Cab Ltd,CR422248,Street Cleaning,Vehicle Parts & Fittings,625
http://statistics.data.gov.uk/id/local-authority/12UE,Huntingdonshire District Council,04/12/2014,158892,80013850,5,440.72,Chassis-Cab Ltd,CR422248,Street Cleaning,Vehicle Parts & Fittings,625
http://statistics.data.gov.uk/id/local-authority/12UE,Huntingdonshire District Council,18/12/2014,160641,61216911,5,404.11,Johnston Engineering Ltd,CR029831,Street Cleaning,Vehicle Parts & Fittings,625
http://statistics.data.gov.uk/id/local-authority/12UE,Huntingdonshire District Council,18/12/2014,160639,61216152,5,253.32,Johnston Engineering Ltd,CR029831,Street Cleaning,Vehicle Parts & Fittings,625
http://statistics.data.gov.uk/id/local-authority/12UE,Huntingdonshire District Council,20/11/2014,158533,61202766,5,503.28,Johnston Engineering Ltd,CR029831,Street Cleaning,Vehicle Parts & Fittings,625
http://statistics.data.gov.uk/id/local-authority/12UE,Huntingdonshire District Council,13/11/2014,158114,61200107,5,495.72,Johnston Engineering Ltd,CR029831,Street Cleaning,Vehicle Parts & Fittings,625
http://statistics.data.gov.uk/id/local-authority/12UE,Huntingdonshire District Council,06/11/2014,158118,61198090,5,432.26,Johnston Engineering Ltd,CR029831,Street Cleaning,Vehicle Parts & Fittings,625
http://statistics.data.gov.uk/id/local-authority/12UE,Huntingdonshire District Council,09/10/2014,155714,61188378,5,430.68,Johnston Engineering Ltd,CR029831,Street Cleaning,Vehicle Parts & Fittings,625
http://statistics.data.gov.uk/id/local-authority/12UE,Huntingdonshire District Council,02/10/2014,155342,61185739,5,337.32,Johnston Engineering Ltd,CR029831,Street Cleaning,Vehicle Parts & Fittings,625
http://statistics.data.gov.uk/id/local-authority/12UE,Huntingdonshire District Council,02/10/2014,155342,61185739,5,674.64,Johnston Engineering Ltd,CR029831,Street Cleaning,Vehicle Parts & Fittings,625
http://statistics.data.gov.uk/id/local-authority/12UE,Huntingdonshire District Council,18/12/2014,160635,58346839,5,512.96,Marshall Motor Group,CR009641,Street Cleaning,Vehicle Parts & Fittings,625
http://statistics.data.gov.uk/id/local-authority/12UE,Huntingdonshire District Council,09/10/2014,155797,58341647,5,285.72,Marshall Motor Group,CR009641,Street Cleaning,Vehicle Parts & Fittings,625
http://statistics.data.gov.uk/id/local-authority/12UE,Huntingdonshire District Council,18/12/2014,160219,675333,5,"5,895.72",Glasdon Uk Ltd,CR002827,Street Cleaning,Litter Bins,520
http://statistics.data.gov.uk/id/local-authority/12UE,Huntingdonshire District Council,18/12/2014,160620,254600,5,66,Autoelec Cambs,CR480035,Street Cleaning,Vehicle Parts & Fittings,625
http://statistics.data.gov.uk/id/local-authority/12UE,Huntingdonshire District Council,06/11/2014,158511,254581,5,182.4,Autoelec Cambs,CR480035,Street Cleaning,Vehicle Maintenance External,619
http://statistics.data.gov.uk/id/local-authority/12UE,Huntingdonshire District Council,20/11/2014,158516,121326,5,292.01,Burley Hydraulics (Cambridgeshire) Limited,CR413726,Street Cleaning,Vehicle Maintenance External,619
http://statistics.data.gov.uk/id/local-authority/12UE,Huntingdonshire District Council,27/11/2014,159302,70012,5,28.92,Bandvulc Truck Tyres,CR406810,Street Cleaning,Tyres,630
http://statistics.data.gov.uk/id/local-authority/12UE,Huntingdonshire District Council,30/10/2014,157065,69197,5,635.52,Bandvulc Truck Tyres,CR406810,Street Cleaning,Tyres,630
http://statistics.data.gov.uk/id/local-authority/12UE,Huntingdonshire District Council,23/10/2014,156975,35816,5,90.78,Trinity Engineering & Component Supplies Ltd,CR455479,Street Cleaning,Vehicle Parts & Fittings,625
http://statistics.data.gov.uk/id/local-authority/12UE,Huntingdonshire District Council,02/10/2014,155376,26809,5,270,Coolair Logan Ltd,CR410942,Street Cleaning,Vehicle Parts & Fittings,625
http://statistics.data.gov.uk/id/local-authority/12UE,Huntingdonshire District Council,20/11/2014,158536,14054,5,389.8,Pristine Condition,CR482653,Street Cleaning,Training - Operational,131
http://statistics.data.gov.uk/id/local-authority/12UE,Huntingdonshire District Council,16/10/2014,156988,9295,5,561.14,Tensid Uk,CR406110,Street Cleaning,Vehicle Oil & Lubricants,626
http://statistics.data.gov.uk/id/local-authority/12UE,Huntingdonshire District Council,11/12/2014,160646,435,5,420,Melanie Best,CR482582,Street Cleaning,Legal Fees,729
http://statistics.data.gov.uk/id/local-authority/12UE,Huntingdonshire District Council,02/10/2014,156602,HUNTDC012,5,"12,300.00",Optevia Uk Ltd,CR455228,Software Capital,Software,206
http://statistics.data.gov.uk/id/local-authority/12UE,Huntingdonshire District Council,23/10/2014,157795,HUNTDC011,5,"6,000.00",Optevia Uk Ltd,CR455228,Software Capital,Software,206
http://statistics.data.gov.uk/id/local-authority/12UE,Huntingdonshire District Council,27/11/2014,158583,FSI-123501,5,681.63,Freedom Communications Uk Ltd,CR478774,Software Capital,Network Hardware,205
http://statistics.data.gov.uk/id/local-authority/12UE,Huntingdonshire District Council,18/12/2014,160991,923469-048B,5,"10,587.60",Virgin Media Business/Cpsn,CR455148,Software Capital,I C T Services,731
http://statistics.data.gov.uk/id/local-authority/12UE,Huntingdonshire District Council,18/12/2014,160991,923469-048B,5,195.44,Virgin Media Business/Cpsn,CR455148,Software Capital,Network Hardware,205
http://statistics.data.gov.uk/id/local-authority/12UE,Huntingdonshire District Council,18/12/2014,159906,4010828571,5,12,Rittal Limited,CR417141,Software Capital,Network Hardware,205
http://statistics.data.gov.uk/id/local-authority/12UE,Huntingdonshire District Council,18/12/2014,159906,4010828571,5,724.1,Rittal Limited,CR417141,Software Capital,Network Hardware,205
http://statistics.data.gov.uk/id/local-authority/12UE,Huntingdonshire District Council,16/10/2014,155798,93873700,5,"7,160.40",Capita Business Services Ltd,CR410639,Software Capital,Software,206
http://statistics.data.gov.uk/id/local-authority/12UE,Huntingdonshire District Council,13/11/2014,571014,X24STUSMITH(Q56,6,"1,882.00",Nhs England,CR422465,S106 Agreements,Contribution (Paid Out),810
http://statistics.data.gov.uk/id/local-authority/12UE,Huntingdonshire District Council,06/11/2014,572152,LT.PAXTON PC,1,"32,522.35",Little Paxton Parish Council,CR002473,S106 Agreements,Contribution (Paid Out),810
http://statistics.data.gov.uk/id/local-authority/12UE,Huntingdonshire District Council,16/10/2014,156385,SINV00220243,5,702,Amalgamated Computer Supplies,CR480830,Revenue Services Mus,Stationery,225
http://statistics.data.gov.uk/id/local-authority/12UE,Huntingdonshire District Council,18/12/2014,161147,IN16PS14008463,5,490,Whistl,CR479965,Revenue Services Mus,Postage,231
http://statistics.data.gov.uk/id/local-authority/12UE,Huntingdonshire District Council,18/12/2014,160726,IN16PS14008284,5,"1,538.36",Whistl,CR479965,Revenue Services Mus,Postage,231
http://statistics.data.gov.uk/id/local-authority/12UE,Huntingdonshire District Council,18/12/2014,160305,IN16PS14008116,5,"2,660.23",Whistl,CR479965,Revenue Services Mus,Postage,231
http://statistics.data.gov.uk/id/local-authority/12UE,Huntingdonshire District Council,11/12/2014,159697,IN16PS14007946,5,941.67,Whistl,CR479965,Revenue Services Mus,Postage,231
http://statistics.data.gov.uk/id/local-authority/12UE,Huntingdonshire District Council,04/12/2014,158815,IN16PS14007757,5,565.08,Whistl,CR479965,Revenue Services Mus,Postage,231
http://statistics.data.gov.uk/id/local-authority/12UE,Huntingdonshire District Council,27/11/2014,158818,IN16PS14007593,5,"1,328.09",Whistl,CR479965,Revenue Services Mus,Postage,231
http://statistics.data.gov.uk/id/local-authority/12UE,Huntingdonshire District Council,20/11/2014,158814,IN16PS14007261,5,841.29,Whistl,CR479965,Revenue Services Mus,Postage,231
http://statistics.data.gov.uk/id/local-authority/12UE,Huntingdonshire District Council,13/11/2014,158158,IN16PS14007242,5,257.24,Whistl,CR479965,Revenue Services Mus,Postage,231
http://statistics.data.gov.uk/id/local-authority/12UE,Huntingdonshire District Council,06/11/2014,157622,IN16PS14007049,5,526.75,Whistl,CR479965,Revenue Services Mus,Postage,231
http://statistics.data.gov.uk/id/local-authority/12UE,Huntingdonshire District Council,30/10/2014,157623,IN16PS14006867,5,843.67,Whistl,CR479965,Revenue Services Mus,Postage,231
http://statistics.data.gov.uk/id/local-authority/12UE,Huntingdonshire District Council,23/10/2014,156521,IN16PS14006666,5,"1,057.85",Whistl,CR479965,Revenue Services Mus,Postage,231
http://statistics.data.gov.uk/id/local-authority/12UE,Huntingdonshire District Council,16/10/2014,156520,IN16PS14006520,5,"3,265.22",Whistl,CR479965,Revenue Services Mus,Postage,231
http://statistics.data.gov.uk/id/local-authority/12UE,Huntingdonshire District Council,16/10/2014,156218,IN16PS14006339,5,499.08,Whistl,CR479965,Revenue Services Mus,Postage,231
http://statistics.data.gov.uk/id/local-authority/12UE,Huntingdonshire District Council,02/10/2014,155675,IN16PS14006127,5,837.33,Whistl,CR479965,Revenue Services Mus,Postage,231
http://statistics.data.gov.uk/id/local-authority/12UE,Huntingdonshire District Council,18/12/2014,160727,9048665738,5,734.98,Royal Mail,CR027083,Revenue Services Mus,Postage,231
http://statistics.data.gov.uk/id/local-authority/12UE,Huntingdonshire District Council,06/11/2014,157621,9048325311,5,889.64,Royal Mail,CR027083,Revenue Services Mus,Postage,231
http://statistics.data.gov.uk/id/local-authority/12UE,Huntingdonshire District Council,23/10/2014,156594,9048226834,5,557.23,Royal Mail,CR027083,Revenue Services Mus,Postage,231
http://statistics.data.gov.uk/id/local-authority/12UE,Huntingdonshire District Council,11/12/2014,159847,1147229796,5,76.9,Orange Airtime,CR455799,Revenue Services Mus,Mobile Telephones & Radios,241
http://statistics.data.gov.uk/id/local-authority/12UE,Huntingdonshire District Council,13/11/2014,157821,1138945952,5,79.2,Orange Airtime,CR455799,Revenue Services Mus,Mobile Telephones & Radios,241
http://statistics.data.gov.uk/id/local-authority/12UE,Huntingdonshire District Council,16/10/2014,156170,1130284308,5,79.2,Orange Airtime,CR455799,Revenue Services Mus,Mobile Telephones & Radios,241
http://statistics.data.gov.uk/id/local-authority/12UE,Huntingdonshire District Council,18/12/2014,160260,91324787,5,360,Northgate Information Solutions Uk Ltd,CR028925,Revenue Services Mus,Software,206
http://statistics.data.gov.uk/id/local-authority/12UE,Huntingdonshire District Council,18/12/2014,160260,91324787,5,"9,000.00",Northgate Information Solutions Uk Ltd,CR028925,Revenue Services Mus,Software,206
http://statistics.data.gov.uk/id/local-authority/12UE,Huntingdonshire District Council,18/12/2014,160260,91324787,5,"1,062.00",Northgate Information Solutions Uk Ltd,CR028925,Revenue Services Mus,Software,206
http://statistics.data.gov.uk/id/local-authority/12UE,Huntingdonshire District Council,20/11/2014,158144,73781946,5,-2.87,Vodafone Limited,CR029120,Revenue Services Mus,Mobile Telephones & Radios,241
http://statistics.data.gov.uk/id/local-authority/12UE,Huntingdonshire District Council,20/11/2014,572843,10564527,5,324,Cambridgeshire County Council,CR006678,Revenue Services Mus,Legal Fees,729
http://statistics.data.gov.uk/id/local-authority/12UE,Huntingdonshire District Council,04/12/2014,160099,3007979,5,"1,175.94",Venn Group Recruitment,CR415403,Revenue Services Mus,Hired Staff,100
http://statistics.data.gov.uk/id/local-authority/12UE,Huntingdonshire District Council,27/11/2014,159739,3005827,5,"1,252.08",Venn Group Recruitment,CR415403,Revenue Services Mus,Hired Staff,100
http://statistics.data.gov.uk/id/local-authority/12UE,Huntingdonshire District Council,13/11/2014,158791,3001421,5,"1,150.56",Venn Group Recruitment,CR415403,Revenue Services Mus,Hired Staff,100
http://statistics.data.gov.uk/id/local-authority/12UE,Huntingdonshire District Council,20/11/2014,159209,2003651,5,"1,252.08",Venn Group Recruitment,CR415403,Revenue Services Mus,Hired Staff,100
http://statistics.data.gov.uk/id/local-authority/12UE,Huntingdonshire District Council,06/11/2014,158431,995793,5,"1,252.08",Venn Group Recruitment,CR415403,Revenue Services Mus,Hired Staff,100
http://statistics.data.gov.uk/id/local-authority/12UE,Huntingdonshire District Council,13/11/2014,157439,991577,5,"1,252.08",Venn Group Recruitment,CR415403,Revenue Services Mus,Hired Staff,100
http://statistics.data.gov.uk/id/local-authority/12UE,Huntingdonshire District Council,16/10/2014,157256,989481,5,"1,446.66",Venn Group Recruitment,CR415403,Revenue Services Mus,Hired Staff,100
http://statistics.data.gov.uk/id/local-authority/12UE,Huntingdonshire District Council,09/10/2014,156815,987295,5,896.76,Venn Group Recruitment,CR415403,Revenue Services Mus,Hired Staff,100
http://statistics.data.gov.uk/id/local-authority/12UE,Huntingdonshire District Council,02/10/2014,156379,985144,5,"1,252.08",Venn Group Recruitment,CR415403,Revenue Services Mus,Hired Staff,100
http://statistics.data.gov.uk/id/local-authority/12UE,Huntingdonshire District Council,16/10/2014,157436,981164,5,"1,252.08",Venn Group Recruitment,CR415403,Revenue Services Mus,Hired Staff,100
http://statistics.data.gov.uk/id/local-authority/12UE,Huntingdonshire District Council,16/10/2014,157434,978954,5,989.82,Venn Group Recruitment,CR415403,Revenue Services Mus,Hired Staff,100
http://statistics.data.gov.uk/id/local-authority/12UE,Huntingdonshire District Council,27/11/2014,158787,596229,5,333.6,Callcredit Ltd,CR455548,Revenue Services Mus,Enquiries,723
http://statistics.data.gov.uk/id/local-authority/12UE,Huntingdonshire District Council,30/10/2014,156814,593142,5,279.6,Callcredit Ltd,CR455548,Revenue Services Mus,Enquiries,723
http://statistics.data.gov.uk/id/local-authority/12UE,Huntingdonshire District Council,11/12/2014,160313,301096,5,"1,252.08",Venn Group Recruitment,CR415403,Revenue Services Mus,Hired Staff,100
http://statistics.data.gov.uk/id/local-authority/12UE,Huntingdonshire District Council,18/12/2014,161099,1114109,5,"5,237.64",Edwards & Blake,CR479434,Restaurant,Catering,710
http://statistics.data.gov.uk/id/local-authority/12UE,Huntingdonshire District Council,18/12/2014,161099,1114109,5,"1,481.82",Edwards & Blake,CR479434,Restaurant,Catering,710
http://statistics.data.gov.uk/id/local-authority/12UE,Huntingdonshire District Council,27/11/2014,159888,1014109,5,"6,513.90",Edwards & Blake,CR479434,Restaurant,Catering,710
http://statistics.data.gov.uk/id/local-authority/12UE,Huntingdonshire District Council,23/10/2014,157749,914109,5,"5,956.79",Edwards & Blake,CR479434,Restaurant,Catering,710
http://statistics.data.gov.uk/id/local-authority/12UE,Huntingdonshire District Council,23/10/2014,157749,914109,5,156,Edwards & Blake,CR479434,Restaurant,Equipment Maintenance,511
http://statistics.data.gov.uk/id/local-authority/12UE,Huntingdonshire District Council,23/10/2014,157724,SIN079332,5,"2,637.18",Imperial Polythene Products Ltd,CR455671,Recycling,Refuse Sacks,552
http://statistics.data.gov.uk/id/local-authority/12UE,Huntingdonshire District Council,23/10/2014,157725,SIN079303,5,"2,637.18",Imperial Polythene Products Ltd,CR455671,Recycling,Refuse Sacks,552
http://statistics.data.gov.uk/id/local-authority/12UE,Huntingdonshire District Council,18/12/2014,160942,IN0414146,5,"1,900.64",Staffline Group,CR416827,Recycling,Hired Staff,100
http://statistics.data.gov.uk/id/local-authority/12UE,Huntingdonshire District Council,18/12/2014,160939,IN0412777,5,"3,291.95",Staffline Group,CR416827,Recycling,Hired Staff,100
http://statistics.data.gov.uk/id/local-authority/12UE,Huntingdonshire District Council,18/12/2014,160950,IN0411694,5,"4,450.90",Staffline Group,CR416827,Recycling,Hired Staff,100
http://statistics.data.gov.uk/id/local-authority/12UE,Huntingdonshire District Council,11/12/2014,160242,IN0410916,5,"2,974.00",Staffline Group,CR416827,Recycling,Hired Staff,100
http://statistics.data.gov.uk/id/local-authority/12UE,Huntingdonshire District Council,04/12/2014,159833,IN0410114,5,"4,178.63",Staffline Group,CR416827,Recycling,Hired Staff,100
http://statistics.data.gov.uk/id/local-authority/12UE,Huntingdonshire District Council,27/11/2014,159396,IN0408802,5,"2,590.81",Staffline Group,CR416827,Recycling,Hired Staff,100
http://statistics.data.gov.uk/id/local-authority/12UE,Huntingdonshire District Council,20/11/2014,158461,IN0407501,5,"3,666.71",Staffline Group,CR416827,Recycling,Hired Staff,100
http://statistics.data.gov.uk/id/local-authority/12UE,Huntingdonshire District Council,13/11/2014,158469,IN0406409,5,"2,991.06",Staffline Group,CR416827,Recycling,Hired Staff,100
http://statistics.data.gov.uk/id/local-authority/12UE,Huntingdonshire District Council,06/11/2014,157760,IN0405245,5,"2,158.60",Staffline Group,CR416827,Recycling,Hired Staff,100
http://statistics.data.gov.uk/id/local-authority/12UE,Huntingdonshire District Council,30/10/2014,157346,IN0403915,5,"2,909.41",Staffline Group,CR416827,Recycling,Hired Staff,100
http://statistics.data.gov.uk/id/local-authority/12UE,Huntingdonshire District Council,23/10/2014,156898,IN0402848,5,"3,714.26",Staffline Group,CR416827,Recycling,Hired Staff,100
http://statistics.data.gov.uk/id/local-authority/12UE,Huntingdonshire District Council,16/10/2014,156419,IN0402305,5,"4,214.81",Staffline Group,CR416827,Recycling,Hired Staff,100
http://statistics.data.gov.uk/id/local-authority/12UE,Huntingdonshire District Council,09/10/2014,156437,IN0400880,5,"3,108.49",Staffline Group,CR416827,Recycling,Hired Staff,100
http://statistics.data.gov.uk/id/local-authority/12UE,Huntingdonshire District Council,02/10/2014,155715,IN0399714,5,"2,826.94",Staffline Group,CR416827,Recycling,Hired Staff,100
http://statistics.data.gov.uk/id/local-authority/12UE,Huntingdonshire District Council,09/10/2014,156946,IN0392316,5,"2,758.68",Staffline Group,CR416827,Recycling,Hired Staff,100
http://statistics.data.gov.uk/id/local-authority/12UE,Huntingdonshire District Council,04/12/2014,159288,GRN 37408,5,178.21,A C Commercials,CR000141,Recycling,Vehicle Parts & Fittings,625
http://statistics.data.gov.uk/id/local-authority/12UE,Huntingdonshire District Council,27/11/2014,159753,DE10829285,5,"1,227.38",Dennis Eagle Ltd,CR000200,Recycling,Vehicle Parts & Fittings,625
http://statistics.data.gov.uk/id/local-authority/12UE,Huntingdonshire District Council,18/12/2014,159754,DE10828638,5,513.42,Dennis Eagle Ltd,CR000200,Recycling,Vehicle Parts & Fittings,625
http://statistics.data.gov.uk/id/local-authority/12UE,Huntingdonshire District Council,04/12/2014,159336,DE10826010,5,483.6,Dennis Eagle Ltd,CR000200,Recycling,Vehicle Parts & Fittings,625
http://statistics.data.gov.uk/id/local-authority/12UE,Huntingdonshire District Council,27/11/2014,158901,DE10824641,5,"1,863.86",Dennis Eagle Ltd,CR000200,Recycling,Vehicle Parts & Fittings,625
http://statistics.data.gov.uk/id/local-authority/12UE,Huntingdonshire District Council,20/11/2014,158522,DE10822817,5,400.37,Dennis Eagle Ltd,CR000200,Recycling,Vehicle Parts & Fittings,625
http://statistics.data.gov.uk/id/local-authority/12UE,Huntingdonshire District Council,20/11/2014,158521,DE10822553,5,367.55,Dennis Eagle Ltd,CR000200,Recycling,Vehicle Parts & Fittings,625
http://statistics.data.gov.uk/id/local-authority/12UE,Huntingdonshire District Council,06/11/2014,157764,DE10819918,5,"2,394.29",Dennis Eagle Ltd,CR000200,Recycling,Vehicle Parts & Fittings,625
http://statistics.data.gov.uk/id/local-authority/12UE,Huntingdonshire District Council,16/10/2014,155794,DE10813524,5,"1,060.34",Dennis Eagle Ltd,CR000200,Recycling,Vehicle Parts & Fittings,625
http://statistics.data.gov.uk/id/local-authority/12UE,Huntingdonshire District Council,09/10/2014,155796,DE10813206,5,"1,122.58",Dennis Eagle Ltd,CR000200,Recycling,Vehicle Parts & Fittings,625
http://statistics.data.gov.uk/id/local-authority/12UE,Huntingdonshire District Council,02/10/2014,155748,DE10812205,5,598.54,Dennis Eagle Ltd,CR000200,Recycling,Vehicle Parts & Fittings,625
http://statistics.data.gov.uk/id/local-authority/12UE,Huntingdonshire District Council,27/11/2014,159357,73043G,5,109.44,Freedom Lubricants Ltd,CR411569,Recycling,Vehicle Oil & Lubricants,626
http://statistics.data.gov.uk/id/local-authority/12UE,Huntingdonshire District Council,18/12/2014,161016,252804I,5,121.14,A C Commercials,CR000141,Recycling,Vehicle Parts & Fittings,625
http://statistics.data.gov.uk/id/local-authority/12UE,Huntingdonshire District Council,18/12/2014,160548,251969I,5,307.25,A C Commercials,CR000141,Recycling,Vehicle Oil & Lubricants,626
http://statistics.data.gov.uk/id/local-authority/12UE,Huntingdonshire District Council,23/10/2014,156976,250716I,5,423.61,A C Commercials,CR000141,Recycling,Vehicle Parts & Fittings,625
http://statistics.data.gov.uk/id/local-authority/12UE,Huntingdonshire District Council,18/12/2014,160605,0000009665TA,5,"3,295.79",Viridor Waste Management Ltd,CR482408,Recycling,Recycling Collections,747
http://statistics.data.gov.uk/id/local-authority/12UE,Huntingdonshire District Council,11/12/2014,159296,0000009536TA,5,"6,496.91",Viridor Waste Management Ltd,CR482408,Recycling,Recycling Collections,747
http://statistics.data.gov.uk/id/local-authority/12UE,Huntingdonshire District Council,30/10/2014,157685,0000009352TA,5,"3,220.87",Viridor Waste Management Ltd,CR482408,Recycling,Recycling Collections,747
http://statistics.data.gov.uk/id/local-authority/12UE,Huntingdonshire District Council,02/10/2014,155702,0000009157TA,5,"3,590.53",Viridor Waste Management Ltd,CR482408,Recycling,Recycling Collections,747
http://statistics.data.gov.uk/id/local-authority/12UE,Huntingdonshire District Council,18/12/2014,160946,96305008,5,288.54,Terberg Matec Uk Ltd,CR402183,Recycling,Vehicle Parts & Fittings,625
http://statistics.data.gov.uk/id/local-authority/12UE,Huntingdonshire District Council,18/12/2014,160618,96304875,5,"2,201.52",Terberg Matec Uk Ltd,CR402183,Recycling,Vehicle Parts & Fittings,625
http://statistics.data.gov.uk/id/local-authority/12UE,Huntingdonshire District Council,20/11/2014,158117,96303042,5,148.03,Terberg Matec Uk Ltd,CR402183,Recycling,Vehicle Parts & Fittings,625
http://statistics.data.gov.uk/id/local-authority/12UE,Huntingdonshire District Council,06/11/2014,157324,96302664,5,"1,054.16",Terberg Matec Uk Ltd,CR402183,Recycling,Vehicle Parts & Fittings,625
http://statistics.data.gov.uk/id/local-authority/12UE,Huntingdonshire District Council,30/10/2014,157322,96302391,5,709.89,Terberg Matec Uk Ltd,CR402183,Recycling,Vehicle Parts & Fittings,625
http://statistics.data.gov.uk/id/local-authority/12UE,Huntingdonshire District Council,30/10/2014,157323,96302350,5,449.4,Terberg Matec Uk Ltd,CR402183,Recycling,Vehicle Parts & Fittings,625
http://statistics.data.gov.uk/id/local-authority/12UE,Huntingdonshire District Council,23/10/2014,156974,96302142,5,247.92,Terberg Matec Uk Ltd,CR402183,Recycling,Vehicle Parts & Fittings,625
http://statistics.data.gov.uk/id/local-authority/12UE,Huntingdonshire District Council,16/10/2014,156156,80011760,5,308.71,Chassis-Cab Ltd,CR422248,Recycling,Vehicle Parts & Fittings,625
http://statistics.data.gov.uk/id/local-authority/12UE,Huntingdonshire District Council,27/11/2014,158524,252632,5,441.38,Dennis Eagle Ltd,CR000200,Recycling,Vehicle Maintenance External,619
http://statistics.data.gov.uk/id/local-authority/12UE,Huntingdonshire District Council,20/11/2014,158087,252129,5,281.4,Dennis Eagle Ltd,CR000200,Recycling,Vehicle Maintenance External,619
http://statistics.data.gov.uk/id/local-authority/12UE,Huntingdonshire District Council,18/12/2014,159762,161633,5,126,Barton Petroleum,CR409205,Recycling,Vehicle Oil & Lubricants,626
http://statistics.data.gov.uk/id/local-authority/12UE,Huntingdonshire District Council,13/11/2014,158074,160190,5,126,Barton Petroleum,CR409205,Recycling,Vehicle Oil & Lubricants,626
http://statistics.data.gov.uk/id/local-authority/12UE,Huntingdonshire District Council,09/10/2014,155701,158633,5,126,Barton Petroleum,CR409205,Recycling,Vehicle Oil & Lubricants,626
http://statistics.data.gov.uk/id/local-authority/12UE,Huntingdonshire District Council,09/10/2014,155711,90201,5,319.59,Red Forge Ltd,CR405690,Recycling,Vehicle Parts & Fittings,625
http://statistics.data.gov.uk/id/local-authority/12UE,Huntingdonshire District Council,18/12/2014,161051,70888,5,"2,364.39",Bandvulc Truck Tyres,CR406810,Recycling,Tyres,630
http://statistics.data.gov.uk/id/local-authority/12UE,Huntingdonshire District Council,27/11/2014,159302,70012,5,397.14,Bandvulc Truck Tyres,CR406810,Recycling,Tyres,630
http://statistics.data.gov.uk/id/local-authority/12UE,Huntingdonshire District Council,30/10/2014,157065,69197,5,"1,472.77",Bandvulc Truck Tyres,CR406810,Recycling,Tyres,630
http://statistics.data.gov.uk/id/local-authority/12UE,Huntingdonshire District Council,09/10/2014,157064,68405,5,"1,605.45",Bandvulc Truck Tyres,CR406810,Recycling,Tyres,630
http://statistics.data.gov.uk/id/local-authority/12UE,Huntingdonshire District Council,23/10/2014,156975,35816,5,72.62,Trinity Engineering & Component Supplies Ltd,CR455479,Recycling,Vehicle Parts & Fittings,625
http://statistics.data.gov.uk/id/local-authority/12UE,Huntingdonshire District Council,23/10/2014,157766,9205,5,259.01,D B Transport Services,CR405028,Recycling,Vehicle Parts & Fittings,625
http://statistics.data.gov.uk/id/local-authority/12UE,Huntingdonshire District Council,27/11/2014,159363,9150,5,309.6,G&C Coachworks Ltd,CR455755,Recycling,Vehicle Parts & Fittings,625
http://statistics.data.gov.uk/id/local-authority/12UE,Huntingdonshire District Council,18/12/2014,160488,535849,5,"1,047.54",Ecocleen Services Limited,CR406985,Public Conveniences,Building Cleaning Internal,440
http://statistics.data.gov.uk/id/local-authority/12UE,Huntingdonshire District Council,18/12/2014,160490,535847,5,671.27,Ecocleen Services Limited,CR406985,Public Conveniences,Building Cleaning Internal,440
http://statistics.data.gov.uk/id/local-authority/12UE,Huntingdonshire District Council,27/11/2014,158784,534908,5,"1,047.54",Ecocleen Services Limited,CR406985,Public Conveniences,Building Cleaning Internal,440
http://statistics.data.gov.uk/id/local-authority/12UE,Huntingdonshire District Council,27/11/2014,158783,534906,5,671.27,Ecocleen Services Limited,CR406985,Public Conveniences,Building Cleaning Internal,440
http://statistics.data.gov.uk/id/local-authority/12UE,Huntingdonshire District Council,30/10/2014,157120,534232,5,"1,027.00",Ecocleen Services Limited,CR406985,Public Conveniences,Building Cleaning Internal,440
http://statistics.data.gov.uk/id/local-authority/12UE,Huntingdonshire District Council,30/10/2014,157121,534231,5,658.1,Ecocleen Services Limited,CR406985,Public Conveniences,Building Cleaning Internal,440
http://statistics.data.gov.uk/id/local-authority/12UE,Huntingdonshire District Council,27/11/2014,158219,53194,5,520.73,Beebys Limited,CR415822,Public Conveniences,Cleaning Materials,443
http://statistics.data.gov.uk/id/local-authority/12UE,Huntingdonshire District Council,23/10/2014,156429,53014,5,316.95,Beebys Limited,CR415822,Public Conveniences,Gen Building Mtce - Planned,304
http://statistics.data.gov.uk/id/local-authority/12UE,Huntingdonshire District Council,06/11/2014,157287,35391,5,278.21,Dal-Rod (Camridgeshire),CR413675,Public Conveniences,Gen Building Mtce - Responsive,303
http://statistics.data.gov.uk/id/local-authority/12UE,Huntingdonshire District Council,20/11/2014,158145,35187,5,360,Beebys Limited,CR415822,Public Conveniences,Building Cleaning Internal,440
http://statistics.data.gov.uk/id/local-authority/12UE,Huntingdonshire District Council,20/11/2014,158051,1765,5,"2,481.60",Wallgate Limited,CR478363,Public Conveniences,Gen Building Mtce - Responsive,303
http://statistics.data.gov.uk/id/local-authority/12UE,Huntingdonshire District Council,18/12/2014,160457,HDC029,5,"2,472.00",Cfl Estate Services,CR455208,Property Development And Mgt,Hired Staff,100
http://statistics.data.gov.uk/id/local-authority/12UE,Huntingdonshire District Council,20/11/2014,159263,HDC027,5,"3,054.00",Cfl Estate Services,CR455208,Property Development And Mgt,Hired Staff,100
http://statistics.data.gov.uk/id/local-authority/12UE,Huntingdonshire District Council,04/12/2014,159711,26370/4663,5,840.49,J Breheny Contractors Ltd,CR000314,Property Development And Mgt,Sitework,359
http://statistics.data.gov.uk/id/local-authority/12UE,Huntingdonshire District Council,04/12/2014,159717,26365/4663,5,"5,460.78",J Breheny Contractors Ltd,CR000314,Property Development And Mgt,Gen Building Mtce - Responsive,303
http://statistics.data.gov.uk/id/local-authority/12UE,Huntingdonshire District Council,16/10/2014,156010,26166/4663,5,410.18,J Breheny Contractors Ltd,CR000314,Property Development And Mgt,Sitework,359
http://statistics.data.gov.uk/id/local-authority/12UE,Huntingdonshire District Council,16/10/2014,155994,26153/4663,5,"1,800.53",J Breheny Contractors Ltd,CR000314,Property Development And Mgt,Sitework,359
http://statistics.data.gov.uk/id/local-authority/12UE,Huntingdonshire District Council,16/10/2014,156067,26143/4663,5,"12,187.36",J Breheny Contractors Ltd,CR000314,Property Development And Mgt,Sitework,359
http://statistics.data.gov.uk/id/local-authority/12UE,Huntingdonshire District Council,30/10/2014,158044,3100032,5,"1,674.00",Cipfa Business Limited,CR480088,Property Development And Mgt,Corporate Subscriptions,754
http://statistics.data.gov.uk/id/local-authority/12UE,Huntingdonshire District Council,18/12/2014,160892,SIN010802,5,"20,000.00",The Wildlife Trust Beds Cambs & Northants,CR401987,Project Contributions,Contribution (Paid Out),810
http://statistics.data.gov.uk/id/local-authority/12UE,Huntingdonshire District Council,13/11/2014,157743,1111109394,5,"6,000.00",Deloitte Llp,CR400573,Project Contributions,Consultants,711
http://statistics.data.gov.uk/id/local-authority/12UE,Huntingdonshire District Council,27/11/2014,572692,10563305,5,"3,712.50",Cambridgeshire County Council,CR006678,Project Contributions,Contribution (Paid Out),810
http://statistics.data.gov.uk/id/local-authority/12UE,Huntingdonshire District Council,18/12/2014,160897,T0120407,6,"4,800.00",University Of Greenwich Student Finance,CR422489,Planning M U'S,Training - Professional,130
http://statistics.data.gov.uk/id/local-authority/12UE,Huntingdonshire District Council,02/10/2014,155396,OP/I734805,5,"3,818.16",Phoenix Software Ltd,CR031918,Planning M U'S,Software,206
http://statistics.data.gov.uk/id/local-authority/12UE,Huntingdonshire District Council,11/12/2014,159847,1147229796,5,76.8,Orange Airtime,CR455799,Planning M U'S,Mobile Telephones & Radios,241
http://statistics.data.gov.uk/id/local-authority/12UE,Huntingdonshire District Council,13/11/2014,157821,1138945952,5,96,Orange Airtime,CR455799,Planning M U'S,Mobile Telephones & Radios,241
http://statistics.data.gov.uk/id/local-authority/12UE,Huntingdonshire District Council,16/10/2014,156170,1130284308,5,98.4,Orange Airtime,CR455799,Planning M U'S,Mobile Telephones & Radios,241
http://statistics.data.gov.uk/id/local-authority/12UE,Huntingdonshire District Council,27/11/2014,158969,248688,5,"1,417.50",South Bank University,CR033465,Planning M U'S,Training - Professional,130
http://statistics.data.gov.uk/id/local-authority/12UE,Huntingdonshire District Council,09/10/2014,155660,PE12/1103,5,"1,540.00",Bugs Pest Control,CR406893,Pest Control,Bait/Poisons,553
http://statistics.data.gov.uk/id/local-authority/12UE,Huntingdonshire District Council,18/12/2014,159643,157793,5,924,Essex Environmental Supplies Limited,CR40195,Pest Control,Bait/Poisons,553
http://statistics.data.gov.uk/id/local-authority/12UE,Huntingdonshire District Council,18/12/2014,159643,157793,5,22.8,Essex Environmental Supplies Limited,CR40195,Pest Control,Bait/Poisons,553
http://statistics.data.gov.uk/id/local-authority/12UE,Huntingdonshire District Council,18/12/2014,159643,157793,5,158.4,Essex Environmental Supplies Limited,CR40195,Pest Control,Bait/Poisons,553
http://statistics.data.gov.uk/id/local-authority/12UE,Huntingdonshire District Council,18/12/2014,159643,157793,5,270,Essex Environmental Supplies Limited,CR40195,Pest Control,Equipment Purchases,500
http://statistics.data.gov.uk/id/local-authority/12UE,Huntingdonshire District Council,18/12/2014,159643,157793,5,15,Essex Environmental Supplies Limited,CR40195,Pest Control,Equipment Purchases,500
http://statistics.data.gov.uk/id/local-authority/12UE,Huntingdonshire District Council,18/12/2014,159643,157793,5,11.75,Essex Environmental Supplies Limited,CR40195,Pest Control,Protective Clothing & Uniforms,163
http://statistics.data.gov.uk/id/local-authority/12UE,Huntingdonshire District Council,27/11/2014,159904,C-0001982371,5,203.2,Computershare Vouchers Ltd,CR412205,Payroll,Childcare Admin Vouchers,144
http://statistics.data.gov.uk/id/local-authority/12UE,Huntingdonshire District Council,30/10/2014,158043,C-0001962772,5,"5,187.08",Computershare Vouchers Ltd,CR412205,Payroll,Childcare Admin Vouchers,144
http://statistics.data.gov.uk/id/local-authority/12UE,Huntingdonshire District Council,13/11/2014,571211,10560218,5,"38,280.00",Cambridgeshire County Council,CR006678,Payroll,Financial Services,772
http://statistics.data.gov.uk/id/local-authority/12UE,Huntingdonshire District Council,27/11/2014,158636,SIN001226,5,960,Enterprise Support Services Uk Ltd,CR422509,Pathfinder House Site,Building Cleaning Internal,440
http://statistics.data.gov.uk/id/local-authority/12UE,Huntingdonshire District Council,27/11/2014,158634,SIN001225,5,"3,296.90",Enterprise Support Services Uk Ltd,CR422509,Pathfinder House Site,Building Cleaning Internal,440
http://statistics.data.gov.uk/id/local-authority/12UE,Huntingdonshire District Council,18/12/2014,159625,GD307,5,138,Greenday Energy Ltd,CR422398,Pathfinder House Site,Gen Building Mtce - Responsive,303
http://statistics.data.gov.uk/id/local-authority/12UE,Huntingdonshire District Council,27/11/2014,158583,FSI-123501,5,681.65,Freedom Communications Uk Ltd,CR478774,Pathfinder House Site,Network Hardware,205
http://statistics.data.gov.uk/id/local-authority/12UE,Huntingdonshire District Council,18/12/2014,160933,F96279,5,309.6,Omega Red Group,CR411029,Pathfinder House Site,Plant & Equipment Maintenance,380
http://statistics.data.gov.uk/id/local-authority/12UE,Huntingdonshire District Council,06/11/2014,157362,35353RH,5,342,Dal-Rod (Camridgeshire),CR413675,Pathfinder House Site,Gen Building Mtce - Responsive,303
http://statistics.data.gov.uk/id/local-authority/12UE,Huntingdonshire District Council,16/10/2014,155999,26159/4663,5,736.54,J Breheny Contractors Ltd,CR000314,Pathfinder House Site,Gen Building Mtce - Responsive,303
http://statistics.data.gov.uk/id/local-authority/12UE,Huntingdonshire District Council,13/11/2014,158021,2022524A,5,612.66,Glassolutions Installation,CR455591,Pathfinder House Site,Gen Building Mtce - Responsive,303
http://statistics.data.gov.uk/id/local-authority/12UE,Huntingdonshire District Council,23/10/2014,156432,14/0361,5,444.48,Fire And Safety Solutions Ltd,CR479928,Pathfinder House Site,Gen Building Mtce - Planned,304
http://statistics.data.gov.uk/id/local-authority/12UE,Huntingdonshire District Council,18/12/2014,160914,13313569100,5,"1,964.51",E-On Energy,CR416430,Pathfinder House Site,Gas,421
http://statistics.data.gov.uk/id/local-authority/12UE,Huntingdonshire District Council,13/11/2014,158840,13313569100,5,"1,021.13",E-On Energy,CR416430,Pathfinder House Site,Gas,421
http://statistics.data.gov.uk/id/local-authority/12UE,Huntingdonshire District Council,16/10/2014,157306,13313569100,5,507.5,E-On Energy,CR416430,Pathfinder House Site,Gas,421
http://statistics.data.gov.uk/id/local-authority/12UE,Huntingdonshire District Council,11/12/2014,159847,1147229796,5,7.2,Orange Airtime,CR455799,Pathfinder House Site,Mobile Telephones & Radios,241
http://statistics.data.gov.uk/id/local-authority/12UE,Huntingdonshire District Council,13/11/2014,157821,1138945952,5,7.2,Orange Airtime,CR455799,Pathfinder House Site,Mobile Telephones & Radios,241
http://statistics.data.gov.uk/id/local-authority/12UE,Huntingdonshire District Council,16/10/2014,156170,1130284308,5,7.2,Orange Airtime,CR455799,Pathfinder House Site,Mobile Telephones & Radios,241
http://statistics.data.gov.uk/id/local-authority/12UE,Huntingdonshire District Council,30/10/2014,157689,134364421,5,979.76,Anglian Water,CR000071,Pathfinder House Site,Sewerage,433
http://statistics.data.gov.uk/id/local-authority/12UE,Huntingdonshire District Council,30/10/2014,157689,134364421,5,919.85,Anglian Water,CR000071,Pathfinder House Site,Water,432
http://statistics.data.gov.uk/id/local-authority/12UE,Huntingdonshire District Council,23/10/2014,156650,113031641,5,"1,202.58",Kone Lifts Ltd,CR000483,Pathfinder House Site,Gen Building Mtce - Planned,304
http://statistics.data.gov.uk/id/local-authority/12UE,Huntingdonshire District Council,30/10/2014,156860,5110802,5,465.07,Integrated Water Services Ltd,CR452140,Pathfinder House Site,Gen Building Mtce - Responsive,303
http://statistics.data.gov.uk/id/local-authority/12UE,Huntingdonshire District Council,06/11/2014,157119,3055452,5,660,First In Service Ltd,CR422285,Pathfinder House Site,Plant & Equipment Maintenance,380
http://statistics.data.gov.uk/id/local-authority/12UE,Huntingdonshire District Council,30/10/2014,157019,3054681,5,637.2,First In Service Ltd,CR422285,Pathfinder House Site,Plant & Equipment Maintenance,380
http://statistics.data.gov.uk/id/local-authority/12UE,Huntingdonshire District Council,02/10/2014,155187,3054141,5,604.8,First In Service Ltd,CR422285,Pathfinder House Site,Gen Building Mtce - Responsive,303
http://statistics.data.gov.uk/id/local-authority/12UE,Huntingdonshire District Council,18/12/2014,160733,676099,5,"1,283.52",Glasdon Uk Ltd,CR002827,Pathfinder House Site,Refuse Sacks,552
http://statistics.data.gov.uk/id/local-authority/12UE,Huntingdonshire District Council,16/10/2014,156026,110496,5,540,Newgate (Newark) Limited,CR480024,Pathfinder House Site,Plant & Equipment Maintenance,380
http://statistics.data.gov.uk/id/local-authority/12UE,Huntingdonshire District Council,23/10/2014,157083,65912,5,"9,338.67",Haven Power Ltd,CR455940,Pathfinder House Site,Electricity,420
http://statistics.data.gov.uk/id/local-authority/12UE,Huntingdonshire District Council,20/11/2014,158764,65912,5,"9,200.19",Haven Power Ltd,CR455940,Pathfinder House Site,Electricity,420
http://statistics.data.gov.uk/id/local-authority/12UE,Huntingdonshire District Council,18/12/2014,160479,65912,5,"8,728.51",Haven Power Ltd,CR455940,Pathfinder House Site,Electricity,420
http://statistics.data.gov.uk/id/local-authority/12UE,Huntingdonshire District Council,18/12/2014,159908,51438,5,635.27,Maskearaid Ind Supplies,CR033423,Pathfinder House Site,Cleaning Materials,443
http://statistics.data.gov.uk/id/local-authority/12UE,Huntingdonshire District Council,06/11/2014,157810,51005,5,"1,029.97",Maskearaid Ind Supplies,CR033423,Pathfinder House Site,Cleaning Materials,443
http://statistics.data.gov.uk/id/local-authority/12UE,Huntingdonshire District Council,30/10/2014,156782,22327,5,"3,663.00",Hygiene Solutions,CR477443,Pathfinder House Site,Gen Building Mtce - Responsive,303
http://statistics.data.gov.uk/id/local-authority/12UE,Huntingdonshire District Council,30/10/2014,156788,18914,5,348.1,B. S. Graves Electrical Ltd,CR000363,Pathfinder House Site,Gen Building Mtce - Planned,304
http://statistics.data.gov.uk/id/local-authority/12UE,Huntingdonshire District Council,30/10/2014,156781,18913,5,270,B. S. Graves Electrical Ltd,CR000363,Pathfinder House Site,Gen Building Mtce - Responsive,303
http://statistics.data.gov.uk/id/local-authority/12UE,Huntingdonshire District Council,16/10/2014,156406,18878,5,586.8,B. S. Graves Electrical Ltd,CR000363,Pathfinder House Site,Gen Building Mtce - Responsive,303
http://statistics.data.gov.uk/id/local-authority/12UE,Huntingdonshire District Council,23/10/2014,156508,5438,5,"2,724.00",Cambridge Flat Roofing,CR479717,Pathfinder House Site,Gen Building Mtce - Responsive,303
http://statistics.data.gov.uk/id/local-authority/12UE,Huntingdonshire District Council,20/11/2014,157740,OP/I102029,5,"4,528.80",Sutcliffe Play,CR478132,Parks Equipment Capital,Playground Equipment,360
http://statistics.data.gov.uk/id/local-authority/12UE,Huntingdonshire District Council,20/11/2014,159303,OP/I101568-A,5,"3,276.00",Sutcliffe Play,CR478132,Parks Equipment Capital,Playground Equipment,360
http://statistics.data.gov.uk/id/local-authority/12UE,Huntingdonshire District Council,05/11/2014,157738,OP/I101568,5,"3,276.00",Sutcliffe Play,CR478132,Parks Equipment Capital,Playground Equipment,360
http://statistics.data.gov.uk/id/local-authority/12UE,Huntingdonshire District Council,05/11/2014,158618,OP/I101568,5,"-3,276.00",Sutcliffe Play,CR478132,Parks Equipment Capital,Playground Equipment,360
http://statistics.data.gov.uk/id/local-authority/12UE,Huntingdonshire District Council,16/10/2014,156498,5580 J 3801,5,"1,680.00",Proludic Ltd,CR478173,Parks Equipment Capital,Playground Equipment,360
http://statistics.data.gov.uk/id/local-authority/12UE,Huntingdonshire District Council,16/10/2014,155998,26158/4663,5,"10,800.00",J Breheny Contractors Ltd,CR000314,Parks Equipment Capital,Sitework,359
http://statistics.data.gov.uk/id/local-authority/12UE,Huntingdonshire District Council,20/11/2014,158530,33093,5,"13,038.00",Hags-Smp Ltd,CR455681,Parks Equipment Capital,Playground Equipment,360
http://statistics.data.gov.uk/id/local-authority/12UE,Huntingdonshire District Council,02/10/2014,156510,SI216273,5,346.5,Kompan Ltd,CR405497,Parks & Open Spaces,Playground Equipment,360
http://statistics.data.gov.uk/id/local-authority/12UE,Huntingdonshire District Council,18/12/2014,160264,CHES230,5,"4,500.00",Hampton/Chesmetalwork,CR453817,Parks & Open Spaces,Sitework,359
http://statistics.data.gov.uk/id/local-authority/12UE,Huntingdonshire District Council,18/12/2014,160649,5867S97113,5,415.2,Proludic Ltd,CR478173,Parks & Open Spaces,Playground Equipment,360
http://statistics.data.gov.uk/id/local-authority/12UE,Huntingdonshire District Council,18/12/2014,159882,58138-A,5,"3,540.00",Global Tree Solutions,CR400957,Parks & Open Spaces,Sitework,359
http://statistics.data.gov.uk/id/local-authority/12UE,Huntingdonshire District Council,16/10/2014,156019,26174/4663,5,863.84,J Breheny Contractors Ltd,CR000314,Parks & Open Spaces,Playground Equipment,360
http://statistics.data.gov.uk/id/local-authority/12UE,Huntingdonshire District Council,16/10/2014,156015,26170/4663,5,"1,080.00",J Breheny Contractors Ltd,CR000314,Parks & Open Spaces,Sitework,359
http://statistics.data.gov.uk/id/local-authority/12UE,Huntingdonshire District Council,16/10/2014,156065,26165/4663,5,"1,198.54",J Breheny Contractors Ltd,CR000314,Parks & Open Spaces,Sitework,359
http://statistics.data.gov.uk/id/local-authority/12UE,Huntingdonshire District Council,16/10/2014,156000,26161/4663,5,480.88,J Breheny Contractors Ltd,CR000314,Parks & Open Spaces,Sitework,359
http://statistics.data.gov.uk/id/local-authority/12UE,Huntingdonshire District Council,16/10/2014,155997,26157/4663,5,"1,114.15",J Breheny Contractors Ltd,CR000314,Parks & Open Spaces,Sitework,359
http://statistics.data.gov.uk/id/local-authority/12UE,Huntingdonshire District Council,16/10/2014,156007,26151/4663,5,"1,290.61",J Breheny Contractors Ltd,CR000314,Parks & Open Spaces,Sitework,359
http://statistics.data.gov.uk/id/local-authority/12UE,Huntingdonshire District Council,27/11/2014,158882,4000002026,5,395.28,1st Choice Recruitment,CR416849,Parks & Open Spaces,Hired Staff,100
http://statistics.data.gov.uk/id/local-authority/12UE,Huntingdonshire District Council,20/11/2014,158507,4000002003,5,474.34,1st Choice Recruitment,CR416849,Parks & Open Spaces,Hired Staff,100
http://statistics.data.gov.uk/id/local-authority/12UE,Huntingdonshire District Council,06/11/2014,157732,4000001956,5,494.1,1st Choice Recruitment,CR416849,Parks & Open Spaces,Hired Staff,100
http://statistics.data.gov.uk/id/local-authority/12UE,Huntingdonshire District Council,30/10/2014,157674,4000001938,5,415.04,1st Choice Recruitment,CR416849,Parks & Open Spaces,Hired Staff,100
http://statistics.data.gov.uk/id/local-authority/12UE,Huntingdonshire District Council,23/10/2014,156926,4000001919,5,408.46,1st Choice Recruitment,CR416849,Parks & Open Spaces,Hired Staff,100
http://statistics.data.gov.uk/id/local-authority/12UE,Huntingdonshire District Council,16/10/2014,156486,4000001897,5,398.58,1st Choice Recruitment,CR416849,Parks & Open Spaces,Hired Staff,100
http://statistics.data.gov.uk/id/local-authority/12UE,Huntingdonshire District Council,09/10/2014,156487,4000001874,5,299.76,1st Choice Recruitment,CR416849,Parks & Open Spaces,Hired Staff,100
http://statistics.data.gov.uk/id/local-authority/12UE,Huntingdonshire District Council,02/10/2014,156157,4000001849,5,395.28,1st Choice Recruitment,CR416849,Parks & Open Spaces,Hired Staff,100
http://statistics.data.gov.uk/id/local-authority/12UE,Huntingdonshire District Council,23/10/2014,157673,4000001824,5,395.28,1st Choice Recruitment,CR416849,Parks & Open Spaces,Hired Staff,100
http://statistics.data.gov.uk/id/local-authority/12UE,Huntingdonshire District Council,18/12/2014,161003,121573804,5,681.06,Swalec,CR407130,Parks & Open Spaces,Electricity,420
http://statistics.data.gov.uk/id/local-authority/12UE,Huntingdonshire District Council,27/11/2014,159368,2013077,5,"15,938.40",Highline Extreme (Oz-Uk)Ltd,CR477379,Parks & Open Spaces,Playground Equipment,360
http://statistics.data.gov.uk/id/local-authority/12UE,Huntingdonshire District Council,13/11/2014,158979,722433,5,510.38,Wicksteed Leisure Ltd,CR028997,Parks & Open Spaces,Playground Equipment,360
http://statistics.data.gov.uk/id/local-authority/12UE,Huntingdonshire District Council,30/10/2014,157340,722232,5,"5,435.04",Wicksteed Leisure Ltd,CR028997,Parks & Open Spaces,Playground Equipment,360
http://statistics.data.gov.uk/id/local-authority/12UE,Huntingdonshire District Council,18/12/2014,160210,98739,5,630.24,Barcham Trees,CR40001,Parks & Open Spaces,Trees/Shrubs,555
http://statistics.data.gov.uk/id/local-authority/12UE,Huntingdonshire District Council,23/10/2014,156957,15348,5,708,Soft Surfaces,CR415861,Parks & Open Spaces,Playground Equipment,360
http://statistics.data.gov.uk/id/local-authority/12UE,Huntingdonshire District Council,18/12/2014,160231,14707,5,"2,622.00",Playsafety Ltd,CR479523,Parks & Open Spaces,Playground Equipment,360
http://statistics.data.gov.uk/id/local-authority/12UE,Huntingdonshire District Council,30/10/2014,157339,5396,5,528.54,Tamar Nurseries Ltd,CR480100,Parks & Open Spaces,Playground Equipment,360
http://statistics.data.gov.uk/id/local-authority/12UE,Huntingdonshire District Council,02/10/2014,155696,1653,5,403.2,Ludus Leisure Ltd,CR422490,Parks & Open Spaces,Playground Equipment,360
http://statistics.data.gov.uk/id/local-authority/12UE,Huntingdonshire District Council,18/12/2014,160630,INV98235,5,468.82,Snacktime Vmi,CR482479,Operations Mgt Units,Service Charges,412
http://statistics.data.gov.uk/id/local-authority/12UE,Huntingdonshire District Council,18/12/2014,160630,INV98235,5,-194.65,Snacktime Vmi,CR482479,Operations Mgt Units,Service Charges,412
http://statistics.data.gov.uk/id/local-authority/12UE,Huntingdonshire District Council,11/12/2014,160625,INV98003,5,340.6,Snacktime Vmi,CR482479,Operations Mgt Units,Service Charges,412
http://statistics.data.gov.uk/id/local-authority/12UE,Huntingdonshire District Council,20/11/2014,158976,INV97749,5,263.12,Snacktime Vmi,CR482479,Operations Mgt Units,Service Charges,412
http://statistics.data.gov.uk/id/local-authority/12UE,Huntingdonshire District Council,13/11/2014,158104,INV97509,5,340.6,Snacktime Vmi,CR482479,Operations Mgt Units,Service Charges,412
http://statistics.data.gov.uk/id/local-authority/12UE,Huntingdonshire District Council,23/10/2014,157670,INV97268,5,572.88,Snacktime Vmi,CR482479,Operations Mgt Units,Service Charges,412
http://statistics.data.gov.uk/id/local-authority/12UE,Huntingdonshire District Council,23/10/2014,157671,INV97268,5,-272.85,Snacktime Vmi,CR482479,Operations Mgt Units,Service Charges,412
http://statistics.data.gov.uk/id/local-authority/12UE,Huntingdonshire District Council,09/10/2014,156149,INV97024,5,340.6,Snacktime Vmi,CR482479,Operations Mgt Units,Service Charges,412
http://statistics.data.gov.uk/id/local-authority/12UE,Huntingdonshire District Council,11/12/2014,159847,1147229796,5,160.95,Orange Airtime,CR455799,Operations Mgt Units,Mobile Telephones & Radios,241
http://statistics.data.gov.uk/id/local-authority/12UE,Huntingdonshire District Council,13/11/2014,157821,1138945952,5,170.39,Orange Airtime,CR455799,Operations Mgt Units,Mobile Telephones & Radios,241
http://statistics.data.gov.uk/id/local-authority/12UE,Huntingdonshire District Council,16/10/2014,156170,1130284308,5,171.02,Orange Airtime,CR455799,Operations Mgt Units,Mobile Telephones & Radios,241
http://statistics.data.gov.uk/id/local-authority/12UE,Huntingdonshire District Council,13/11/2014,158527,300078451,5,354,Freight Transport Association,CR003104,Operations Mgt Units,Training - Operational,131
http://statistics.data.gov.uk/id/local-authority/12UE,Huntingdonshire District Council,09/10/2014,156967,300075350,5,354,Freight Transport Association,CR003104,Operations Mgt Units,Training - Operational,131
http://statistics.data.gov.uk/id/local-authority/12UE,Huntingdonshire District Council,02/10/2014,155443,300074173,5,735,Freight Transport Association,CR003104,Operations Mgt Units,Stationery,225
http://statistics.data.gov.uk/id/local-authority/12UE,Huntingdonshire District Council,20/11/2014,158144,73781946,5,-3.01,Vodafone Limited,CR029120,Operations Mgt Units,Mobile Telephones & Radios,241
http://statistics.data.gov.uk/id/local-authority/12UE,Huntingdonshire District Council,13/11/2014,158519,191287,5,"2,133.54",Chevin Fleet Solutions,CR477454,Operations Mgt Units,Other I T Hardware,203
http://statistics.data.gov.uk/id/local-authority/12UE,Huntingdonshire District Council,18/12/2014,160217,2214,5,367.2,Gilden Training,CR481057,Operations Mgt Units,Training - Operational,131
http://statistics.data.gov.uk/id/local-authority/12UE,Huntingdonshire District Council,27/11/2014,158528,2206,5,"2,544.00",Gilden Training,CR481057,Operations Mgt Units,Training - Operational,131
http://statistics.data.gov.uk/id/local-authority/12UE,Huntingdonshire District Council,18/12/2014,160301,SIN496415,5,"1,025.46",Corporate Trends,CR415966,One Leisure St Neots,Protective Clothing & Uniforms,163
http://statistics.data.gov.uk/id/local-authority/12UE,Huntingdonshire District Council,18/12/2014,160977,SIN037875,5,520,Institute Of Qualified Lifeguards,CR403387,One Leisure St Neots,Training - Operational,131
http://statistics.data.gov.uk/id/local-authority/12UE,Huntingdonshire District Council,27/11/2014,158634,SIN001225,5,"1,210.94",Enterprise Support Services Uk Ltd,CR422509,One Leisure St Neots,Building Cleaning Internal,440
http://statistics.data.gov.uk/id/local-authority/12UE,Huntingdonshire District Council,27/11/2014,158457,Q/1000078920146,5,65,Institute Of Qualified Lifeguards,CR403387,One Leisure St Neots,Licences,730
http://statistics.data.gov.uk/id/local-authority/12UE,Huntingdonshire District Council,02/10/2014,154425,P-S1606981,5,81.6,Rajapack Ltd,CR480770,One Leisure St Neots,Printing (External),220
http://statistics.data.gov.uk/id/local-authority/12UE,Huntingdonshire District Council,30/10/2014,157393,OP/I207577,5,"6,764.46",Helmsman Coin Cont Lockers Ltd,CR000385,One Leisure St Neots,Fixtures & Fittings,379
http://statistics.data.gov.uk/id/local-authority/12UE,Huntingdonshire District Council,30/10/2014,158040,OLSINV/2178429,5,353.8,Dimensions Clothing Ltd,CR400551,One Leisure St Neots,Protective Clothing & Uniforms,163
http://statistics.data.gov.uk/id/local-authority/12UE,Huntingdonshire District Council,09/10/2014,155830,OLSINV/02161800,5,643.79,Dimensions Clothing Ltd,CR400551,One Leisure St Neots,Protective Clothing & Uniforms,163
http://statistics.data.gov.uk/id/local-authority/12UE,Huntingdonshire District Council,16/10/2014,156574,IO2C00131492,5,549,Ymca Fitness Industry Training,CR416456,One Leisure St Neots,Training - Professional,130
http://statistics.data.gov.uk/id/local-authority/12UE,Huntingdonshire District Council,06/11/2014,157381,GM10368,5,646.06,Garner Medical Ltd,CR003972,One Leisure St Neots,Equipment Maintenance,511
http://statistics.data.gov.uk/id/local-authority/12UE,Huntingdonshire District Council,20/11/2014,158173,FE16893,5,283.5,First Editions Ltd,CR411973,One Leisure St Neots,Materials For Resale,570
http://statistics.data.gov.uk/id/local-authority/12UE,Huntingdonshire District Council,18/12/2014,159903,C322757,5,"1,968.00",First In Service Ltd,CR422285,One Leisure St Neots,Gen Building Mtce - Planned,304
http://statistics.data.gov.uk/id/local-authority/12UE,Huntingdonshire District Council,02/10/2014,156457,8665DC,5,"2,879.08",Asp,CR455201,One Leisure St Neots,Software,206
http://statistics.data.gov.uk/id/local-authority/12UE,Huntingdonshire District Council,18/12/2014,160984,44SI/545570,5,782.9,Brenntag Uk Ltd,CR015017,One Leisure St Neots,Chemicals,551
http://statistics.data.gov.uk/id/local-authority/12UE,Huntingdonshire District Council,04/12/2014,159369,44SI 546310,5,782.01,Brenntag Uk Ltd,CR015017,One Leisure St Neots,Chemicals,551
http://statistics.data.gov.uk/id/local-authority/12UE,Huntingdonshire District Council,30/10/2014,158024,15170E,5,915.6,Leisure Database Company,CR479551,One Leisure St Neots,Advertising/Promoting Services,255
http://statistics.data.gov.uk/id/local-authority/12UE,Huntingdonshire District Council,11/12/2014,159746,15/2010,5,59.94,Apt Ltd,CR456018,One Leisure St Neots,Software,206
http://statistics.data.gov.uk/id/local-authority/12UE,Huntingdonshire District Council,18/12/2014,160906,12489088540,5,379.04,E-On Energy,CR416430,One Leisure St Neots,Gas,421
http://statistics.data.gov.uk/id/local-authority/12UE,Huntingdonshire District Council,16/10/2014,157300,12489088540,5,309,E-On Energy,CR416430,One Leisure St Neots,Gas,421
http://statistics.data.gov.uk/id/local-authority/12UE,Huntingdonshire District Council,18/12/2014,160905,12489088380,5,"4,533.76",E-On Energy,CR416430,One Leisure St Neots,Gas,421
http://statistics.data.gov.uk/id/local-authority/12UE,Huntingdonshire District Council,13/11/2014,158838,12489088380,5,"3,896.42",E-On Energy,CR416430,One Leisure St Neots,Gas,421
http://statistics.data.gov.uk/id/local-authority/12UE,Huntingdonshire District Council,16/10/2014,157301,12489088380,5,"3,225.83",E-On Energy,CR416430,One Leisure St Neots,Gas,421
http://statistics.data.gov.uk/id/local-authority/12UE,Huntingdonshire District Council,13/11/2014,157367,1800060710,5,432,Edf Energy Customer Field Services,CR477611,One Leisure St Neots,Service Charges,412
http://statistics.data.gov.uk/id/local-authority/12UE,Huntingdonshire District Council,11/12/2014,159847,1147229796,5,10.4,Orange Airtime,CR455799,One Leisure St Neots,Mobile Telephones & Radios,241
http://statistics.data.gov.uk/id/local-authority/12UE,Huntingdonshire District Council,13/11/2014,157821,1138945952,5,10.4,Orange Airtime,CR455799,One Leisure St Neots,Mobile Telephones & Radios,241
http://statistics.data.gov.uk/id/local-authority/12UE,Huntingdonshire District Council,16/10/2014,156170,1130284308,5,10.4,Orange Airtime,CR455799,One Leisure St Neots,Mobile Telephones & Radios,241
http://statistics.data.gov.uk/id/local-authority/12UE,Huntingdonshire District Council,04/12/2014,159016,1115464517,5,646.42,Konica Minolta,CR478866,One Leisure St Neots,Other Office Equipment,209
http://statistics.data.gov.uk/id/local-authority/12UE,Huntingdonshire District Council,16/10/2014,156906,140094674,5,274.18,Pelican Rouge Coffee Solutions Ltd,CR003340,One Leisure St Neots,Vending Materials,560
http://statistics.data.gov.uk/id/local-authority/12UE,Huntingdonshire District Council,06/11/2014,158099,126873231,5,"1,199.97",Anglian Water,CR000071,One Leisure St Neots,Sewerage,433
http://statistics.data.gov.uk/id/local-authority/12UE,Huntingdonshire District Council,06/11/2014,158099,126873231,5,"2,142.34",Anglian Water,CR000071,One Leisure St Neots,Water,432
http://statistics.data.gov.uk/id/local-authority/12UE,Huntingdonshire District Council,18/12/2014,161108,124032665,5,"1,027.17",Anglian Water,CR000071,One Leisure St Neots,Sewerage,433
http://statistics.data.gov.uk/id/local-authority/12UE,Huntingdonshire District Council,18/12/2014,161108,124032665,5,962.99,Anglian Water,CR000071,One Leisure St Neots,Water,432
http://statistics.data.gov.uk/id/local-authority/12UE,Huntingdonshire District Council,30/10/2014,158052,123913345,5,886.25,Anglian Water,CR000071,One Leisure St Neots,Water,432
http://statistics.data.gov.uk/id/local-authority/12UE,Huntingdonshire District Council,27/11/2014,159626,123913345,5,866.51,Anglian Water,CR000071,One Leisure St Neots,Water,432
http://statistics.data.gov.uk/id/local-authority/12UE,Huntingdonshire District Council,09/10/2014,155788,61621621,5,675.77,Phs Group Ltd,CR032018,One Leisure St Neots,Equipment Maintenance,511
http://statistics.data.gov.uk/id/local-authority/12UE,Huntingdonshire District Council,18/12/2014,160736,4952376,5,281.11,Chubb Fire And Security Ltd,CR478924,One Leisure St Neots,Security,450
http://statistics.data.gov.uk/id/local-authority/12UE,Huntingdonshire District Council,18/12/2014,160882,4917516,5,"1,279.50",Chubb Electronic Security,CR029346,One Leisure St Neots,Security,450
http://statistics.data.gov.uk/id/local-authority/12UE,Huntingdonshire District Council,18/12/2014,160739,3058910,5,313.2,First In Service Ltd,CR422285,One Leisure St Neots,Plant & Equipment Maintenance,380
http://statistics.data.gov.uk/id/local-authority/12UE,Huntingdonshire District Council,18/12/2014,160257,2148327,5,406.31,Glaxosmithkline,CR010424,One Leisure St Neots,Vending Materials,560
http://statistics.data.gov.uk/id/local-authority/12UE,Huntingdonshire District Council,20/11/2014,158170,2138889,5,266.7,Glaxosmithkline,CR010424,One Leisure St Neots,Vending Materials,560
http://statistics.data.gov.uk/id/local-authority/12UE,Huntingdonshire District Council,30/10/2014,157042,2133501,5,307.86,Glaxosmithkline,CR010424,One Leisure St Neots,Vending Materials,560
http://statistics.data.gov.uk/id/local-authority/12UE,Huntingdonshire District Council,04/12/2014,160259,1038994,5,225.6,Badgemaster,CR400716,One Leisure St Neots,Protective Clothing & Uniforms,163
http://statistics.data.gov.uk/id/local-authority/12UE,Huntingdonshire District Council,23/10/2014,156837,921101,5,223.05,Hedley Solutions Ltd,CR026816,One Leisure St Neots,Equipment Purchases,500
http://statistics.data.gov.uk/id/local-authority/12UE,Huntingdonshire District Council,23/10/2014,156569,604556,5,264.33,Stable Cables,CR002229,One Leisure St Neots,Gen Building Mtce - Planned,304
http://statistics.data.gov.uk/id/local-authority/12UE,Huntingdonshire District Council,11/12/2014,159370,491516,5,"1,279.50",Chubb Fire And Security Ltd,CR478924,One Leisure St Neots,Security,450
http://statistics.data.gov.uk/id/local-authority/12UE,Huntingdonshire District Council,09/10/2014,155689,359207,5,617.27,Swimrite Supplies Ltd (Srs Leisure),CR478711,One Leisure St Neots,Materials For Resale,570
http://statistics.data.gov.uk/id/local-authority/12UE,Huntingdonshire District Council,18/12/2014,161103,356611,5,312,Mplc,CR411190,One Leisure St Neots,Licences,730
http://statistics.data.gov.uk/id/local-authority/12UE,Huntingdonshire District Council,13/11/2014,157825,266809,5,109.48,South Lincs Food Service,CR033415,One Leisure St Neots,Bar Provisions,558
http://statistics.data.gov.uk/id/local-authority/12UE,Huntingdonshire District Council,13/11/2014,157825,266809,5,62.81,South Lincs Food Service,CR033415,One Leisure St Neots,Catering Materials,559
http://statistics.data.gov.uk/id/local-authority/12UE,Huntingdonshire District Council,13/11/2014,157825,266809,5,82.04,South Lincs Food Service,CR033415,One Leisure St Neots,Confectionery,572
http://statistics.data.gov.uk/id/local-authority/12UE,Huntingdonshire District Council,04/12/2014,159448,201414,5,410,Splash Academy,CR403645,One Leisure St Neots,Training - Operational,131
http://statistics.data.gov.uk/id/local-authority/12UE,Huntingdonshire District Council,04/12/2014,158852,187824,5,460.83,Swimrite Supplies Ltd (Srs Leisure),CR478711,One Leisure St Neots,Materials For Resale,570
http://statistics.data.gov.uk/id/local-authority/12UE,Huntingdonshire District Council,04/12/2014,159239,168305,5,633.42,Franklins Group,CR478928,One Leisure St Neots,Badges And Certificates,571
http://statistics.data.gov.uk/id/local-authority/12UE,Huntingdonshire District Council,02/10/2014,155280,155999,5,482.26,Chemaide Ltd,CR413480,One Leisure St Neots,Cleaning Materials,443
http://statistics.data.gov.uk/id/local-authority/12UE,Huntingdonshire District Council,18/12/2014,574122,117480,2,77.7,Peter Corley,CR415709,One Leisure St Neots,Equipment Purchases,500
http://statistics.data.gov.uk/id/local-authority/12UE,Huntingdonshire District Council,18/12/2014,160662,107514,5,"3,820.32",Best Gym Equipment,CR422671,One Leisure St Neots,Sports Equipment,524
http://statistics.data.gov.uk/id/local-authority/12UE,Huntingdonshire District Council,09/10/2014,155651,102889,5,479.84,Lavat,CR480410,One Leisure St Neots,Consultants,711
http://statistics.data.gov.uk/id/local-authority/12UE,Huntingdonshire District Council,11/12/2014,159647,77624,5,660,Jsa Leisure Ltd,CR40187,One Leisure St Neots,Equipment Maintenance,511
http://statistics.data.gov.uk/id/local-authority/12UE,Huntingdonshire District Council,27/11/2014,159023,77601,5,815.4,Jsa Leisure Ltd,CR40187,One Leisure St Neots,Plant & Equipment Maintenance,380
http://statistics.data.gov.uk/id/local-authority/12UE,Huntingdonshire District Council,18/12/2014,160478,65914,5,"10,639.89",Haven Power Ltd,CR455940,One Leisure St Neots,Electricity,420
http://statistics.data.gov.uk/id/local-authority/12UE,Huntingdonshire District Council,23/10/2014,157081,65914,5,"10,378.48",Haven Power Ltd,CR455940,One Leisure St Neots,Electricity,420
http://statistics.data.gov.uk/id/local-authority/12UE,Huntingdonshire District Council,13/11/2014,158770,65914,5,"10,324.61",Haven Power Ltd,CR455940,One Leisure St Neots,Electricity,420
http://statistics.data.gov.uk/id/local-authority/12UE,Huntingdonshire District Council,02/10/2014,156548,61225,5,204,Clubnet Limited,CR422543,One Leisure St Neots,Advertising/Promoting Services,255
http://statistics.data.gov.uk/id/local-authority/12UE,Huntingdonshire District Council,18/12/2014,161106,52395,5,"1,074.53",Snackline Direct Ltd,CR478090,One Leisure St Neots,Vending Materials,560
http://statistics.data.gov.uk/id/local-authority/12UE,Huntingdonshire District Council,18/12/2014,159768,51719,5,653.19,Snackline Direct Ltd,CR478090,One Leisure St Neots,Vending Materials,560
http://statistics.data.gov.uk/id/local-authority/12UE,Huntingdonshire District Council,20/11/2014,158858,50830,5,619.56,Snackline Direct Ltd,CR478090,One Leisure St Neots,Vending Materials,560
http://statistics.data.gov.uk/id/local-authority/12UE,Huntingdonshire District Council,13/11/2014,159011,50431,5,310.3,Snackline Direct Ltd,CR478090,One Leisure St Neots,Vending Materials,560
http://statistics.data.gov.uk/id/local-authority/12UE,Huntingdonshire District Council,09/10/2014,156114,49495,5,251.69,Snackline Direct Ltd,CR478090,One Leisure St Neots,Bar Provisions,558
http://statistics.data.gov.uk/id/local-authority/12UE,Huntingdonshire District Council,06/11/2014,157428,41473,5,420,Technical Surfaces Ltd,CR031941,One Leisure St Neots,Grounds Mtce Contractors,351
http://statistics.data.gov.uk/id/local-authority/12UE,Huntingdonshire District Council,13/11/2014,157731,36634,5,284,Clanpress King'S Lynn Ltd,CR413516,One Leisure St Neots,Printing (External),220
http://statistics.data.gov.uk/id/local-authority/12UE,Huntingdonshire District Council,06/11/2014,157392,21747,5,680.4,The Softbrick Company Ltd,CR480234,One Leisure St Neots,Gen Building Mtce - Planned,304
http://statistics.data.gov.uk/id/local-authority/12UE,Huntingdonshire District Council,13/11/2014,158171,14028,5,139.8,Bigprinting,CR416383,One Leisure St Neots,Printing (External),220
http://statistics.data.gov.uk/id/local-authority/12UE,Huntingdonshire District Council,09/10/2014,156135,13879,5,93.6,Bigprinting,CR416383,One Leisure St Neots,Printing (External),220
http://statistics.data.gov.uk/id/local-authority/12UE,Huntingdonshire District Council,09/10/2014,156134,13878,5,69.12,Bigprinting,CR416383,One Leisure St Neots,Printing (External),220
http://statistics.data.gov.uk/id/local-authority/12UE,Huntingdonshire District Council,18/12/2014,161126,11927,5,401.76,Jade Security Services Ltd,CR422256,One Leisure St Neots,Cash Collection,702
http://statistics.data.gov.uk/id/local-authority/12UE,Huntingdonshire District Council,27/11/2014,159012,11838,5,468.72,Jade Security Services Ltd,CR422256,One Leisure St Neots,Cash Collection,702
http://statistics.data.gov.uk/id/local-authority/12UE,Huntingdonshire District Council,06/11/2014,158016,9256,5,"1,030.80",Roger Wilson Electronics,CR028041,One Leisure St Neots,Gen Building Mtce - Responsive,303
http://statistics.data.gov.uk/id/local-authority/12UE,Huntingdonshire District Council,09/10/2014,155403,9160,5,769.8,Roger Wilson Electronics,CR028041,One Leisure St Neots,Equipment Maintenance,511
http://statistics.data.gov.uk/id/local-authority/12UE,Huntingdonshire District Council,09/10/2014,155403,9160,5,172.58,Roger Wilson Electronics,CR028041,One Leisure St Neots,Equipment Purchases,500
http://statistics.data.gov.uk/id/local-authority/12UE,Huntingdonshire District Council,13/11/2014,157870,5139,5,214.8,Cfb Limited,CR480886,One Leisure St Neots,Advertising/Promoting Services,255
http://statistics.data.gov.uk/id/local-authority/12UE,Huntingdonshire District Council,02/10/2014,155263,4862,5,400,Leisure-Net Solutions,CR411853,One Leisure St Neots,Advertising/Promoting Services,255
http://statistics.data.gov.uk/id/local-authority/12UE,Huntingdonshire District Council,16/10/2014,156787,2168,5,142.8,Premier Logos,CR401203,One Leisure St Neots,Advertising/Promoting Services,255
http://statistics.data.gov.uk/id/local-authority/12UE,Huntingdonshire District Council,23/10/2014,156544,2079,5,52,Bonkers About Babies,CR416298,One Leisure St Neots,Advertising/Promoting Services,255
http://statistics.data.gov.uk/id/local-authority/12UE,Huntingdonshire District Council,30/10/2014,157360,1165,5,435.24,Jade Security Services Ltd,CR422256,One Leisure St Neots,Cash Collection,702
http://statistics.data.gov.uk/id/local-authority/12UE,Huntingdonshire District Council,16/10/2014,156565,524,5,462,Bibby Factors Leicester Ltd,CR480417,One Leisure St Neots,Equipment Maintenance,511
http://statistics.data.gov.uk/id/local-authority/12UE,Huntingdonshire District Council,23/10/2014,156813,417,5,"1,674.00",Pool Maintenance Ltd,CR422505,One Leisure St Neots,Plant & Equipment Maintenance,380
http://statistics.data.gov.uk/id/local-authority/12UE,Huntingdonshire District Council,02/10/2014,155271,,5,572.7,Snackline Direct Ltd,CR478090,One Leisure St Neots,Vending Materials,560
http://statistics.data.gov.uk/id/local-authority/12UE,Huntingdonshire District Council,30/10/2014,157107,UK.F 14-0571,5,"2,040.00",Labosport,CR480698,One Leisure St Ives,Subcontractors,777
http://statistics.data.gov.uk/id/local-authority/12UE,Huntingdonshire District Council,18/12/2014,160471,SIV033252,5,291.98,Les Mills Uk,CR025826,One Leisure St Ives,Licences,730
http://statistics.data.gov.uk/id/local-authority/12UE,Huntingdonshire District Council,04/12/2014,158863,SIV026851,5,291.98,Les Mills Uk,CR025826,One Leisure St Ives,Licences,730
http://statistics.data.gov.uk/id/local-authority/12UE,Huntingdonshire District Council,06/11/2014,157050,SIV022573,5,291.98,Les Mills Uk,CR025826,One Leisure St Ives,Licences,730
http://statistics.data.gov.uk/id/local-authority/12UE,Huntingdonshire District Council,02/10/2014,155243,SIV019529,5,291.98,Les Mills Uk,CR025826,One Leisure St Ives,Licences,730
http://statistics.data.gov.uk/id/local-authority/12UE,Huntingdonshire District Council,18/12/2014,160301,SIN496415,5,423.78,Corporate Trends,CR415966,One Leisure St Ives,Protective Clothing & Uniforms,163
http://statistics.data.gov.uk/id/local-authority/12UE,Huntingdonshire District Council,18/12/2014,160977,SIN037875,5,520,Institute Of Qualified Lifeguards,CR403387,One Leisure St Ives,Training - Operational,131
http://statistics.data.gov.uk/id/local-authority/12UE,Huntingdonshire District Council,27/11/2014,158634,SIN001225,5,"2,467.67",Enterprise Support Services Uk Ltd,CR422509,One Leisure St Ives,Building Cleaning Internal,440
http://statistics.data.gov.uk/id/local-authority/12UE,Huntingdonshire District Council,04/12/2014,159499,SBO1005276,5,597.6,Veolia Es Uk Ltd,CR478889,One Leisure St Ives,Waste Disposal,763
http://statistics.data.gov.uk/id/local-authority/12UE,Huntingdonshire District Council,30/10/2014,157430,SBO1003326,5,448.8,Veolia Es Uk Ltd,CR478889,One Leisure St Ives,Waste Disposal,763
http://statistics.data.gov.uk/id/local-authority/12UE,Huntingdonshire District Council,13/11/2014,158638,S-0000758858,5,730.8,G4s Secure Solutions (Uk) Ltd,CR454030,One Leisure St Ives,Security,450
http://statistics.data.gov.uk/id/local-authority/12UE,Huntingdonshire District Council,13/11/2014,158775,S-00000758859-C,5,730.8,G4s Secure Solutions (Uk) Ltd,CR454030,One Leisure St Ives,Security,450
http://statistics.data.gov.uk/id/local-authority/12UE,Huntingdonshire District Council,02/10/2014,155858,RSIN0109392,5,"1,768.00",Rigby Taylor Ltd,CR001345,One Leisure St Ives,Grounds Mtce Contractors,351
http://statistics.data.gov.uk/id/local-authority/12UE,Huntingdonshire District Council,27/11/2014,158457,Q/1000078920146,5,65,Institute Of Qualified Lifeguards,CR403387,One Leisure St Ives,Licences,730
http://statistics.data.gov.uk/id/local-authority/12UE,Huntingdonshire District Council,02/10/2014,154425,P-S1606981,5,81.6,Rajapack Ltd,CR480770,One Leisure St Ives,Printing (External),220
http://statistics.data.gov.uk/id/local-authority/12UE,Huntingdonshire District Council,30/10/2014,154476,PO26341,5,-678.6,Oakham Ales,CR422253,One Leisure St Ives,Bar Provisions,558
http://statistics.data.gov.uk/id/local-authority/12UE,Huntingdonshire District Council,11/12/2014,159045,OP/I508134,5,368.88,Slush Puppie Ltd,CR455958,One Leisure St Ives,Catering Materials,559
http://statistics.data.gov.uk/id/local-authority/12UE,Huntingdonshire District Council,11/12/2014,159045,OP/I508134,5,55.92,Slush Puppie Ltd,CR455958,One Leisure St Ives,Materials,550
http://statistics.data.gov.uk/id/local-authority/12UE,Huntingdonshire District Council,30/10/2014,157063,OP/I504841,5,276.66,Slush Puppie Ltd,CR455958,One Leisure St Ives,Catering Materials,559
http://statistics.data.gov.uk/id/local-authority/12UE,Huntingdonshire District Council,30/10/2014,157063,OP/I504841,5,55.92,Slush Puppie Ltd,CR455958,One Leisure St Ives,Materials,550
http://statistics.data.gov.uk/id/local-authority/12UE,Huntingdonshire District Council,18/12/2014,160505,OP/1510021,5,276.66,Slush Puppie Ltd,CR455958,One Leisure St Ives,Catering Materials,559
http://statistics.data.gov.uk/id/local-authority/12UE,Huntingdonshire District Council,18/12/2014,160505,OP/1510021,5,115.62,Slush Puppie Ltd,CR455958,One Leisure St Ives,Materials,550
http://statistics.data.gov.uk/id/local-authority/12UE,Huntingdonshire District Council,16/10/2014,156033,OP/1503168,5,368.88,Slush Puppie Ltd,CR455958,One Leisure St Ives,Catering Materials,559
http://statistics.data.gov.uk/id/local-authority/12UE,Huntingdonshire District Council,16/10/2014,156033,OP/1503168,5,55.92,Slush Puppie Ltd,CR455958,One Leisure St Ives,Materials,550
http://statistics.data.gov.uk/id/local-authority/12UE,Huntingdonshire District Council,30/10/2014,158206,OLSI,5,"1,307.05",Starlite Roadshow,CR024127,One Leisure St Ives,Entertainments Inc Cable Tv,744
http://statistics.data.gov.uk/id/local-authority/12UE,Huntingdonshire District Council,04/12/2014,160166,INV001404,5,"1,250.00",Lynx Bowling Services,CR455532,One Leisure St Ives,Equipment Maintenance,511
http://statistics.data.gov.uk/id/local-authority/12UE,Huntingdonshire District Council,04/12/2014,160166,INV001404,5,571.56,Lynx Bowling Services,CR455532,One Leisure St Ives,Plant & Equipment Maintenance,380
http://statistics.data.gov.uk/id/local-authority/12UE,Huntingdonshire District Council,06/11/2014,158486,INV001398,5,"1,250.00",Lynx Bowling Services,CR455532,One Leisure St Ives,Equipment Maintenance,511
http://statistics.data.gov.uk/id/local-authority/12UE,Huntingdonshire District Council,06/11/2014,158486,INV001398,5,591.12,Lynx Bowling Services,CR455532,One Leisure St Ives,Plant & Equipment Maintenance,380
http://statistics.data.gov.uk/id/local-authority/12UE,Huntingdonshire District Council,09/10/2014,156540,INV001388,5,"1,250.00",Lynx Bowling Services,CR455532,One Leisure St Ives,Equipment Maintenance,511
http://statistics.data.gov.uk/id/local-authority/12UE,Huntingdonshire District Council,09/10/2014,156540,INV001388,5,441.96,Lynx Bowling Services,CR455532,One Leisure St Ives,Plant & Equipment Maintenance,380
http://statistics.data.gov.uk/id/local-authority/12UE,Huntingdonshire District Council,02/10/2014,155675,IN16PS14006127,5,200.74,Whistl,CR479965,One Leisure St Ives,Postage,231
http://statistics.data.gov.uk/id/local-authority/12UE,Huntingdonshire District Council,27/11/2014,159663,IN14024,5,384,Airquee Ltd,CR416900,One Leisure St Ives,Equipment Purchases,500
http://statistics.data.gov.uk/id/local-authority/12UE,Huntingdonshire District Council,27/11/2014,159663,IN14024,5,41.15,Airquee Ltd,CR416900,One Leisure St Ives,Equipment Purchases,500
http://statistics.data.gov.uk/id/local-authority/12UE,Huntingdonshire District Council,06/11/2014,158644,IN13814,5,384,Airquee Ltd,CR416900,One Leisure St Ives,Equipment Purchases,500
http://statistics.data.gov.uk/id/local-authority/12UE,Huntingdonshire District Council,06/11/2014,158644,IN13814,5,27.43,Airquee Ltd,CR416900,One Leisure St Ives,Equipment Purchases,500
http://statistics.data.gov.uk/id/local-authority/12UE,Huntingdonshire District Council,09/10/2014,157108,IN13617,5,281.15,Airquee Ltd,CR416900,One Leisure St Ives,Equipment Purchases,500
http://statistics.data.gov.uk/id/local-authority/12UE,Huntingdonshire District Council,18/12/2014,160468,I112778,5,766.94,Oakham Ales,CR422253,One Leisure St Ives,Bar Provisions,558
http://statistics.data.gov.uk/id/local-authority/12UE,Huntingdonshire District Council,18/12/2014,159893,I112298,5,"1,632.52",Oakham Ales,CR422253,One Leisure St Ives,Bar Provisions,558
http://statistics.data.gov.uk/id/local-authority/12UE,Huntingdonshire District Council,27/11/2014,159480,I111601,5,966.38,Oakham Ales,CR422253,One Leisure St Ives,Bar Provisions,558
http://statistics.data.gov.uk/id/local-authority/12UE,Huntingdonshire District Council,27/11/2014,158491,I111067,5,251.71,Oakham Ales,CR422253,One Leisure St Ives,Bar Provisions,558
http://statistics.data.gov.uk/id/local-authority/12UE,Huntingdonshire District Council,30/10/2014,154480,I107241,5,314.64,Oakham Ales,CR422253,One Leisure St Ives,Bar Provisions,558
http://statistics.data.gov.uk/id/local-authority/12UE,Huntingdonshire District Council,16/10/2014,155771,GD290,5,"1,641.74",Greenday Energy Ltd,CR422398,One Leisure St Ives,Gas,421
http://statistics.data.gov.uk/id/local-authority/12UE,Huntingdonshire District Council,27/11/2014,159664,FRC2714,5,828,Fire Risk Consultancy,CR407187,One Leisure St Ives,Training - Operational,131
http://statistics.data.gov.uk/id/local-authority/12UE,Huntingdonshire District Council,20/11/2014,158173,FE16893,5,283.5,First Editions Ltd,CR411973,One Leisure St Ives,Materials For Resale,570
http://statistics.data.gov.uk/id/local-authority/12UE,Huntingdonshire District Council,16/10/2014,157060,CD970114615,5,456,Sherriff Amenity Services,CR416316,One Leisure St Ives,Grounds Mtce Contractors,351
http://statistics.data.gov.uk/id/local-authority/12UE,Huntingdonshire District Council,04/12/2014,158873,CD1401401,5,495,Performance Health Systems Ltd,CR455618,One Leisure St Ives,Training - Operational,131
http://statistics.data.gov.uk/id/local-authority/12UE,Huntingdonshire District Council,18/12/2014,159903,C322757,5,"1,230.00",First In Service Ltd,CR422285,One Leisure St Ives,Gen Building Mtce - Planned,304
http://statistics.data.gov.uk/id/local-authority/12UE,Huntingdonshire District Council,04/12/2014,160311,BURGESS HALL,5,950,Monitor Music Ltd,CR422667,One Leisure St Ives,Entertainments Inc Cable Tv,744
http://statistics.data.gov.uk/id/local-authority/12UE,Huntingdonshire District Council,27/11/2014,159851,BOOGIE NIGHT,5,"1,171.03",Starlite Roadshow,CR024127,One Leisure St Ives,Entertainments Inc Cable Tv,744
http://statistics.data.gov.uk/id/local-authority/12UE,Huntingdonshire District Council,18/12/2014,159892,8469 8449,5,661.92,Safe Secure Locker Services Ltd,CR478312,One Leisure St Ives,Gen Building Mtce - Planned,304
http://statistics.data.gov.uk/id/local-authority/12UE,Huntingdonshire District Council,04/12/2014,159054,742878104/1114,5,9.6,Virgin Media Business,CR033120,One Leisure St Ives,I T Line Rental,248
http://statistics.data.gov.uk/id/local-authority/12UE,Huntingdonshire District Council,04/12/2014,159054,742878104/1114,5,0.13,Virgin Media Business,CR033120,One Leisure St Ives,Telephone Charges,240
http://statistics.data.gov.uk/id/local-authority/12UE,Huntingdonshire District Council,02/10/2014,155453,742878104/0914,5,9.6,Virgin Media Business,CR033120,One Leisure St Ives,I T Line Rental,248
http://statistics.data.gov.uk/id/local-authority/12UE,Huntingdonshire District Council,02/10/2014,155453,742878104/0914,5,0.08,Virgin Media Business,CR033120,One Leisure St Ives,Telephone Charges,240
http://statistics.data.gov.uk/id/local-authority/12UE,Huntingdonshire District Council,04/12/2014,160263,5380P,5,864,Speed Alloys,CR422665,One Leisure St Ives,Gen Building Mtce - Responsive,303
http://statistics.data.gov.uk/id/local-authority/12UE,Huntingdonshire District Council,23/10/2014,156786,44SI 545039,5,"1,342.44",Brenntag Uk Ltd,CR015017,One Leisure St Ives,Chemicals,551
http://statistics.data.gov.uk/id/local-authority/12UE,Huntingdonshire District Council,23/10/2014,156823,281C03206,5,419.22,Biffa Waste Services Ltd,CR416469,One Leisure St Ives,Waste Disposal,763
http://statistics.data.gov.uk/id/local-authority/12UE,Huntingdonshire District Council,16/10/2014,155996,26156/4663,5,"2,160.00",J Breheny Contractors Ltd,CR000314,One Leisure St Ives,Sitework,359
http://statistics.data.gov.uk/id/local-authority/12UE,Huntingdonshire District Council,18/12/2014,160561,2014/262,5,283.75,The Cambridge Chair Cover Company,CR455385,One Leisure St Ives,Equipment Hire,507
http://statistics.data.gov.uk/id/local-authority/12UE,Huntingdonshire District Council,11/12/2014,159746,15/2010,5,59.94,Apt Ltd,CR456018,One Leisure St Ives,Software,206
http://statistics.data.gov.uk/id/local-authority/12UE,Huntingdonshire District Council,30/10/2014,157038,7.42878E+11,5,9.6,Virgin Media Business,CR033120,One Leisure St Ives,I T Line Rental,248
http://statistics.data.gov.uk/id/local-authority/12UE,Huntingdonshire District Council,30/10/2014,157038,7.42878E+11,5,0.04,Virgin Media Business,CR033120,One Leisure St Ives,Telephone Charges,240
http://statistics.data.gov.uk/id/local-authority/12UE,Huntingdonshire District Council,18/12/2014,160692,74287104001,5,9.6,Virgin Media Business,CR033120,One Leisure St Ives,I T Line Rental,248
http://statistics.data.gov.uk/id/local-authority/12UE,Huntingdonshire District Council,18/12/2014,160692,74287104001,5,0.1,Virgin Media Business,CR033120,One Leisure St Ives,Telephone Charges,240
http://statistics.data.gov.uk/id/local-authority/12UE,Huntingdonshire District Council,18/12/2014,160912,12489090950,5,"6,586.96",E-On Energy,CR416430,One Leisure St Ives,Gas,421
http://statistics.data.gov.uk/id/local-authority/12UE,Huntingdonshire District Council,13/11/2014,158843,12489090950,5,"6,438.08",E-On Energy,CR416430,One Leisure St Ives,Gas,421
http://statistics.data.gov.uk/id/local-authority/12UE,Huntingdonshire District Council,16/10/2014,157297,12489090950,5,"1,885.32",E-On Energy,CR416430,One Leisure St Ives,Gas,421
http://statistics.data.gov.uk/id/local-authority/12UE,Huntingdonshire District Council,18/12/2014,160909,12489089510,5,947.29,E-On Energy,CR416430,One Leisure St Ives,Gas,421
http://statistics.data.gov.uk/id/local-authority/12UE,Huntingdonshire District Council,13/11/2014,158849,12489089510,5,444.54,E-On Energy,CR416430,One Leisure St Ives,Gas,421
http://statistics.data.gov.uk/id/local-authority/12UE,Huntingdonshire District Council,16/10/2014,157298,12489089510,5,346.92,E-On Energy,CR416430,One Leisure St Ives,Gas,421
http://statistics.data.gov.uk/id/local-authority/12UE,Huntingdonshire District Council,30/10/2014,156820,7080445688,5,553.62,Honeywell Novar Systems,CR406826,One Leisure St Ives,Equipment Maintenance,511
http://statistics.data.gov.uk/id/local-authority/12UE,Huntingdonshire District Council,23/10/2014,156833,7080444881,5,276.04,Honeywell Novar Systems,CR406826,One Leisure St Ives,Equipment Maintenance,511
http://statistics.data.gov.uk/id/local-authority/12UE,Huntingdonshire District Council,16/10/2014,157122,6006503000,5,"4,354.53",Cambridge Water Plc,CR000172,One Leisure St Ives,Water,432
http://statistics.data.gov.uk/id/local-authority/12UE,Huntingdonshire District Council,18/12/2014,161086,4203214328,5,381.6,Glaxosmithkline,CR010424,One Leisure St Ives,Vending Materials,560
http://statistics.data.gov.uk/id/local-authority/12UE,Huntingdonshire District Council,18/12/2014,160296,4203172660,5,288,Glaxosmithkline,CR010424,One Leisure St Ives,Vending Materials,560
http://statistics.data.gov.uk/id/local-authority/12UE,Huntingdonshire District Council,23/10/2014,157626,4203088277,5,288,Glaxosmithkline,CR010424,One Leisure St Ives,Vending Materials,560
http://statistics.data.gov.uk/id/local-authority/12UE,Huntingdonshire District Council,23/10/2014,157625,4203045067,5,288,Glaxosmithkline,CR010424,One Leisure St Ives,Vending Materials,560
http://statistics.data.gov.uk/id/local-authority/12UE,Huntingdonshire District Council,18/12/2014,160506,2101793513,5,368.33,Booker Cash And Carry,CR027611,One Leisure St Ives,Bar Provisions,558
http://statistics.data.gov.uk/id/local-authority/12UE,Huntingdonshire District Council,18/12/2014,160507,2101793324,5,"1,481.06",Booker Cash And Carry,CR027611,One Leisure St Ives,Bar Provisions,558
http://statistics.data.gov.uk/id/local-authority/12UE,Huntingdonshire District Council,18/12/2014,160507,2101793324,5,105.46,Booker Cash And Carry,CR027611,One Leisure St Ives,Materials,550
http://statistics.data.gov.uk/id/local-authority/12UE,Huntingdonshire District Council,11/12/2014,160179,2101784131,5,"1,325.41",Booker Cash And Carry,CR027611,One Leisure St Ives,Bar Provisions,558
http://statistics.data.gov.uk/id/local-authority/12UE,Huntingdonshire District Council,11/12/2014,160179,2101784131,5,460.03,Booker Cash And Carry,CR027611,One Leisure St Ives,Catering Materials,559
http://statistics.data.gov.uk/id/local-authority/12UE,Huntingdonshire District Council,11/12/2014,160182,2101781801,5,-249.44,Booker Cash And Carry,CR027611,One Leisure St Ives,Catering Materials,559
http://statistics.data.gov.uk/id/local-authority/12UE,Huntingdonshire District Council,11/12/2014,159864,2101775208,5,423.72,Booker Cash And Carry,CR027611,One Leisure St Ives,Bar Provisions,558
http://statistics.data.gov.uk/id/local-authority/12UE,Huntingdonshire District Council,11/12/2014,159864,2101775208,5,534.42,Booker Cash And Carry,CR027611,One Leisure St Ives,Catering Materials,559
http://statistics.data.gov.uk/id/local-authority/12UE,Huntingdonshire District Council,11/12/2014,159864,2101775208,5,24.71,Booker Cash And Carry,CR027611,One Leisure St Ives,Materials,550
http://statistics.data.gov.uk/id/local-authority/12UE,Huntingdonshire District Council,27/11/2014,159493,2101764515,5,"1,151.21",Booker Cash And Carry,CR027611,One Leisure St Ives,Bar Provisions,558
http://statistics.data.gov.uk/id/local-authority/12UE,Huntingdonshire District Council,27/11/2014,159493,2101764515,5,417.57,Booker Cash And Carry,CR027611,One Leisure St Ives,Catering Materials,559
http://statistics.data.gov.uk/id/local-authority/12UE,Huntingdonshire District Council,27/11/2014,159493,2101764515,5,12.24,Booker Cash And Carry,CR027611,One Leisure St Ives,Materials,550
http://statistics.data.gov.uk/id/local-authority/12UE,Huntingdonshire District Council,27/11/2014,158653,2101755971,5,338.83,Booker Cash And Carry,CR027611,One Leisure St Ives,Bar Provisions,558
http://statistics.data.gov.uk/id/local-authority/12UE,Huntingdonshire District Council,27/11/2014,158653,2101755971,5,35.71,Booker Cash And Carry,CR027611,One Leisure St Ives,Catering Materials,559
http://statistics.data.gov.uk/id/local-authority/12UE,Huntingdonshire District Council,27/11/2014,158653,2101755971,5,62.24,Booker Cash And Carry,CR027611,One Leisure St Ives,Confectionery,572
http://statistics.data.gov.uk/id/local-authority/12UE,Huntingdonshire District Council,27/11/2014,158653,2101755971,5,105.57,Booker Cash And Carry,CR027611,One Leisure St Ives,Materials,550
http://statistics.data.gov.uk/id/local-authority/12UE,Huntingdonshire District Council,20/11/2014,158495,2101746584,5,313.66,Booker Cash And Carry,CR027611,One Leisure St Ives,Bar Provisions,558
http://statistics.data.gov.uk/id/local-authority/12UE,Huntingdonshire District Council,20/11/2014,158495,2101746584,5,1.7,Booker Cash And Carry,CR027611,One Leisure St Ives,Catering Materials,559
http://statistics.data.gov.uk/id/local-authority/12UE,Huntingdonshire District Council,27/11/2014,158769,2101746519,5,341.47,Booker Cash And Carry,CR027611,One Leisure St Ives,Bar Provisions,558
http://statistics.data.gov.uk/id/local-authority/12UE,Huntingdonshire District Council,27/11/2014,158769,2101746519,5,279.68,Booker Cash And Carry,CR027611,One Leisure St Ives,Catering Materials,559
http://statistics.data.gov.uk/id/local-authority/12UE,Huntingdonshire District Council,13/11/2014,158018,2101736536,5,297.99,Booker Cash And Carry,CR027611,One Leisure St Ives,Bar Provisions,558
http://statistics.data.gov.uk/id/local-authority/12UE,Huntingdonshire District Council,13/11/2014,158018,2101736536,5,12.75,Booker Cash And Carry,CR027611,One Leisure St Ives,Catering Materials,559
http://statistics.data.gov.uk/id/local-authority/12UE,Huntingdonshire District Council,13/11/2014,158018,2101736536,5,19.78,Booker Cash And Carry,CR027611,One Leisure St Ives,Materials,550
http://statistics.data.gov.uk/id/local-authority/12UE,Huntingdonshire District Council,13/11/2014,158400,2101736373,5,221.07,Booker Cash And Carry,CR027611,One Leisure St Ives,Bar Provisions,558
http://statistics.data.gov.uk/id/local-authority/12UE,Huntingdonshire District Council,13/11/2014,158400,2101736373,5,12.75,Booker Cash And Carry,CR027611,One Leisure St Ives,Catering Materials,559
http://statistics.data.gov.uk/id/local-authority/12UE,Huntingdonshire District Council,13/11/2014,158400,2101736373,5,36.66,Booker Cash And Carry,CR027611,One Leisure St Ives,Cleaning Materials,443
http://statistics.data.gov.uk/id/local-authority/12UE,Huntingdonshire District Council,13/11/2014,158400,2101736373,5,10.52,Booker Cash And Carry,CR027611,One Leisure St Ives,Materials,550
http://statistics.data.gov.uk/id/local-authority/12UE,Huntingdonshire District Council,13/11/2014,158640,2101734843,5,217.03,Booker Cash And Carry,CR027611,One Leisure St Ives,Bar Provisions,558
http://statistics.data.gov.uk/id/local-authority/12UE,Huntingdonshire District Council,13/11/2014,158640,2101734843,5,64.46,Booker Cash And Carry,CR027611,One Leisure St Ives,Catering Materials,559
http://statistics.data.gov.uk/id/local-authority/12UE,Huntingdonshire District Council,13/11/2014,158640,2101734843,5,35.98,Booker Cash And Carry,CR027611,One Leisure St Ives,Cleaning Materials,443
http://statistics.data.gov.uk/id/local-authority/12UE,Huntingdonshire District Council,13/11/2014,158640,2101734843,5,96.16,Booker Cash And Carry,CR027611,One Leisure St Ives,Confectionery,572
http://statistics.data.gov.uk/id/local-authority/12UE,Huntingdonshire District Council,13/11/2014,158640,2101734843,5,154.53,Booker Cash And Carry,CR027611,One Leisure St Ives,Materials,550
http://statistics.data.gov.uk/id/local-authority/12UE,Huntingdonshire District Council,30/10/2014,157611,2101726071,5,643.36,Booker Cash And Carry,CR027611,One Leisure St Ives,Bar Provisions,558
http://statistics.data.gov.uk/id/local-authority/12UE,Huntingdonshire District Council,30/10/2014,157611,2101726071,5,270.31,Booker Cash And Carry,CR027611,One Leisure St Ives,Catering Materials,559
http://statistics.data.gov.uk/id/local-authority/12UE,Huntingdonshire District Council,30/10/2014,157611,2101726071,5,35.99,Booker Cash And Carry,CR027611,One Leisure St Ives,Confectionery,572
http://statistics.data.gov.uk/id/local-authority/12UE,Huntingdonshire District Council,30/10/2014,157611,2101726071,5,177.91,Booker Cash And Carry,CR027611,One Leisure St Ives,Materials,550
http://statistics.data.gov.uk/id/local-authority/12UE,Huntingdonshire District Council,30/10/2014,157613,2101717497,5,512.74,Booker Cash And Carry,CR027611,One Leisure St Ives,Bar Provisions,558
http://statistics.data.gov.uk/id/local-authority/12UE,Huntingdonshire District Council,30/10/2014,157613,2101717497,5,175.8,Booker Cash And Carry,CR027611,One Leisure St Ives,Catering Materials,559
http://statistics.data.gov.uk/id/local-authority/12UE,Huntingdonshire District Council,30/10/2014,157613,2101717497,5,20.37,Booker Cash And Carry,CR027611,One Leisure St Ives,Cleaning Materials,443
http://statistics.data.gov.uk/id/local-authority/12UE,Huntingdonshire District Council,30/10/2014,157613,2101717497,5,19.88,Booker Cash And Carry,CR027611,One Leisure St Ives,Confectionery,572
http://statistics.data.gov.uk/id/local-authority/12UE,Huntingdonshire District Council,23/10/2014,157265,2101707958,5,316.18,Booker Cash And Carry,CR027611,One Leisure St Ives,Bar Provisions,558
http://statistics.data.gov.uk/id/local-authority/12UE,Huntingdonshire District Council,23/10/2014,157265,2101707958,5,16,Booker Cash And Carry,CR027611,One Leisure St Ives,Catering Materials,559
http://statistics.data.gov.uk/id/local-authority/12UE,Huntingdonshire District Council,23/10/2014,157265,2101707958,5,76.14,Booker Cash And Carry,CR027611,One Leisure St Ives,Materials,550
http://statistics.data.gov.uk/id/local-authority/12UE,Huntingdonshire District Council,16/10/2014,156628,2101707000,5,330.41,Booker Cash And Carry,CR027611,One Leisure St Ives,Bar Provisions,558
http://statistics.data.gov.uk/id/local-authority/12UE,Huntingdonshire District Council,16/10/2014,156628,2101707000,5,136.38,Booker Cash And Carry,CR027611,One Leisure St Ives,Catering Materials,559
http://statistics.data.gov.uk/id/local-authority/12UE,Huntingdonshire District Council,16/10/2014,156628,2101707000,5,11.26,Booker Cash And Carry,CR027611,One Leisure St Ives,Confectionery,572
http://statistics.data.gov.uk/id/local-authority/12UE,Huntingdonshire District Council,16/10/2014,156628,2101707000,5,66.85,Booker Cash And Carry,CR027611,One Leisure St Ives,Materials,550
http://statistics.data.gov.uk/id/local-authority/12UE,Huntingdonshire District Council,16/10/2014,156413,2101699210,5,190.88,Booker Cash And Carry,CR027611,One Leisure St Ives,Bar Provisions,558
http://statistics.data.gov.uk/id/local-authority/12UE,Huntingdonshire District Council,16/10/2014,156413,2101699210,5,685.7,Booker Cash And Carry,CR027611,One Leisure St Ives,Catering Materials,559
http://statistics.data.gov.uk/id/local-authority/12UE,Huntingdonshire District Council,16/10/2014,156413,2101699210,5,21.46,Booker Cash And Carry,CR027611,One Leisure St Ives,Cleaning Materials,443
http://statistics.data.gov.uk/id/local-authority/12UE,Huntingdonshire District Council,16/10/2014,156413,2101699210,5,77.94,Booker Cash And Carry,CR027611,One Leisure St Ives,Materials,550
http://statistics.data.gov.uk/id/local-authority/12UE,Huntingdonshire District Council,09/10/2014,156528,2101690101,5,543.11,Booker Cash And Carry,CR027611,One Leisure St Ives,Bar Provisions,558
http://statistics.data.gov.uk/id/local-authority/12UE,Huntingdonshire District Council,09/10/2014,156528,2101690101,5,458.68,Booker Cash And Carry,CR027611,One Leisure St Ives,Catering Materials,559
http://statistics.data.gov.uk/id/local-authority/12UE,Huntingdonshire District Council,09/10/2014,156528,2101690101,5,7.18,Booker Cash And Carry,CR027611,One Leisure St Ives,Cleaning Materials,443
http://statistics.data.gov.uk/id/local-authority/12UE,Huntingdonshire District Council,09/10/2014,156528,2101690101,5,136.08,Booker Cash And Carry,CR027611,One Leisure St Ives,Confectionery,572
http://statistics.data.gov.uk/id/local-authority/12UE,Huntingdonshire District Council,09/10/2014,156528,2101690101,5,74.61,Booker Cash And Carry,CR027611,One Leisure St Ives,Materials,550
http://statistics.data.gov.uk/id/local-authority/12UE,Huntingdonshire District Council,09/10/2014,156045,2101690018,5,72.56,Booker Cash And Carry,CR027611,One Leisure St Ives,Bar Provisions,558
http://statistics.data.gov.uk/id/local-authority/12UE,Huntingdonshire District Council,09/10/2014,156045,2101690018,5,206.82,Booker Cash And Carry,CR027611,One Leisure St Ives,Materials,550
http://statistics.data.gov.uk/id/local-authority/12UE,Huntingdonshire District Council,11/12/2014,159847,1147229796,5,12.8,Orange Airtime,CR455799,One Leisure St Ives,Mobile Telephones & Radios,241
http://statistics.data.gov.uk/id/local-authority/12UE,Huntingdonshire District Council,13/11/2014,157821,1138945952,5,12.79,Orange Airtime,CR455799,One Leisure St Ives,Mobile Telephones & Radios,241
http://statistics.data.gov.uk/id/local-authority/12UE,Huntingdonshire District Council,16/10/2014,156170,1130284308,5,12.79,Orange Airtime,CR455799,One Leisure St Ives,Mobile Telephones & Radios,241
http://statistics.data.gov.uk/id/local-authority/12UE,Huntingdonshire District Council,23/10/2014,156607,1114806920,5,407.81,Konica Minolta,CR478866,One Leisure St Ives,Other Office Equipment,209
http://statistics.data.gov.uk/id/local-authority/12UE,Huntingdonshire District Council,04/12/2014,159878,1020905466,5,485.83,Siemens Energy Services,CR411563,One Leisure St Ives,Electricity,420
http://statistics.data.gov.uk/id/local-authority/12UE,Huntingdonshire District Council,18/12/2014,160116,991141225,5,"1,178.76",Abel Alarm Company Ltd,CR000201,One Leisure St Ives,Security,450
http://statistics.data.gov.uk/id/local-authority/12UE,Huntingdonshire District Council,11/12/2014,159049,963228624,5,131.78,Office Depot Uk Ltd,CR455229,One Leisure St Ives,Stationery,225
http://statistics.data.gov.uk/id/local-authority/12UE,Huntingdonshire District Council,11/12/2014,159049,963228624,5,155.21,Office Depot Uk Ltd,CR455229,One Leisure St Ives,Stationery,225
http://statistics.data.gov.uk/id/local-authority/12UE,Huntingdonshire District Council,18/12/2014,160469,311008492,5,"1,059.60",Abel Alarm Company Ltd,CR000201,One Leisure St Ives,Security,450
http://statistics.data.gov.uk/id/local-authority/12UE,Huntingdonshire District Council,13/11/2014,158628,311008425,5,540,Abel Alarm Company Ltd,CR000201,One Leisure St Ives,Security,450
http://statistics.data.gov.uk/id/local-authority/12UE,Huntingdonshire District Council,20/11/2014,158482,126870567,5,"7,021.39",Anglian Water,CR000071,One Leisure St Ives,Water,432
http://statistics.data.gov.uk/id/local-authority/12UE,Huntingdonshire District Council,06/11/2014,157438,61737444,5,-341.96,Phs Group Ltd,CR032018,One Leisure St Ives,Equipment Hire,507
http://statistics.data.gov.uk/id/local-authority/12UE,Huntingdonshire District Council,23/10/2014,157375,54844262,5,270,Archant Herts & Cambs,CR415764,One Leisure St Ives,Advertising/Promoting Services,255
http://statistics.data.gov.uk/id/local-authority/12UE,Huntingdonshire District Council,04/12/2014,160123,27280317,5,657.6,Sky Business,CR033259,One Leisure St Ives,Entertainments Inc Cable Tv,744
http://statistics.data.gov.uk/id/local-authority/12UE,Huntingdonshire District Council,06/11/2014,158424,26477100,5,605.59,Sky Business,CR033259,One Leisure St Ives,Entertainments Inc Cable Tv,744
http://statistics.data.gov.uk/id/local-authority/12UE,Huntingdonshire District Council,02/10/2014,156180,25565715,5,597.6,Sky Business,CR033259,One Leisure St Ives,Entertainments Inc Cable Tv,744
http://statistics.data.gov.uk/id/local-authority/12UE,Huntingdonshire District Council,18/12/2014,160571,14014216,5,729.32,Technogym Uk Ltd,CR033037,One Leisure St Ives,Equipment Maintenance,511
http://statistics.data.gov.uk/id/local-authority/12UE,Huntingdonshire District Council,13/11/2014,158648,14012668,5,18,Technogym Uk Ltd,CR033037,One Leisure St Ives,Equipment Purchases,500
http://statistics.data.gov.uk/id/local-authority/12UE,Huntingdonshire District Council,13/11/2014,158648,14012668,5,"4,110.00",Technogym Uk Ltd,CR033037,One Leisure St Ives,Equipment Purchases,500
http://statistics.data.gov.uk/id/local-authority/12UE,Huntingdonshire District Council,13/11/2014,158647,14012644,5,18,Technogym Uk Ltd,CR033037,One Leisure St Ives,Equipment Maintenance,511
http://statistics.data.gov.uk/id/local-authority/12UE,Huntingdonshire District Council,13/11/2014,158647,14012644,5,370.72,Technogym Uk Ltd,CR033037,One Leisure St Ives,Equipment Maintenance,511
http://statistics.data.gov.uk/id/local-authority/12UE,Huntingdonshire District Council,27/11/2014,159669,3359596,5,"1,231.88",Certas Energy T/A Pace Fuelcare,CR455975,One Leisure St Ives,Diesel,615
http://statistics.data.gov.uk/id/local-authority/12UE,Huntingdonshire District Council,18/12/2014,161057,2152886,5,269.24,Glaxosmithkline,CR010424,One Leisure St Ives,Bar Provisions,558
http://statistics.data.gov.uk/id/local-authority/12UE,Huntingdonshire District Council,18/12/2014,161060,2152884,5,490.84,Glaxosmithkline,CR010424,One Leisure St Ives,Vending Materials,560
http://statistics.data.gov.uk/id/local-authority/12UE,Huntingdonshire District Council,18/12/2014,159630,2146036,5,427.37,Glaxosmithkline,CR010424,One Leisure St Ives,Vending Materials,560
http://statistics.data.gov.uk/id/local-authority/12UE,Huntingdonshire District Council,13/11/2014,157424,2136221,5,332.71,Glaxosmithkline,CR010424,One Leisure St Ives,Vending Materials,560
http://statistics.data.gov.uk/id/local-authority/12UE,Huntingdonshire District Council,16/10/2014,156093,2129273,5,451.1,Glaxosmithkline,CR010424,One Leisure St Ives,Vending Materials,560
http://statistics.data.gov.uk/id/local-authority/12UE,Huntingdonshire District Council,18/12/2014,160178,1780166,1,287.64,Espo,CR006566,One Leisure St Ives,Cleaning Materials,443
http://statistics.data.gov.uk/id/local-authority/12UE,Huntingdonshire District Council,13/11/2014,158430,1726502,1,354.34,Espo,CR006566,One Leisure St Ives,Cleaning Materials,443
http://statistics.data.gov.uk/id/local-authority/12UE,Huntingdonshire District Council,13/11/2014,158430,1726502,1,185.09,Espo,CR006566,One Leisure St Ives,Materials,550
http://statistics.data.gov.uk/id/local-authority/12UE,Huntingdonshire District Council,13/11/2014,158430,1726502,1,124.62,Espo,CR006566,One Leisure St Ives,Sports Equipment,524
http://statistics.data.gov.uk/id/local-authority/12UE,Huntingdonshire District Council,13/11/2014,158430,1726502,1,28.68,Espo,CR006566,One Leisure St Ives,Stationery,225
http://statistics.data.gov.uk/id/local-authority/12UE,Huntingdonshire District Council,13/11/2014,158058,1722550,1,304.8,Espo,CR006566,One Leisure St Ives,Equipment Purchases,500
http://statistics.data.gov.uk/id/local-authority/12UE,Huntingdonshire District Council,16/10/2014,156388,1657126,1,230.89,Espo,CR006566,One Leisure St Ives,Cleaning Materials,443
http://statistics.data.gov.uk/id/local-authority/12UE,Huntingdonshire District Council,16/10/2014,156388,1657126,1,219.92,Espo,CR006566,One Leisure St Ives,Materials,550
http://statistics.data.gov.uk/id/local-authority/12UE,Huntingdonshire District Council,02/10/2014,155646,1631752,1,36.53,Espo,CR006566,One Leisure St Ives,Cleaning Materials,443
http://statistics.data.gov.uk/id/local-authority/12UE,Huntingdonshire District Council,02/10/2014,155646,1631752,1,200.11,Espo,CR006566,One Leisure St Ives,Gen Building Mtce - Responsive,303
http://statistics.data.gov.uk/id/local-authority/12UE,Huntingdonshire District Council,02/10/2014,155646,1631752,1,35.76,Espo,CR006566,One Leisure St Ives,Materials,550
http://statistics.data.gov.uk/id/local-authority/12UE,Huntingdonshire District Council,02/10/2014,155646,1631752,1,16.68,Espo,CR006566,One Leisure St Ives,Stationery,225
http://statistics.data.gov.uk/id/local-authority/12UE,Huntingdonshire District Council,30/10/2014,157432,1212652,5,619.75,Burgin Ltd,CR482438,One Leisure St Ives,Gen Building Mtce - Responsive,303
http://statistics.data.gov.uk/id/local-authority/12UE,Huntingdonshire District Council,02/10/2014,156522,1212619,5,252,Burgin Ltd,CR482438,One Leisure St Ives,Plant & Equipment Maintenance,380
http://statistics.data.gov.uk/id/local-authority/12UE,Huntingdonshire District Council,04/12/2014,160259,1038994,5,80.1,Badgemaster,CR400716,One Leisure St Ives,Protective Clothing & Uniforms,163
http://statistics.data.gov.uk/id/local-authority/12UE,Huntingdonshire District Council,23/10/2014,156837,921101,5,223.06,Hedley Solutions Ltd,CR026816,One Leisure St Ives,Equipment Purchases,500
http://statistics.data.gov.uk/id/local-authority/12UE,Huntingdonshire District Council,11/12/2014,159701,720827,5,464.43,Ben Burgess & Company,CR453903,One Leisure St Ives,Vehicle Maintenance External,619
http://statistics.data.gov.uk/id/local-authority/12UE,Huntingdonshire District Council,30/10/2014,156818,605163,5,258.55,N & C Glass Ltd,CR415450,One Leisure St Ives,Gen Building Mtce - Planned,304
http://statistics.data.gov.uk/id/local-authority/12UE,Huntingdonshire District Council,18/12/2014,161181,546625,5,836.76,Brenntag Uk Ltd,CR015017,One Leisure St Ives,Chemicals,551
http://statistics.data.gov.uk/id/local-authority/12UE,Huntingdonshire District Council,18/12/2014,160665,535485,5,276.48,J V Trading Ltd,CR027698,One Leisure St Ives,Bar Provisions,558
http://statistics.data.gov.uk/id/local-authority/12UE,Huntingdonshire District Council,18/12/2014,160117,534452,5,337.43,J V Trading,CR422174,One Leisure St Ives,Bar Provisions,558
http://statistics.data.gov.uk/id/local-authority/12UE,Huntingdonshire District Council,18/12/2014,160117,534452,5,37.63,J V Trading,CR422174,One Leisure St Ives,Gas Cylinders (Incl. Bars),567
http://statistics.data.gov.uk/id/local-authority/12UE,Huntingdonshire District Council,11/12/2014,159654,533549,5,257.66,J V Trading,CR422174,One Leisure St Ives,Bar Provisions,558
http://statistics.data.gov.uk/id/local-authority/12UE,Huntingdonshire District Council,11/12/2014,159241,532615,5,235.19,J V Trading,CR422174,One Leisure St Ives,Bar Provisions,558
http://statistics.data.gov.uk/id/local-authority/12UE,Huntingdonshire District Council,11/12/2014,159241,532615,5,18.81,J V Trading,CR422174,One Leisure St Ives,Gas Cylinders (Incl. Bars),567
http://statistics.data.gov.uk/id/local-authority/12UE,Huntingdonshire District Council,04/12/2014,158766,531645,5,492.85,J V Trading,CR422174,One Leisure St Ives,Bar Provisions,558
http://statistics.data.gov.uk/id/local-authority/12UE,Huntingdonshire District Council,04/12/2014,158766,531645,5,37.63,J V Trading,CR422174,One Leisure St Ives,Gas Cylinders (Incl. Bars),567
http://statistics.data.gov.uk/id/local-authority/12UE,Huntingdonshire District Council,04/12/2014,159482,531436,5,926.56,J V Trading,CR422174,One Leisure St Ives,Bar Provisions,558
http://statistics.data.gov.uk/id/local-authority/12UE,Huntingdonshire District Council,04/12/2014,159482,531436,5,55.86,J V Trading,CR422174,One Leisure St Ives,Gas Cylinders (Incl. Bars),567
http://statistics.data.gov.uk/id/local-authority/12UE,Huntingdonshire District Council,06/11/2014,157270,527470,5,382.36,J V Trading,CR422174,One Leisure St Ives,Bar Provisions,558
http://statistics.data.gov.uk/id/local-authority/12UE,Huntingdonshire District Council,06/11/2014,157270,527470,5,37.63,J V Trading,CR422174,One Leisure St Ives,Gas Cylinders (Incl. Bars),567
http://statistics.data.gov.uk/id/local-authority/12UE,Huntingdonshire District Council,30/10/2014,156809,526468,5,345.69,J V Trading,CR422174,One Leisure St Ives,Bar Provisions,558
http://statistics.data.gov.uk/id/local-authority/12UE,Huntingdonshire District Council,30/10/2014,156809,526468,5,55.27,J V Trading,CR422174,One Leisure St Ives,Gas Cylinders (Incl. Bars),567
http://statistics.data.gov.uk/id/local-authority/12UE,Huntingdonshire District Council,30/10/2014,157273,526248,5,238.8,J V Trading,CR422174,One Leisure St Ives,Bar Provisions,558
http://statistics.data.gov.uk/id/local-authority/12UE,Huntingdonshire District Council,30/10/2014,157273,526248,5,55.86,J V Trading,CR422174,One Leisure St Ives,Gas Cylinders (Incl. Bars),567
http://statistics.data.gov.uk/id/local-authority/12UE,Huntingdonshire District Council,16/10/2014,156098,524490,5,549.5,J V Trading,CR422174,One Leisure St Ives,Bar Provisions,558
http://statistics.data.gov.uk/id/local-authority/12UE,Huntingdonshire District Council,09/10/2014,155647,523464,5,345.68,J V Trading,CR422174,One Leisure St Ives,Bar Provisions,558
http://statistics.data.gov.uk/id/local-authority/12UE,Huntingdonshire District Council,02/10/2014,155633,522235,5,552.48,J V Trading,CR422174,One Leisure St Ives,Bar Provisions,558
http://statistics.data.gov.uk/id/local-authority/12UE,Huntingdonshire District Council,18/12/2014,161172,422221,5,468.72,Heasell Electromechanical Services Ltd,CR422407,One Leisure St Ives,Plant & Equipment Maintenance,380
http://statistics.data.gov.uk/id/local-authority/12UE,Huntingdonshire District Council,27/11/2014,158649,422046,5,528.72,Heasell Electromechanical Services Ltd,CR422407,One Leisure St Ives,Plant & Equipment Maintenance,380
http://statistics.data.gov.uk/id/local-authority/12UE,Huntingdonshire District Council,09/10/2014,157105,358047,5,624.74,Swimrite Supplies Ltd (Srs Leisure),CR478711,One Leisure St Ives,Materials For Resale,570
http://statistics.data.gov.uk/id/local-authority/12UE,Huntingdonshire District Council,09/10/2014,157104,357072,5,475.5,Swimrite Supplies Ltd (Srs Leisure),CR478711,One Leisure St Ives,Materials For Resale,570
http://statistics.data.gov.uk/id/local-authority/12UE,Huntingdonshire District Council,11/12/2014,160170,289387,5,65.95,Pilgrim Foodservice Ltd,CR455695,One Leisure St Ives,Bar Provisions,558
http://statistics.data.gov.uk/id/local-authority/12UE,Huntingdonshire District Council,11/12/2014,160170,289387,5,85.8,Pilgrim Foodservice Ltd,CR455695,One Leisure St Ives,Catering Materials,559
http://statistics.data.gov.uk/id/local-authority/12UE,Huntingdonshire District Council,11/12/2014,160170,289387,5,19.5,Pilgrim Foodservice Ltd,CR455695,One Leisure St Ives,Confectionery,572
http://statistics.data.gov.uk/id/local-authority/12UE,Huntingdonshire District Council,11/12/2014,160170,289387,5,83.95,Pilgrim Foodservice Ltd,CR455695,One Leisure St Ives,Materials,550
http://statistics.data.gov.uk/id/local-authority/12UE,Huntingdonshire District Council,18/12/2014,160572,279398,5,34.16,South Lincs Food Service,CR033415,One Leisure St Ives,Bar Provisions,558
http://statistics.data.gov.uk/id/local-authority/12UE,Huntingdonshire District Council,18/12/2014,160572,279398,5,569.75,South Lincs Food Service,CR033415,One Leisure St Ives,Catering Materials,559
http://statistics.data.gov.uk/id/local-authority/12UE,Huntingdonshire District Council,06/11/2014,158573,268479,5,111.98,Pilgrim Foodservice Ltd,CR455695,One Leisure St Ives,Bar Provisions,558
http://statistics.data.gov.uk/id/local-authority/12UE,Huntingdonshire District Council,06/11/2014,158573,268479,5,142.63,Pilgrim Foodservice Ltd,CR455695,One Leisure St Ives,Catering Materials,559
http://statistics.data.gov.uk/id/local-authority/12UE,Huntingdonshire District Council,06/11/2014,158573,268479,5,15.1,Pilgrim Foodservice Ltd,CR455695,One Leisure St Ives,Confectionery,572
http://statistics.data.gov.uk/id/local-authority/12UE,Huntingdonshire District Council,23/10/2014,157579,262695,5,248.57,South Lincs Food Service,CR033415,One Leisure St Ives,Catering Materials,559
http://statistics.data.gov.uk/id/local-authority/12UE,Huntingdonshire District Council,23/10/2014,157579,262695,5,10.75,South Lincs Food Service,CR033415,One Leisure St Ives,Confectionery,572
http://statistics.data.gov.uk/id/local-authority/12UE,Huntingdonshire District Council,02/10/2014,156531,257225,5,302.99,South Lincs Food Service,CR033415,One Leisure St Ives,Catering Materials,559
http://statistics.data.gov.uk/id/local-authority/12UE,Huntingdonshire District Council,04/12/2014,159239,168305,5,335.34,Franklins Group,CR478928,One Leisure St Ives,Badges And Certificates,571
http://statistics.data.gov.uk/id/local-authority/12UE,Huntingdonshire District Council,11/12/2014,159642,156531,5,406.24,Chemaide Ltd,CR413480,One Leisure St Ives,Cleaning Materials,443
http://statistics.data.gov.uk/id/local-authority/12UE,Huntingdonshire District Council,30/10/2014,156577,109530,5,440.5,Oakham Ales,CR422253,One Leisure St Ives,Bar Provisions,558
http://statistics.data.gov.uk/id/local-authority/12UE,Huntingdonshire District Council,09/10/2014,155651,102889,5,479.84,Lavat,CR480410,One Leisure St Ives,Consultants,711
http://statistics.data.gov.uk/id/local-authority/12UE,Huntingdonshire District Council,27/11/2014,158422,79317,5,293.1,Harry Dalby Engineering Ltd,CR455770,One Leisure St Ives,Gen Building Mtce - Responsive,303
http://statistics.data.gov.uk/id/local-authority/12UE,Huntingdonshire District Council,11/12/2014,159647,77624,5,600,Jsa Leisure Ltd,CR40187,One Leisure St Ives,Equipment Maintenance,511
http://statistics.data.gov.uk/id/local-authority/12UE,Huntingdonshire District Council,20/11/2014,158767,65922,5,"3,503.73",Haven Power Ltd,CR455940,One Leisure St Ives,Electricity,420
http://statistics.data.gov.uk/id/local-authority/12UE,Huntingdonshire District Council,23/10/2014,157087,65922,5,"3,257.29",Haven Power Ltd,CR455940,One Leisure St Ives,Electricity,420
http://statistics.data.gov.uk/id/local-authority/12UE,Huntingdonshire District Council,23/10/2014,157086,65919,5,"9,641.48",Haven Power Ltd,CR455940,One Leisure St Ives,Electricity,420
http://statistics.data.gov.uk/id/local-authority/12UE,Huntingdonshire District Council,18/12/2014,160484,65919,5,"8,120.99",Swalec,CR407130,One Leisure St Ives,Electricity,420
http://statistics.data.gov.uk/id/local-authority/12UE,Huntingdonshire District Council,24/12/2014,161540,65919,5,"8,120.99",Haven Power Ltd,CR455940,One Leisure St Ives,Electricity,420
http://statistics.data.gov.uk/id/local-authority/12UE,Huntingdonshire District Council,18/12/2014,161050,52440,5,663.36,Snackline Direct Ltd,CR478090,One Leisure St Ives,Vending Materials,560
http://statistics.data.gov.uk/id/local-authority/12UE,Huntingdonshire District Council,18/12/2014,161014,52434,5,155.88,Snackline Direct Ltd,CR478090,One Leisure St Ives,Bar Provisions,558
http://statistics.data.gov.uk/id/local-authority/12UE,Huntingdonshire District Council,18/12/2014,161014,52434,5,62.82,Snackline Direct Ltd,CR478090,One Leisure St Ives,Catering Materials,559
http://statistics.data.gov.uk/id/local-authority/12UE,Huntingdonshire District Council,18/12/2014,161014,52434,5,149.44,Snackline Direct Ltd,CR478090,One Leisure St Ives,Confectionery,572
http://statistics.data.gov.uk/id/local-authority/12UE,Huntingdonshire District Council,18/12/2014,160573,52221,5,77.94,Snackline Direct Ltd,CR478090,One Leisure St Ives,Bar Provisions,558
http://statistics.data.gov.uk/id/local-authority/12UE,Huntingdonshire District Council,18/12/2014,160573,52221,5,33.5,Snackline Direct Ltd,CR478090,One Leisure St Ives,Catering Materials,559
http://statistics.data.gov.uk/id/local-authority/12UE,Huntingdonshire District Council,18/12/2014,160573,52221,5,169.55,Snackline Direct Ltd,CR478090,One Leisure St Ives,Confectionery,572
http://statistics.data.gov.uk/id/local-authority/12UE,Huntingdonshire District Council,18/12/2014,160174,51776,5,187.06,Snackline Direct Ltd,CR478090,One Leisure St Ives,Bar Provisions,558
http://statistics.data.gov.uk/id/local-authority/12UE,Huntingdonshire District Council,18/12/2014,160174,51776,5,50.26,Snackline Direct Ltd,CR478090,One Leisure St Ives,Catering Materials,559
http://statistics.data.gov.uk/id/local-authority/12UE,Huntingdonshire District Council,18/12/2014,160174,51776,5,136.94,Snackline Direct Ltd,CR478090,One Leisure St Ives,Confectionery,572
http://statistics.data.gov.uk/id/local-authority/12UE,Huntingdonshire District Council,18/12/2014,160288,51479,5,416.7,Maskearaid Ind Supplies,CR033423,One Leisure St Ives,Cleaning Materials,443
http://statistics.data.gov.uk/id/local-authority/12UE,Huntingdonshire District Council,11/12/2014,159308,51330,5,171.47,Snackline Direct Ltd,CR478090,One Leisure St Ives,Bar Provisions,558
http://statistics.data.gov.uk/id/local-authority/12UE,Huntingdonshire District Council,11/12/2014,159308,51330,5,37.69,Snackline Direct Ltd,CR478090,One Leisure St Ives,Catering Materials,559
http://statistics.data.gov.uk/id/local-authority/12UE,Huntingdonshire District Council,11/12/2014,159308,51330,5,135.89,Snackline Direct Ltd,CR478090,One Leisure St Ives,Confectionery,572
http://statistics.data.gov.uk/id/local-authority/12UE,Huntingdonshire District Council,27/11/2014,158643,51201,5,172.51,Maskearaid Ind Supplies,CR033423,One Leisure St Ives,Cleaning Materials,443
http://statistics.data.gov.uk/id/local-authority/12UE,Huntingdonshire District Council,27/11/2014,158643,51201,5,244.19,Maskearaid Ind Supplies,CR033423,One Leisure St Ives,Cleaning Materials,443
http://statistics.data.gov.uk/id/local-authority/12UE,Huntingdonshire District Council,27/11/2014,158831,51096,5,124.7,Snackline Direct Ltd,CR478090,One Leisure St Ives,Bar Provisions,558
http://statistics.data.gov.uk/id/local-authority/12UE,Huntingdonshire District Council,27/11/2014,158831,51096,5,58.63,Snackline Direct Ltd,CR478090,One Leisure St Ives,Catering Materials,559
http://statistics.data.gov.uk/id/local-authority/12UE,Huntingdonshire District Council,27/11/2014,158831,51096,5,73.55,Snackline Direct Ltd,CR478090,One Leisure St Ives,Confectionery,572
http://statistics.data.gov.uk/id/local-authority/12UE,Huntingdonshire District Council,30/10/2014,157058,50894,5,416.7,Maskearaid Ind Supplies,CR033423,One Leisure St Ives,Cleaning Materials,443
http://statistics.data.gov.uk/id/local-authority/12UE,Huntingdonshire District Council,20/11/2014,158544,50882,5,140.28,Snackline Direct Ltd,CR478090,One Leisure St Ives,Bar Provisions,558
http://statistics.data.gov.uk/id/local-authority/12UE,Huntingdonshire District Council,20/11/2014,158544,50882,5,29.32,Snackline Direct Ltd,CR478090,One Leisure St Ives,Catering Materials,559
http://statistics.data.gov.uk/id/local-authority/12UE,Huntingdonshire District Council,20/11/2014,158544,50882,5,108.16,Snackline Direct Ltd,CR478090,One Leisure St Ives,Confectionery,572
http://statistics.data.gov.uk/id/local-authority/12UE,Huntingdonshire District Council,13/11/2014,158546,50651,5,140.29,Snackline Direct Ltd,CR478090,One Leisure St Ives,Bar Provisions,558
http://statistics.data.gov.uk/id/local-authority/12UE,Huntingdonshire District Council,13/11/2014,158546,50651,5,33.5,Snackline Direct Ltd,CR478090,One Leisure St Ives,Catering Materials,559
http://statistics.data.gov.uk/id/local-authority/12UE,Huntingdonshire District Council,13/11/2014,158546,50651,5,146.1,Snackline Direct Ltd,CR478090,One Leisure St Ives,Confectionery,572
http://statistics.data.gov.uk/id/local-authority/12UE,Huntingdonshire District Council,06/11/2014,157643,50432,5,140.29,Snackline Direct Ltd,CR478090,One Leisure St Ives,Bar Provisions,558
http://statistics.data.gov.uk/id/local-authority/12UE,Huntingdonshire District Council,06/11/2014,157643,50432,5,37.69,Snackline Direct Ltd,CR478090,One Leisure St Ives,Catering Materials,559
http://statistics.data.gov.uk/id/local-authority/12UE,Huntingdonshire District Council,06/11/2014,157643,50432,5,110.71,Snackline Direct Ltd,CR478090,One Leisure St Ives,Confectionery,572
http://statistics.data.gov.uk/id/local-authority/12UE,Huntingdonshire District Council,06/11/2014,157335,50416,5,534.62,Snackline Direct Ltd,CR478090,One Leisure St Ives,Vending Materials,560
http://statistics.data.gov.uk/id/local-authority/12UE,Huntingdonshire District Council,30/10/2014,157584,50197,5,202.64,Snackline Direct Ltd,CR478090,One Leisure St Ives,Bar Provisions,558
http://statistics.data.gov.uk/id/local-authority/12UE,Huntingdonshire District Council,30/10/2014,157584,50197,5,41.88,Snackline Direct Ltd,CR478090,One Leisure St Ives,Catering Materials,559
http://statistics.data.gov.uk/id/local-authority/12UE,Huntingdonshire District Council,30/10/2014,157584,50197,5,86.34,Snackline Direct Ltd,CR478090,One Leisure St Ives,Confectionery,572
http://statistics.data.gov.uk/id/local-authority/12UE,Huntingdonshire District Council,23/10/2014,156514,49964,5,218.23,Snackline Direct Ltd,CR478090,One Leisure St Ives,Bar Provisions,558
http://statistics.data.gov.uk/id/local-authority/12UE,Huntingdonshire District Council,23/10/2014,156514,49964,5,41.88,Snackline Direct Ltd,CR478090,One Leisure St Ives,Catering Materials,559
http://statistics.data.gov.uk/id/local-authority/12UE,Huntingdonshire District Council,23/10/2014,156514,49964,5,73.54,Snackline Direct Ltd,CR478090,One Leisure St Ives,Confectionery,572
http://statistics.data.gov.uk/id/local-authority/12UE,Huntingdonshire District Council,09/10/2014,156056,49493,5,155.88,Snackline Direct Ltd,CR478090,One Leisure St Ives,Bar Provisions,558
http://statistics.data.gov.uk/id/local-authority/12UE,Huntingdonshire District Council,09/10/2014,156056,49493,5,20.94,Snackline Direct Ltd,CR478090,One Leisure St Ives,Catering Materials,559
http://statistics.data.gov.uk/id/local-authority/12UE,Huntingdonshire District Council,09/10/2014,156056,49493,5,138.29,Snackline Direct Ltd,CR478090,One Leisure St Ives,Confectionery,572
http://statistics.data.gov.uk/id/local-authority/12UE,Huntingdonshire District Council,09/10/2014,156455,49488,5,400.02,Snackline Direct Ltd,CR478090,One Leisure St Ives,Vending Materials,560
http://statistics.data.gov.uk/id/local-authority/12UE,Huntingdonshire District Council,02/10/2014,156533,48629,5,497.34,Snackline Direct Ltd,CR478090,One Leisure St Ives,Vending Materials,560
http://statistics.data.gov.uk/id/local-authority/12UE,Huntingdonshire District Council,23/10/2014,156605,44261,5,991.5,Platform Service & Repair,CR422480,One Leisure St Ives,Equipment Maintenance,511
http://statistics.data.gov.uk/id/local-authority/12UE,Huntingdonshire District Council,09/10/2014,156994,03/10/2014,5,"1,250.00",2 Ton Productions,CR410213,One Leisure St Ives,Entertainments Inc Cable Tv,744
http://statistics.data.gov.uk/id/local-authority/12UE,Huntingdonshire District Council,06/11/2014,157634,41474,5,648,Technical Surfaces Ltd,CR031941,One Leisure St Ives,Grounds Mtce Contractors,351
http://statistics.data.gov.uk/id/local-authority/12UE,Huntingdonshire District Council,27/11/2014,159483,38712,5,300,Dings Entertainment,CR412228,One Leisure St Ives,Entertainments Inc Cable Tv,744
http://statistics.data.gov.uk/id/local-authority/12UE,Huntingdonshire District Council,13/11/2014,158220,38569,5,300,Dings Entertainment,CR412228,One Leisure St Ives,Entertainments Inc Cable Tv,744
http://statistics.data.gov.uk/id/local-authority/12UE,Huntingdonshire District Council,16/10/2014,157093,38444,5,300,Dings Entertainment,CR412228,One Leisure St Ives,Entertainments Inc Cable Tv,744
http://statistics.data.gov.uk/id/local-authority/12UE,Huntingdonshire District Council,09/10/2014,155686,38281,5,550,Dings Entertainment,CR412228,One Leisure St Ives,Entertainments Inc Cable Tv,744
http://statistics.data.gov.uk/id/local-authority/12UE,Huntingdonshire District Council,13/11/2014,157736,36650,5,356,Clanpress King'S Lynn Ltd,CR413516,One Leisure St Ives,Printing (External),220
http://statistics.data.gov.uk/id/local-authority/12UE,Huntingdonshire District Council,13/11/2014,157734,36636,5,252,Clanpress King'S Lynn Ltd,CR413516,One Leisure St Ives,Printing (External),220
http://statistics.data.gov.uk/id/local-authority/12UE,Huntingdonshire District Council,27/11/2014,159667,32113,5,"1,652.40",Mark Harrod Ltd,CR416142,One Leisure St Ives,Sports Equipment,524
http://statistics.data.gov.uk/id/local-authority/12UE,Huntingdonshire District Council,27/11/2014,159667,32113,5,142.2,Mark Harrod Ltd,CR416142,One Leisure St Ives,Sports Equipment,524
http://statistics.data.gov.uk/id/local-authority/12UE,Huntingdonshire District Council,09/10/2014,156135,13879,5,93.6,Bigprinting,CR416383,One Leisure St Ives,Printing (External),220
http://statistics.data.gov.uk/id/local-authority/12UE,Huntingdonshire District Council,09/10/2014,156134,13878,5,69.12,Bigprinting,CR416383,One Leisure St Ives,Printing (External),220
http://statistics.data.gov.uk/id/local-authority/12UE,Huntingdonshire District Council,02/10/2014,156524,13824,5,268.8,Bigprinting,CR416383,One Leisure St Ives,Printing (External),220
http://statistics.data.gov.uk/id/local-authority/12UE,Huntingdonshire District Council,02/10/2014,156525,13819,5,480,Bigprinting,CR416383,One Leisure St Ives,Printing (External),220
http://statistics.data.gov.uk/id/local-authority/12UE,Huntingdonshire District Council,18/12/2014,161126,11927,5,200.88,Jade Security Services Ltd,CR422256,One Leisure St Ives,Cash Collection,702
http://statistics.data.gov.uk/id/local-authority/12UE,Huntingdonshire District Council,27/11/2014,159012,11838,5,234.36,Jade Security Services Ltd,CR422256,One Leisure St Ives,Cash Collection,702
http://statistics.data.gov.uk/id/local-authority/12UE,Huntingdonshire District Council,04/12/2014,159861,9284,5,538.8,Roger Wilson Electronics,CR028041,One Leisure St Ives,Equipment Purchases,500
http://statistics.data.gov.uk/id/local-authority/12UE,Huntingdonshire District Council,04/12/2014,159861,9284,5,548.32,Roger Wilson Electronics,CR028041,One Leisure St Ives,Gen Building Mtce - Responsive,303
http://statistics.data.gov.uk/id/local-authority/12UE,Huntingdonshire District Council,04/12/2014,158857,9270,5,67.2,Roger Wilson Electronics,CR028041,One Leisure St Ives,Gen Building Mtce - Responsive,303
http://statistics.data.gov.uk/id/local-authority/12UE,Huntingdonshire District Council,04/12/2014,158857,9270,5,"1,716.48",Roger Wilson Electronics,CR028041,One Leisure St Ives,Gen Building Mtce - Responsive,303
http://statistics.data.gov.uk/id/local-authority/12UE,Huntingdonshire District Council,04/12/2014,158537,9265,5,326.7,Roger Wilson Electronics,CR028041,One Leisure St Ives,Gen Building Mtce - Responsive,303
http://statistics.data.gov.uk/id/local-authority/12UE,Huntingdonshire District Council,09/10/2014,156050,9237,5,478.92,Roger Wilson Electronics,CR028041,One Leisure St Ives,Gen Building Mtce - Responsive,303
http://statistics.data.gov.uk/id/local-authority/12UE,Huntingdonshire District Council,09/10/2014,155685,9229,5,822.72,Roger Wilson Electronics,CR028041,One Leisure St Ives,Equipment Purchases,500
http://statistics.data.gov.uk/id/local-authority/12UE,Huntingdonshire District Council,09/10/2014,155401,9227,5,"4,105.97",Roger Wilson Electronics,CR028041,One Leisure St Ives,Gen Building Mtce - Planned,304
http://statistics.data.gov.uk/id/local-authority/12UE,Huntingdonshire District Council,11/12/2014,160306,8219,5,400,Starlite Roadshow,CR024127,One Leisure St Ives,Entertainments Inc Cable Tv,744
http://statistics.data.gov.uk/id/local-authority/12UE,Huntingdonshire District Council,04/12/2014,160175,8217,5,"1,175.00",Starlite Roadshow,CR024127,One Leisure St Ives,Entertainments Inc Cable Tv,744
http://statistics.data.gov.uk/id/local-authority/12UE,Huntingdonshire District Council,04/12/2014,160175,8217,5,30,Starlite Roadshow,CR024127,One Leisure St Ives,Equipment Hire,507
http://statistics.data.gov.uk/id/local-authority/12UE,Huntingdonshire District Council,27/11/2014,158197,8210,5,280,Starlite Roadshow,CR024127,One Leisure St Ives,Entertainments Inc Cable Tv,744
http://statistics.data.gov.uk/id/local-authority/12UE,Huntingdonshire District Council,04/12/2014,158493,6856,5,"1,800.00",Blunderbus Theatre Co Ltd,CR422436,One Leisure St Ives,Entertainments Inc Cable Tv,744
http://statistics.data.gov.uk/id/local-authority/12UE,Huntingdonshire District Council,06/11/2014,156995,6797,5,"1,800.00",Blunderbus Theatre Co Ltd,CR422436,One Leisure St Ives,Entertainments Inc Cable Tv,744
http://statistics.data.gov.uk/id/local-authority/12UE,Huntingdonshire District Council,13/11/2014,157870,5139,5,214.8,Cfb Limited,CR480886,One Leisure St Ives,Advertising/Promoting Services,255
http://statistics.data.gov.uk/id/local-authority/12UE,Huntingdonshire District Council,30/10/2014,158172,4995,5,300,Symmetry Dpm Ltd,CR453960,One Leisure St Ives,Advertising/Promoting Services,255
http://statistics.data.gov.uk/id/local-authority/12UE,Huntingdonshire District Council,02/10/2014,155323,4242,5,450,Essex Commercial Upholstery Ltd,CR422467,One Leisure St Ives,Gen Building Mtce - Responsive,303
http://statistics.data.gov.uk/id/local-authority/12UE,Huntingdonshire District Council,18/12/2014,160664,3533,5,"3,000.00",Entertainers Agency Ltd,CR403285,One Leisure St Ives,Entertainments Inc Cable Tv,744
http://statistics.data.gov.uk/id/local-authority/12UE,Huntingdonshire District Council,20/11/2014,158403,3215,5,"1,992.82",Brian Shaw Concerts,CR422269,One Leisure St Ives,Entertainments Inc Cable Tv,744
http://statistics.data.gov.uk/id/local-authority/12UE,Huntingdonshire District Council,23/10/2014,156544,2079,5,52,Bonkers About Babies,CR416298,One Leisure St Ives,Advertising/Promoting Services,255
http://statistics.data.gov.uk/id/local-authority/12UE,Huntingdonshire District Council,06/11/2014,158393,1737,5,330,The Wedding Planner,CR482566,One Leisure St Ives,Advertising/Promoting Services,255
http://statistics.data.gov.uk/id/local-authority/12UE,Huntingdonshire District Council,30/10/2014,157360,1165,5,217.62,Jade Security Services Ltd,CR422256,One Leisure St Ives,Cash Collection,702
http://statistics.data.gov.uk/id/local-authority/12UE,Huntingdonshire District Council,23/10/2014,156813,417,5,"1,674.00",Pool Maintenance Ltd,CR422505,One Leisure St Ives,Plant & Equipment Maintenance,380
http://statistics.data.gov.uk/id/local-authority/12UE,Huntingdonshire District Council,18/12/2014,160874,19,5,442.8,Bigday Catering,CR453802,One Leisure St Ives,Catering,710
http://statistics.data.gov.uk/id/local-authority/12UE,Huntingdonshire District Council,18/12/2014,160875,18,5,"6,794.98",Bigday Catering,CR453802,One Leisure St Ives,Catering,710
http://statistics.data.gov.uk/id/local-authority/12UE,Huntingdonshire District Council,18/12/2014,160876,17,5,"4,155.04",Bigday Catering,CR453802,One Leisure St Ives,Catering,710
http://statistics.data.gov.uk/id/local-authority/12UE,Huntingdonshire District Council,18/12/2014,160301,SIN496415,5,268.38,Corporate Trends,CR415966,One Leisure Sawtry,Protective Clothing & Uniforms,163
http://statistics.data.gov.uk/id/local-authority/12UE,Huntingdonshire District Council,18/12/2014,160977,SIN037875,5,520,Institute Of Qualified Lifeguards,CR403387,One Leisure Sawtry,Training - Operational,131
http://statistics.data.gov.uk/id/local-authority/12UE,Huntingdonshire District Council,06/11/2014,157867,SIN037006,5,642,Iql Uk Ltd,CR415623,One Leisure Sawtry,Materials,550
http://statistics.data.gov.uk/id/local-authority/12UE,Huntingdonshire District Council,27/11/2014,158634,SIN001225,5,"1,284.18",Enterprise Support Services Uk Ltd,CR422509,One Leisure Sawtry,Building Cleaning Internal,440
http://statistics.data.gov.uk/id/local-authority/12UE,Huntingdonshire District Council,27/11/2014,158457,Q/1000078920146,5,65,Institute Of Qualified Lifeguards,CR403387,One Leisure Sawtry,Licences,730
http://statistics.data.gov.uk/id/local-authority/12UE,Huntingdonshire District Council,02/10/2014,154425,P-S1606981,5,81.6,Rajapack Ltd,CR480770,One Leisure Sawtry,Printing (External),220
http://statistics.data.gov.uk/id/local-authority/12UE,Huntingdonshire District Council,23/10/2014,157433,INV533504,5,"1,089.30",Ecocleen Services Limited,CR406985,One Leisure Sawtry,Building Cleaning Internal,440
http://statistics.data.gov.uk/id/local-authority/12UE,Huntingdonshire District Council,13/11/2014,158980,GM9895,5,743.57,Garner Medical Ltd,CR003972,One Leisure Sawtry,Plant & Equipment Maintenance,380
http://statistics.data.gov.uk/id/local-authority/12UE,Huntingdonshire District Council,20/11/2014,158173,FE16893,5,141.74,First Editions Ltd,CR411973,One Leisure Sawtry,Materials For Resale,570
http://statistics.data.gov.uk/id/local-authority/12UE,Huntingdonshire District Council,16/10/2014,156176,CH/14/TA 1005,5,560,Chris Howes,CR422556,One Leisure Sawtry,Training - Operational,131
http://statistics.data.gov.uk/id/local-authority/12UE,Huntingdonshire District Council,18/12/2014,159903,C322757,5,984,First In Service Ltd,CR422285,One Leisure Sawtry,Gen Building Mtce - Planned,304
http://statistics.data.gov.uk/id/local-authority/12UE,Huntingdonshire District Council,02/10/2014,156457,8665DC,5,959.67,Asp,CR455201,One Leisure Sawtry,Software,206
http://statistics.data.gov.uk/id/local-authority/12UE,Huntingdonshire District Council,11/12/2014,160492,44SI545773,5,674.49,Brenntag Uk Ltd,CR015017,One Leisure Sawtry,Chemicals,551
http://statistics.data.gov.uk/id/local-authority/12UE,Huntingdonshire District Council,18/12/2014,160982,44SI/545773,5,674.49,Brenntag Uk Ltd,CR015017,One Leisure Sawtry,Chemicals,551
http://statistics.data.gov.uk/id/local-authority/12UE,Huntingdonshire District Council,30/10/2014,158024,15170E,5,"1,593.60",Leisure Database Company,CR479551,One Leisure Sawtry,Advertising/Promoting Services,255
http://statistics.data.gov.uk/id/local-authority/12UE,Huntingdonshire District Council,11/12/2014,159746,15/2010,5,59.94,Apt Ltd,CR456018,One Leisure Sawtry,Software,206
http://statistics.data.gov.uk/id/local-authority/12UE,Huntingdonshire District Council,30/10/2014,157610,21017224205,5,476.64,Booker Cash And Carry,CR027611,One Leisure Sawtry,Vending Materials,560
http://statistics.data.gov.uk/id/local-authority/12UE,Huntingdonshire District Council,18/12/2014,160907,12489088700,5,"1,967.83",E-On Energy,CR416430,One Leisure Sawtry,Gas,421
http://statistics.data.gov.uk/id/local-authority/12UE,Huntingdonshire District Council,13/11/2014,158835,12489088700,5,"1,799.11",E-On Energy,CR416430,One Leisure Sawtry,Gas,421
http://statistics.data.gov.uk/id/local-authority/12UE,Huntingdonshire District Council,16/10/2014,157299,12489088700,5,"1,621.56",E-On Energy,CR416430,One Leisure Sawtry,Gas,421
http://statistics.data.gov.uk/id/local-authority/12UE,Huntingdonshire District Council,13/11/2014,158836,12489088540,5,327.28,E-On Energy,CR416430,One Leisure Sawtry,Gas,421
http://statistics.data.gov.uk/id/local-authority/12UE,Huntingdonshire District Council,11/12/2014,159847,1147229796,5,4.8,Orange Airtime,CR455799,One Leisure Sawtry,Mobile Telephones & Radios,241
http://statistics.data.gov.uk/id/local-authority/12UE,Huntingdonshire District Council,13/11/2014,157821,1138945952,5,4.8,Orange Airtime,CR455799,One Leisure Sawtry,Mobile Telephones & Radios,241
http://statistics.data.gov.uk/id/local-authority/12UE,Huntingdonshire District Council,16/10/2014,156170,1130284308,5,4.8,Orange Airtime,CR455799,One Leisure Sawtry,Mobile Telephones & Radios,241
http://statistics.data.gov.uk/id/local-authority/12UE,Huntingdonshire District Council,20/11/2014,159231,941240466,5,"5,059.59",Swalec,CR407130,One Leisure Sawtry,Electricity,420
http://statistics.data.gov.uk/id/local-authority/12UE,Huntingdonshire District Council,18/12/2014,160995,941240466,5,"4,910.26",Swalec,CR407130,One Leisure Sawtry,Electricity,420
http://statistics.data.gov.uk/id/local-authority/12UE,Huntingdonshire District Council,23/10/2014,157653,941240466,5,"3,383.34",Swalec,CR407130,One Leisure Sawtry,Electricity,420
http://statistics.data.gov.uk/id/local-authority/12UE,Huntingdonshire District Council,11/12/2014,160487,101179000,5,"1,387.65",Anglian Water,CR000071,One Leisure Sawtry,Water,432
http://statistics.data.gov.uk/id/local-authority/12UE,Huntingdonshire District Council,09/10/2014,156081,2127317,5,292.82,Glaxosmithkline,CR010424,One Leisure Sawtry,Materials,550
http://statistics.data.gov.uk/id/local-authority/12UE,Huntingdonshire District Council,18/12/2014,160295,422272,5,686.05,Heasell Electromechanical Services Ltd,CR422407,One Leisure Sawtry,Plant & Equipment Maintenance,380
http://statistics.data.gov.uk/id/local-authority/12UE,Huntingdonshire District Council,04/12/2014,159239,168305,5,167.68,Franklins Group,CR478928,One Leisure Sawtry,Badges And Certificates,571
http://statistics.data.gov.uk/id/local-authority/12UE,Huntingdonshire District Council,09/10/2014,155651,102889,5,239.94,Lavat,CR480410,One Leisure Sawtry,Consultants,711
http://statistics.data.gov.uk/id/local-authority/12UE,Huntingdonshire District Council,04/12/2014,160122,64797,5,278.16,Larragard Ltd T/A Gard Chemicals,CR422586,One Leisure Sawtry,Cleaning Materials,443
http://statistics.data.gov.uk/id/local-authority/12UE,Huntingdonshire District Council,23/10/2014,156605,44261,5,991.5,Platform Service & Repair,CR422480,One Leisure Sawtry,Equipment Maintenance,511
http://statistics.data.gov.uk/id/local-authority/12UE,Huntingdonshire District Council,04/12/2014,159201,41739,5,356.4,Technical Surfaces Ltd,CR031941,One Leisure Sawtry,Grounds Mtce Contractors,351
http://statistics.data.gov.uk/id/local-authority/12UE,Huntingdonshire District Council,27/11/2014,158878,36746,5,429.6,Clanpress King'S Lynn Ltd,CR413516,One Leisure Sawtry,Printing (External),220
http://statistics.data.gov.uk/id/local-authority/12UE,Huntingdonshire District Council,13/11/2014,158171,14028,5,139.8,Bigprinting,CR416383,One Leisure Sawtry,Printing (External),220
http://statistics.data.gov.uk/id/local-authority/12UE,Huntingdonshire District Council,09/10/2014,156135,13879,5,93.6,Bigprinting,CR416383,One Leisure Sawtry,Printing (External),220
http://statistics.data.gov.uk/id/local-authority/12UE,Huntingdonshire District Council,09/10/2014,156134,13878,5,69.12,Bigprinting,CR416383,One Leisure Sawtry,Printing (External),220
http://statistics.data.gov.uk/id/local-authority/12UE,Huntingdonshire District Council,18/12/2014,161126,11927,5,66.96,Jade Security Services Ltd,CR422256,One Leisure Sawtry,Cash Collection,702
http://statistics.data.gov.uk/id/local-authority/12UE,Huntingdonshire District Council,27/11/2014,159012,11838,5,66.96,Jade Security Services Ltd,CR422256,One Leisure Sawtry,Cash Collection,702
http://statistics.data.gov.uk/id/local-authority/12UE,Huntingdonshire District Council,13/11/2014,157870,5139,5,214.8,Cfb Limited,CR480886,One Leisure Sawtry,Advertising/Promoting Services,255
http://statistics.data.gov.uk/id/local-authority/12UE,Huntingdonshire District Council,16/10/2014,156787,2168,5,142.8,Premier Logos,CR401203,One Leisure Sawtry,Advertising/Promoting Services,255
http://statistics.data.gov.uk/id/local-authority/12UE,Huntingdonshire District Council,23/10/2014,156544,2079,5,52,Bonkers About Babies,CR416298,One Leisure Sawtry,Advertising/Promoting Services,255
http://statistics.data.gov.uk/id/local-authority/12UE,Huntingdonshire District Council,30/10/2014,157360,1165,5,83.7,Jade Security Services Ltd,CR422256,One Leisure Sawtry,Cash Collection,702
http://statistics.data.gov.uk/id/local-authority/12UE,Huntingdonshire District Council,23/10/2014,156813,417,5,"1,284.00",Pool Maintenance Ltd,CR422505,One Leisure Sawtry,Plant & Equipment Maintenance,380
http://statistics.data.gov.uk/id/local-authority/12UE,Huntingdonshire District Council,18/12/2014,160301,SIN496415,5,422.88,Corporate Trends,CR415966,One Leisure Ramsey,Protective Clothing & Uniforms,163
http://statistics.data.gov.uk/id/local-authority/12UE,Huntingdonshire District Council,18/12/2014,160977,SIN037875,5,520,Institute Of Qualified Lifeguards,CR403387,One Leisure Ramsey,Training - Operational,131
http://statistics.data.gov.uk/id/local-authority/12UE,Huntingdonshire District Council,04/12/2014,159899,SIN037154,5,646,Iql Uk Ltd,CR415623,One Leisure Ramsey,Materials,550
http://statistics.data.gov.uk/id/local-authority/12UE,Huntingdonshire District Council,27/11/2014,158634,SIN001225,5,770.87,Enterprise Support Services Uk Ltd,CR422509,One Leisure Ramsey,Building Cleaning Internal,440
http://statistics.data.gov.uk/id/local-authority/12UE,Huntingdonshire District Council,30/10/2014,156541,RH255508,5,400,Leisure-Net Solutions,CR411853,One Leisure Ramsey,Advertising/Promoting Services,255
http://statistics.data.gov.uk/id/local-authority/12UE,Huntingdonshire District Council,27/11/2014,158457,Q/1000078920146,5,65,Institute Of Qualified Lifeguards,CR403387,One Leisure Ramsey,Licences,730
http://statistics.data.gov.uk/id/local-authority/12UE,Huntingdonshire District Council,02/10/2014,154425,P-S1606981,5,81.6,Rajapack Ltd,CR480770,One Leisure Ramsey,Printing (External),220
http://statistics.data.gov.uk/id/local-authority/12UE,Huntingdonshire District Council,27/11/2014,159632,INV533496,5,917.81,Ecocleen Services Limited,CR406985,One Leisure Ramsey,Building Cleaning Internal,440
http://statistics.data.gov.uk/id/local-authority/12UE,Huntingdonshire District Council,20/11/2014,158173,FE16893,5,141.76,First Editions Ltd,CR411973,One Leisure Ramsey,Materials For Resale,570
http://statistics.data.gov.uk/id/local-authority/12UE,Huntingdonshire District Council,18/12/2014,159903,C322757,5,"1,476.00",First In Service Ltd,CR422285,One Leisure Ramsey,Gen Building Mtce - Planned,304
http://statistics.data.gov.uk/id/local-authority/12UE,Huntingdonshire District Council,02/10/2014,156457,8665DC,5,959.68,Asp,CR455201,One Leisure Ramsey,Software,206
http://statistics.data.gov.uk/id/local-authority/12UE,Huntingdonshire District Council,20/11/2014,159222,44SI545774,5,740.46,Brenntag Uk Ltd,CR015017,One Leisure Ramsey,Chemicals,551
http://statistics.data.gov.uk/id/local-authority/12UE,Huntingdonshire District Council,30/10/2014,158024,15170E,5,"1,231.20",Leisure Database Company,CR479551,One Leisure Ramsey,Advertising/Promoting Services,255
http://statistics.data.gov.uk/id/local-authority/12UE,Huntingdonshire District Council,11/12/2014,159746,15/2010,5,59.94,Apt Ltd,CR456018,One Leisure Ramsey,Software,206
http://statistics.data.gov.uk/id/local-authority/12UE,Huntingdonshire District Council,04/12/2014,160297,11/1023,6,410,The Ramsey Initiative,CR415388,One Leisure Ramsey,Advertising/Promoting Services,255
http://statistics.data.gov.uk/id/local-authority/12UE,Huntingdonshire District Council,18/12/2014,160911,12489090790,5,"2,189.42",E-On Energy,CR416430,One Leisure Ramsey,Gas,421
http://statistics.data.gov.uk/id/local-authority/12UE,Huntingdonshire District Council,13/11/2014,158845,12489090790,5,"1,268.26",E-On Energy,CR416430,One Leisure Ramsey,Gas,421
http://statistics.data.gov.uk/id/local-authority/12UE,Huntingdonshire District Council,16/10/2014,157304,12489090790,5,976.75,E-On Energy,CR416430,One Leisure Ramsey,Gas,421
http://statistics.data.gov.uk/id/local-authority/12UE,Huntingdonshire District Council,18/12/2014,160975,7080456960,5,"1,385.69",Honeywell Novar Systems,CR406826,One Leisure Ramsey,Equipment Maintenance,511
http://statistics.data.gov.uk/id/local-authority/12UE,Huntingdonshire District Council,11/12/2014,159847,1147229796,5,0.79,Orange Airtime,CR455799,One Leisure Ramsey,Mobile Telephones & Radios,241
http://statistics.data.gov.uk/id/local-authority/12UE,Huntingdonshire District Council,13/11/2014,157821,1138945952,5,0.8,Orange Airtime,CR455799,One Leisure Ramsey,Mobile Telephones & Radios,241
http://statistics.data.gov.uk/id/local-authority/12UE,Huntingdonshire District Council,16/10/2014,156170,1130284308,5,0.8,Orange Airtime,CR455799,One Leisure Ramsey,Mobile Telephones & Radios,241
http://statistics.data.gov.uk/id/local-authority/12UE,Huntingdonshire District Council,20/11/2014,159215,341225796,5,"3,156.98",Swalec,CR407130,One Leisure Ramsey,Electricity,420
http://statistics.data.gov.uk/id/local-authority/12UE,Huntingdonshire District Council,18/12/2014,160926,341225796,5,"3,075.21",Swalec,CR407130,One Leisure Ramsey,Electricity,420
http://statistics.data.gov.uk/id/local-authority/12UE,Huntingdonshire District Council,23/10/2014,157656,341225796,5,"2,640.72",Swalec,CR407130,One Leisure Ramsey,Electricity,420
http://statistics.data.gov.uk/id/local-authority/12UE,Huntingdonshire District Council,18/12/2014,161111,126881440,5,"1,777.16",Anglian Water,CR000071,One Leisure Ramsey,Sewerage,433
http://statistics.data.gov.uk/id/local-authority/12UE,Huntingdonshire District Council,04/12/2014,159213,3057120,5,533.68,First In Service Ltd,CR422285,One Leisure Ramsey,Gen Building Mtce - Responsive,303
http://statistics.data.gov.uk/id/local-authority/12UE,Huntingdonshire District Council,30/10/2014,158176,3056151,5,"1,564.80",First In Service Ltd,CR422285,One Leisure Ramsey,Gen Building Mtce - Planned,304
http://statistics.data.gov.uk/id/local-authority/12UE,Huntingdonshire District Council,18/12/2014,160968,1212786,5,423.42,Burgin Ltd,CR482438,One Leisure Ramsey,Gen Building Mtce - Planned,304
http://statistics.data.gov.uk/id/local-authority/12UE,Huntingdonshire District Council,30/10/2014,158177,1212651,5,748.26,Burgin Ltd,CR482438,One Leisure Ramsey,Gen Building Mtce - Responsive,303
http://statistics.data.gov.uk/id/local-authority/12UE,Huntingdonshire District Council,06/11/2014,158033,730534,5,364.55,J P Lennard Ltd,CR028595,One Leisure Ramsey,Equipment Purchases,500
http://statistics.data.gov.uk/id/local-authority/12UE,Huntingdonshire District Council,16/10/2014,156632,359351,5,"1,107.52",Swimrite Supplies Ltd (Srs Leisure),CR478711,One Leisure Ramsey,Materials For Resale,570
http://statistics.data.gov.uk/id/local-authority/12UE,Huntingdonshire District Council,04/12/2014,159239,168305,5,298.16,Franklins Group,CR478928,One Leisure Ramsey,Badges And Certificates,571
http://statistics.data.gov.uk/id/local-authority/12UE,Huntingdonshire District Council,18/12/2014,574122,117480,2,46.2,Peter Corley,CR415709,One Leisure Ramsey,Equipment Purchases,500
http://statistics.data.gov.uk/id/local-authority/12UE,Huntingdonshire District Council,09/10/2014,155651,102889,5,239.93,Lavat,CR480410,One Leisure Ramsey,Consultants,711
http://statistics.data.gov.uk/id/local-authority/12UE,Huntingdonshire District Council,16/10/2014,156634,49557,5,768.05,Snackline Direct Ltd,CR478090,One Leisure Ramsey,Vending Materials,560
http://statistics.data.gov.uk/id/local-authority/12UE,Huntingdonshire District Council,16/10/2014,156631,37994,5,"1,698.66",Leisureteq,CR401094,One Leisure Ramsey,Equipment Maintenance,511
http://statistics.data.gov.uk/id/local-authority/12UE,Huntingdonshire District Council,20/11/2014,157877,36666,5,513.6,Clanpress King'S Lynn Ltd,CR413516,One Leisure Ramsey,Printing (External),220
http://statistics.data.gov.uk/id/local-authority/12UE,Huntingdonshire District Council,23/10/2014,156397,36528,5,386.4,Clanpress King'S Lynn Ltd,CR413516,One Leisure Ramsey,Printing (External),220
http://statistics.data.gov.uk/id/local-authority/12UE,Huntingdonshire District Council,09/10/2014,156630,18296,5,504,Mcintyre Leisure,CR404059,One Leisure Ramsey,Equipment Maintenance,511
http://statistics.data.gov.uk/id/local-authority/12UE,Huntingdonshire District Council,18/12/2014,160967,14868,5,552,Activ Security Uk Ltd,CR409710,One Leisure Ramsey,Security,450
http://statistics.data.gov.uk/id/local-authority/12UE,Huntingdonshire District Council,13/11/2014,158171,14028,5,139.8,Bigprinting,CR416383,One Leisure Ramsey,Printing (External),220
http://statistics.data.gov.uk/id/local-authority/12UE,Huntingdonshire District Council,09/10/2014,156135,13879,5,93.6,Bigprinting,CR416383,One Leisure Ramsey,Printing (External),220
http://statistics.data.gov.uk/id/local-authority/12UE,Huntingdonshire District Council,09/10/2014,156134,13878,5,69.12,Bigprinting,CR416383,One Leisure Ramsey,Printing (External),220
http://statistics.data.gov.uk/id/local-authority/12UE,Huntingdonshire District Council,18/12/2014,161126,11927,5,66.96,Jade Security Services Ltd,CR422256,One Leisure Ramsey,Cash Collection,702
http://statistics.data.gov.uk/id/local-authority/12UE,Huntingdonshire District Council,27/11/2014,159012,11838,5,66.96,Jade Security Services Ltd,CR422256,One Leisure Ramsey,Cash Collection,702
http://statistics.data.gov.uk/id/local-authority/12UE,Huntingdonshire District Council,11/12/2014,159710,9287,5,451.94,Roger Wilson Electronics,CR028041,One Leisure Ramsey,Gen Building Mtce - Responsive,303
http://statistics.data.gov.uk/id/local-authority/12UE,Huntingdonshire District Council,13/11/2014,157870,5139,5,214.8,Cfb Limited,CR480886,One Leisure Ramsey,Advertising/Promoting Services,255
http://statistics.data.gov.uk/id/local-authority/12UE,Huntingdonshire District Council,16/10/2014,156787,2168,5,142.8,Premier Logos,CR401203,One Leisure Ramsey,Advertising/Promoting Services,255
http://statistics.data.gov.uk/id/local-authority/12UE,Huntingdonshire District Council,23/10/2014,156544,2079,5,52,Bonkers About Babies,CR416298,One Leisure Ramsey,Advertising/Promoting Services,255
http://statistics.data.gov.uk/id/local-authority/12UE,Huntingdonshire District Council,30/10/2014,157360,1165,5,83.7,Jade Security Services Ltd,CR422256,One Leisure Ramsey,Cash Collection,702
http://statistics.data.gov.uk/id/local-authority/12UE,Huntingdonshire District Council,30/10/2014,158034,686,6,"1,510.39",Abbey College,CR478009,One Leisure Ramsey,Water,432
http://statistics.data.gov.uk/id/local-authority/12UE,Huntingdonshire District Council,23/10/2014,156813,417,5,"1,284.00",Pool Maintenance Ltd,CR422505,One Leisure Ramsey,Plant & Equipment Maintenance,380
http://statistics.data.gov.uk/id/local-authority/12UE,Huntingdonshire District Council,20/11/2014,159279,SS14112014,5,541.98,Supervitality Ltd,CR422648,One Leisure Huntingdon,Materials For Resale,570
http://statistics.data.gov.uk/id/local-authority/12UE,Huntingdonshire District Council,18/12/2014,160301,SIN496415,5,"1,131.60",Corporate Trends,CR415966,One Leisure Huntingdon,Protective Clothing & Uniforms,163
http://statistics.data.gov.uk/id/local-authority/12UE,Huntingdonshire District Council,18/12/2014,160977,SIN037875,5,520,Institute Of Qualified Lifeguards,CR403387,One Leisure Huntingdon,Training - Operational,131
http://statistics.data.gov.uk/id/local-authority/12UE,Huntingdonshire District Council,27/11/2014,158634,SIN001225,5,"1,157.71",Enterprise Support Services Uk Ltd,CR422509,One Leisure Huntingdon,Building Cleaning Internal,440
http://statistics.data.gov.uk/id/local-authority/12UE,Huntingdonshire District Council,27/11/2014,158457,Q/1000078920146,5,65,Institute Of Qualified Lifeguards,CR403387,One Leisure Huntingdon,Licences,730
http://statistics.data.gov.uk/id/local-authority/12UE,Huntingdonshire District Council,02/10/2014,154425,P-S1606981,5,81.6,Rajapack Ltd,CR480770,One Leisure Huntingdon,Printing (External),220
http://statistics.data.gov.uk/id/local-authority/12UE,Huntingdonshire District Council,02/10/2014,155621,GD252,5,"1,625.86",Greenday Energy Ltd,CR422398,One Leisure Huntingdon,Gas,421
http://statistics.data.gov.uk/id/local-authority/12UE,Huntingdonshire District Council,20/11/2014,158173,FE16893,5,283.5,First Editions Ltd,CR411973,One Leisure Huntingdon,Materials For Resale,570
http://statistics.data.gov.uk/id/local-authority/12UE,Huntingdonshire District Council,18/12/2014,159903,C322757,5,"2,460.00",First In Service Ltd,CR422285,One Leisure Huntingdon,Gen Building Mtce - Planned,304
http://statistics.data.gov.uk/id/local-authority/12UE,Huntingdonshire District Council,04/12/2014,159054,742878104/1114,5,7.61,Virgin Media Business,CR033120,One Leisure Huntingdon,Telephone Charges,240
http://statistics.data.gov.uk/id/local-authority/12UE,Huntingdonshire District Council,02/10/2014,155453,742878104/0914,5,0.06,Virgin Media Business,CR033120,One Leisure Huntingdon,Telephone Charges,240
http://statistics.data.gov.uk/id/local-authority/12UE,Huntingdonshire District Council,18/12/2014,160250,44SI546626,5,391.54,Brenntag Uk Ltd,CR015017,One Leisure Huntingdon,Chemicals,551
http://statistics.data.gov.uk/id/local-authority/12UE,Huntingdonshire District Council,18/12/2014,160979,44SI/546626,5,391.54,Brenntag Uk Ltd,CR015017,One Leisure Huntingdon,Chemicals,551
http://statistics.data.gov.uk/id/local-authority/12UE,Huntingdonshire District Council,18/12/2014,160978,44SI/545439,5,476.66,Brenntag Uk Ltd,CR015017,One Leisure Huntingdon,Chemicals,551
http://statistics.data.gov.uk/id/local-authority/12UE,Huntingdonshire District Council,30/10/2014,158024,15170E,5,915.6,Leisure Database Company,CR479551,One Leisure Huntingdon,Advertising/Promoting Services,255
http://statistics.data.gov.uk/id/local-authority/12UE,Huntingdonshire District Council,11/12/2014,159746,15/2010,5,59.94,Apt Ltd,CR456018,One Leisure Huntingdon,Software,206
http://statistics.data.gov.uk/id/local-authority/12UE,Huntingdonshire District Council,13/11/2014,158981,07.10.14,5,400,Mrs  Natalie Kiernan,CR455676,One Leisure Huntingdon,Entertainments Inc Cable Tv,744
http://statistics.data.gov.uk/id/local-authority/12UE,Huntingdonshire District Council,30/10/2014,157038,7.42878E+11,5,0.07,Virgin Media Business,CR033120,One Leisure Huntingdon,Telephone Charges,240
http://statistics.data.gov.uk/id/local-authority/12UE,Huntingdonshire District Council,18/12/2014,160692,74287104001,5,5.3,Virgin Media Business,CR033120,One Leisure Huntingdon,Telephone Charges,240
http://statistics.data.gov.uk/id/local-authority/12UE,Huntingdonshire District Council,18/12/2014,160908,12489088970,5,874.39,E-On Energy,CR416430,One Leisure Huntingdon,Gas,421
http://statistics.data.gov.uk/id/local-authority/12UE,Huntingdonshire District Council,13/11/2014,158834,12489088970,5,708.29,E-On Energy,CR416430,One Leisure Huntingdon,Gas,421
http://statistics.data.gov.uk/id/local-authority/12UE,Huntingdonshire District Council,16/10/2014,157303,12489088970,5,600.19,E-On Energy,CR416430,One Leisure Huntingdon,Gas,421
http://statistics.data.gov.uk/id/local-authority/12UE,Huntingdonshire District Council,13/11/2014,158839,12489088110,5,"4,391.18",E-On Energy,CR416430,One Leisure Huntingdon,Gas,421
http://statistics.data.gov.uk/id/local-authority/12UE,Huntingdonshire District Council,18/12/2014,160904,12489088110,5,"4,345.18",E-On Energy,CR416430,One Leisure Huntingdon,Gas,421
http://statistics.data.gov.uk/id/local-authority/12UE,Huntingdonshire District Council,16/10/2014,157302,12489088110,5,"4,310.33",E-On Energy,CR416430,One Leisure Huntingdon,Gas,421
http://statistics.data.gov.uk/id/local-authority/12UE,Huntingdonshire District Council,11/12/2014,159847,1147229796,5,14.4,Orange Airtime,CR455799,One Leisure Huntingdon,Mobile Telephones & Radios,241
http://statistics.data.gov.uk/id/local-authority/12UE,Huntingdonshire District Council,13/11/2014,157821,1138945952,5,14.4,Orange Airtime,CR455799,One Leisure Huntingdon,Mobile Telephones & Radios,241
http://statistics.data.gov.uk/id/local-authority/12UE,Huntingdonshire District Council,16/10/2014,156170,1130284308,5,14.4,Orange Airtime,CR455799,One Leisure Huntingdon,Mobile Telephones & Radios,241
http://statistics.data.gov.uk/id/local-authority/12UE,Huntingdonshire District Council,20/11/2014,159216,381239505,5,"1,055.68",Swalec,CR407130,One Leisure Huntingdon,Electricity,420
http://statistics.data.gov.uk/id/local-authority/12UE,Huntingdonshire District Council,11/12/2014,160499,381239505,5,997.18,Swalec,CR407130,One Leisure Huntingdon,Electricity,420
http://statistics.data.gov.uk/id/local-authority/12UE,Huntingdonshire District Council,16/10/2014,156859,381239505,5,571.9,Swalec,CR407130,One Leisure Huntingdon,Electricity,420
http://statistics.data.gov.uk/id/local-authority/12UE,Huntingdonshire District Council,02/10/2014,156126,213062925,5,"1,831.79",Startrac,CR429227,One Leisure Huntingdon,Equipment Maintenance,511
http://statistics.data.gov.uk/id/local-authority/12UE,Huntingdonshire District Council,16/10/2014,157288,126877786,5,"2,358.21",Anglian Water,CR000071,One Leisure Huntingdon,Sewerage,433
http://statistics.data.gov.uk/id/local-authority/12UE,Huntingdonshire District Council,23/10/2014,157659,103528071,5,721.17,Anglian Water,CR000071,One Leisure Huntingdon,Sewerage,433
http://statistics.data.gov.uk/id/local-authority/12UE,Huntingdonshire District Council,23/10/2014,157659,103528071,5,"1,144.91",Anglian Water,CR000071,One Leisure Huntingdon,Water,432
http://statistics.data.gov.uk/id/local-authority/12UE,Huntingdonshire District Council,06/11/2014,157401,61722328,5,954.53,Phs Group Ltd,CR032018,One Leisure Huntingdon,Equipment Hire,507
http://statistics.data.gov.uk/id/local-authority/12UE,Huntingdonshire District Council,16/10/2014,157002,14011544,5,"5,988.65",Technogym Uk Ltd,CR033037,One Leisure Huntingdon,Equipment Maintenance,511
http://statistics.data.gov.uk/id/local-authority/12UE,Huntingdonshire District Council,18/12/2014,159832,2147216,5,419.76,Glaxosmithkline,CR010424,One Leisure Huntingdon,Vending Materials,560
http://statistics.data.gov.uk/id/local-authority/12UE,Huntingdonshire District Council,02/10/2014,155012,2124270,5,261.48,Glaxosmithkline,CR010424,One Leisure Huntingdon,Vending Materials,560
http://statistics.data.gov.uk/id/local-authority/12UE,Huntingdonshire District Council,18/12/2014,160566,1779973,1,323.57,Espo,CR006566,One Leisure Huntingdon,Cleaning Materials,443
http://statistics.data.gov.uk/id/local-authority/12UE,Huntingdonshire District Council,20/11/2014,158920,1729361,1,3.22,Espo,CR006566,One Leisure Huntingdon,Cleaning Materials,443
http://statistics.data.gov.uk/id/local-authority/12UE,Huntingdonshire District Council,20/11/2014,158920,1729361,1,75.93,Espo,CR006566,One Leisure Huntingdon,Materials,550
http://statistics.data.gov.uk/id/local-authority/12UE,Huntingdonshire District Council,20/11/2014,158920,1729361,1,228.41,Espo,CR006566,One Leisure Huntingdon,Stationery,225
http://statistics.data.gov.uk/id/local-authority/12UE,Huntingdonshire District Council,02/10/2014,155657,1627323,1,414,Espo,CR006566,One Leisure Huntingdon,Sports Equipment,524
http://statistics.data.gov.uk/id/local-authority/12UE,Huntingdonshire District Council,04/12/2014,160259,1038994,5,72.9,Badgemaster,CR400716,One Leisure Huntingdon,Protective Clothing & Uniforms,163
http://statistics.data.gov.uk/id/local-authority/12UE,Huntingdonshire District Council,20/11/2014,158928,732345,5,281.93,J P Lennard Ltd,CR028595,One Leisure Huntingdon,Gen Building Mtce - Responsive,303
http://statistics.data.gov.uk/id/local-authority/12UE,Huntingdonshire District Council,20/11/2014,158928,732345,5,202.33,J P Lennard Ltd,CR028595,One Leisure Huntingdon,Sports Equipment,524
http://statistics.data.gov.uk/id/local-authority/12UE,Huntingdonshire District Council,11/12/2014,159243,532133,5,411.52,J V Trading,CR422174,One Leisure Huntingdon,Bar Provisions,558
http://statistics.data.gov.uk/id/local-authority/12UE,Huntingdonshire District Council,18/12/2014,161176,422332,5,39.24,Heasell Electromechanical Services Ltd,CR422407,One Leisure Huntingdon,Plant & Equipment Maintenance,380
http://statistics.data.gov.uk/id/local-authority/12UE,Huntingdonshire District Council,18/12/2014,161176,422332,5,581.62,Heasell Electromechanical Services Ltd,CR422407,One Leisure Huntingdon,Plant & Equipment Maintenance,380
http://statistics.data.gov.uk/id/local-authority/12UE,Huntingdonshire District Council,18/12/2014,161178,422331,5,405.9,Heasell Electromechanical Services Ltd,CR422407,One Leisure Huntingdon,Plant & Equipment Maintenance,380
http://statistics.data.gov.uk/id/local-authority/12UE,Huntingdonshire District Council,23/10/2014,156186,359565,5,361.35,Swimrite Supplies Ltd (Srs Leisure),CR478711,One Leisure Huntingdon,Materials For Resale,570
http://statistics.data.gov.uk/id/local-authority/12UE,Huntingdonshire District Council,04/12/2014,159449,201413,5,410,Splash Academy,CR403645,One Leisure Huntingdon,Training - Operational,131
http://statistics.data.gov.uk/id/local-authority/12UE,Huntingdonshire District Council,04/12/2014,159274,201412,5,410,Splash Academy,CR403645,One Leisure Huntingdon,Training - Operational,131
http://statistics.data.gov.uk/id/local-authority/12UE,Huntingdonshire District Council,18/09/2014,570055,201408,5,325,Splash Academy,CR403645,One Leisure Huntingdon,Training - Operational,131
http://statistics.data.gov.uk/id/local-authority/12UE,Huntingdonshire District Council,04/12/2014,159239,168305,5,428.4,Franklins Group,CR478928,One Leisure Huntingdon,Badges And Certificates,571
http://statistics.data.gov.uk/id/local-authority/12UE,Huntingdonshire District Council,11/12/2014,159446,156503,5,409.53,Chemaide Ltd,CR413480,One Leisure Huntingdon,Cleaning Materials,443
http://statistics.data.gov.uk/id/local-authority/12UE,Huntingdonshire District Council,16/10/2014,156626,156174,5,553.11,Chemaide Ltd,CR413480,One Leisure Huntingdon,Cleaning Materials,443
http://statistics.data.gov.uk/id/local-authority/12UE,Huntingdonshire District Council,09/10/2014,155651,102889,5,479.85,Lavat,CR480410,One Leisure Huntingdon,Consultants,711
http://statistics.data.gov.uk/id/local-authority/12UE,Huntingdonshire District Council,11/12/2014,159647,77624,5,384,Jsa Leisure Ltd,CR40187,One Leisure Huntingdon,Equipment Maintenance,511
http://statistics.data.gov.uk/id/local-authority/12UE,Huntingdonshire District Council,20/11/2014,158763,65916,5,"4,838.64",Haven Power Ltd,CR455940,One Leisure Huntingdon,Electricity,420
http://statistics.data.gov.uk/id/local-authority/12UE,Huntingdonshire District Council,23/10/2014,157084,65916,5,"4,751.34",Haven Power Ltd,CR455940,One Leisure Huntingdon,Electricity,420
http://statistics.data.gov.uk/id/local-authority/12UE,Huntingdonshire District Council,18/12/2014,160481,65916,5,"4,723.83",Haven Power Ltd,CR455940,One Leisure Huntingdon,Electricity,420
http://statistics.data.gov.uk/id/local-authority/12UE,Huntingdonshire District Council,23/10/2014,157106,64649,5,283.44,Larragard Ltd T/A Gard Chemicals,CR422586,One Leisure Huntingdon,Cleaning Materials,443
http://statistics.data.gov.uk/id/local-authority/12UE,Huntingdonshire District Council,02/10/2014,156548,61225,5,204,Clubnet Limited,CR422543,One Leisure Huntingdon,Advertising/Promoting Services,255
http://statistics.data.gov.uk/id/local-authority/12UE,Huntingdonshire District Council,06/11/2014,157597,55714,5,475.2,Huntingdon Live Magazine,CR478621,One Leisure Huntingdon,Advertising/Promoting Services,255
http://statistics.data.gov.uk/id/local-authority/12UE,Huntingdonshire District Council,11/12/2014,160563,52190,5,243.13,Snackline Direct Ltd,CR478090,One Leisure Huntingdon,Bar Provisions,558
http://statistics.data.gov.uk/id/local-authority/12UE,Huntingdonshire District Council,11/12/2014,160563,52190,5,73.73,Snackline Direct Ltd,CR478090,One Leisure Huntingdon,Confectionery,572
http://statistics.data.gov.uk/id/local-authority/12UE,Huntingdonshire District Council,18/12/2014,159910,51777,5,46.76,Snackline Direct Ltd,CR478090,One Leisure Huntingdon,Bar Provisions,558
http://statistics.data.gov.uk/id/local-authority/12UE,Huntingdonshire District Council,18/12/2014,159910,51777,5,50.26,Snackline Direct Ltd,CR478090,One Leisure Huntingdon,Catering Materials,559
http://statistics.data.gov.uk/id/local-authority/12UE,Huntingdonshire District Council,18/12/2014,159910,51777,5,193.52,Snackline Direct Ltd,CR478090,One Leisure Huntingdon,Confectionery,572
http://statistics.data.gov.uk/id/local-authority/12UE,Huntingdonshire District Council,18/12/2014,159909,51774,5,432.28,Snackline Direct Ltd,CR478090,One Leisure Huntingdon,Vending Materials,560
http://statistics.data.gov.uk/id/local-authority/12UE,Huntingdonshire District Council,11/12/2014,159875,51552,5,258.72,Snackline Direct Ltd,CR478090,One Leisure Huntingdon,Bar Provisions,558
http://statistics.data.gov.uk/id/local-authority/12UE,Huntingdonshire District Council,11/12/2014,159875,51552,5,83.56,Snackline Direct Ltd,CR478090,One Leisure Huntingdon,Confectionery,572
http://statistics.data.gov.uk/id/local-authority/12UE,Huntingdonshire District Council,27/11/2014,159794,51079,5,211.96,Snackline Direct Ltd,CR478090,One Leisure Huntingdon,Bar Provisions,558
http://statistics.data.gov.uk/id/local-authority/12UE,Huntingdonshire District Council,27/11/2014,159794,51079,5,135.49,Snackline Direct Ltd,CR478090,One Leisure Huntingdon,Confectionery,572
http://statistics.data.gov.uk/id/local-authority/12UE,Huntingdonshire District Council,27/11/2014,159208,50844,5,290.8,Snackline Direct Ltd,CR478090,One Leisure Huntingdon,Vending Materials,560
http://statistics.data.gov.uk/id/local-authority/12UE,Huntingdonshire District Council,30/10/2014,156929,50195,5,211.96,Snackline Direct Ltd,CR478090,One Leisure Huntingdon,Bar Provisions,558
http://statistics.data.gov.uk/id/local-authority/12UE,Huntingdonshire District Council,30/10/2014,156929,50195,5,109.82,Snackline Direct Ltd,CR478090,One Leisure Huntingdon,Catering Materials,559
http://statistics.data.gov.uk/id/local-authority/12UE,Huntingdonshire District Council,30/10/2014,157395,50151,5,331.69,Snackline Direct Ltd,CR478090,One Leisure Huntingdon,Vending Materials,560
http://statistics.data.gov.uk/id/local-authority/12UE,Huntingdonshire District Council,16/10/2014,156955,49686,5,367.32,Snackline Direct Ltd,CR478090,One Leisure Huntingdon,Vending Materials,560
http://statistics.data.gov.uk/id/local-authority/12UE,Huntingdonshire District Council,02/10/2014,156553,46831,5,307.74,Snackline Direct Ltd,CR478090,One Leisure Huntingdon,Vending Materials,560
http://statistics.data.gov.uk/id/local-authority/12UE,Huntingdonshire District Council,27/11/2014,159800,37949,5,564,Csl Group,CR406172,One Leisure Huntingdon,Equipment Maintenance,511
http://statistics.data.gov.uk/id/local-authority/12UE,Huntingdonshire District Council,30/10/2014,158216,37601,5,292.8,Csl Group,CR406172,One Leisure Huntingdon,Catering Materials,559
http://statistics.data.gov.uk/id/local-authority/12UE,Huntingdonshire District Council,27/11/2014,159441,35632,5,292.8,Dal-Rod Uk Ltd,CR002782,One Leisure Huntingdon,Gen Building Mtce - Responsive,303
http://statistics.data.gov.uk/id/local-authority/12UE,Huntingdonshire District Council,16/10/2014,156625,34132,5,"1,200.00",Hytrac Lifts Ltd,CR030618,One Leisure Huntingdon,Training - Operational,131
http://statistics.data.gov.uk/id/local-authority/12UE,Huntingdonshire District Council,23/10/2014,157837,19430,5,300,Chooseyourevent.Com Ltd,CR422624,One Leisure Huntingdon,Advertising/Promoting Services,255
http://statistics.data.gov.uk/id/local-authority/12UE,Huntingdonshire District Council,27/11/2014,159443,18326,5,408,Mcintyre Leisure,CR404059,One Leisure Huntingdon,Plant & Equipment Maintenance,380
http://statistics.data.gov.uk/id/local-authority/12UE,Huntingdonshire District Council,23/10/2014,157397,18295,5,347.64,Mcintyre Leisure,CR404059,One Leisure Huntingdon,Plant & Equipment Maintenance,380
http://statistics.data.gov.uk/id/local-authority/12UE,Huntingdonshire District Council,04/12/2014,159442,17983,5,"1,404.00",Sps Pumps & Engineering Ltd,CR401392,One Leisure Huntingdon,Plant & Equipment Maintenance,380
http://statistics.data.gov.uk/id/local-authority/12UE,Huntingdonshire District Council,13/11/2014,158171,14028,5,139.8,Bigprinting,CR416383,One Leisure Huntingdon,Printing (External),220
http://statistics.data.gov.uk/id/local-authority/12UE,Huntingdonshire District Council,09/10/2014,156135,13879,5,93.6,Bigprinting,CR416383,One Leisure Huntingdon,Printing (External),220
http://statistics.data.gov.uk/id/local-authority/12UE,Huntingdonshire District Council,09/10/2014,156134,13878,5,69.12,Bigprinting,CR416383,One Leisure Huntingdon,Printing (External),220
http://statistics.data.gov.uk/id/local-authority/12UE,Huntingdonshire District Council,02/10/2014,156525,13819,5,120,Bigprinting,CR416383,One Leisure Huntingdon,Printing (External),220
http://statistics.data.gov.uk/id/local-authority/12UE,Huntingdonshire District Council,18/12/2014,161126,11927,5,267.84,Jade Security Services Ltd,CR422256,One Leisure Huntingdon,Cash Collection,702
http://statistics.data.gov.uk/id/local-authority/12UE,Huntingdonshire District Council,27/11/2014,159012,11838,5,301.32,Jade Security Services Ltd,CR422256,One Leisure Huntingdon,Cash Collection,702
http://statistics.data.gov.uk/id/local-authority/12UE,Huntingdonshire District Council,09/10/2014,155629,10571,5,477,House Of Play Ltd,CR479346,One Leisure Huntingdon,Gen Building Mtce - Planned,304
http://statistics.data.gov.uk/id/local-authority/12UE,Huntingdonshire District Council,04/12/2014,159829,9285,5,322.8,Roger Wilson Electronics,CR028041,One Leisure Huntingdon,Gen Building Mtce - Responsive,303
http://statistics.data.gov.uk/id/local-authority/12UE,Huntingdonshire District Council,04/12/2014,158859,9271,5,608.17,Roger Wilson Electronics,CR028041,One Leisure Huntingdon,Gen Building Mtce - Responsive,303
http://statistics.data.gov.uk/id/local-authority/12UE,Huntingdonshire District Council,11/12/2014,158538,9266,5,991.2,Roger Wilson Electronics,CR028041,One Leisure Huntingdon,Equipment Purchases,500
http://statistics.data.gov.uk/id/local-authority/12UE,Huntingdonshire District Council,20/11/2014,158014,9255,5,772.8,Roger Wilson Electronics,CR028041,One Leisure Huntingdon,Equipment Purchases,500
http://statistics.data.gov.uk/id/local-authority/12UE,Huntingdonshire District Council,20/11/2014,158014,9255,5,100.8,Roger Wilson Electronics,CR028041,One Leisure Huntingdon,Gen Building Mtce - Responsive,303
http://statistics.data.gov.uk/id/local-authority/12UE,Huntingdonshire District Council,13/11/2014,157601,9253,5,317.98,Roger Wilson Electronics,CR028041,One Leisure Huntingdon,Gen Building Mtce - Planned,304
http://statistics.data.gov.uk/id/local-authority/12UE,Huntingdonshire District Council,30/10/2014,156800,9247,5,"1,443.60",Roger Wilson Electronics,CR028041,One Leisure Huntingdon,Gen Building Mtce - Planned,304
http://statistics.data.gov.uk/id/local-authority/12UE,Huntingdonshire District Council,13/11/2014,157870,5139,5,214.8,Cfb Limited,CR480886,One Leisure Huntingdon,Advertising/Promoting Services,255
http://statistics.data.gov.uk/id/local-authority/12UE,Huntingdonshire District Council,16/10/2014,156787,2168,5,142.8,Premier Logos,CR401203,One Leisure Huntingdon,Advertising/Promoting Services,255
http://statistics.data.gov.uk/id/local-authority/12UE,Huntingdonshire District Council,23/10/2014,156544,2079,5,52,Bonkers About Babies,CR416298,One Leisure Huntingdon,Advertising/Promoting Services,255
http://statistics.data.gov.uk/id/local-authority/12UE,Huntingdonshire District Council,20/11/2014,158877,1448,5,939.8,South East Sport Services,CR479901,One Leisure Huntingdon,Equipment Maintenance,511
http://statistics.data.gov.uk/id/local-authority/12UE,Huntingdonshire District Council,30/10/2014,157360,1165,5,301.32,Jade Security Services Ltd,CR422256,One Leisure Huntingdon,Cash Collection,702
http://statistics.data.gov.uk/id/local-authority/12UE,Huntingdonshire District Council,20/11/2014,159405,432,5,539.7,Pool Maintenance Ltd,CR422505,One Leisure Huntingdon,Gen Building Mtce - Responsive,303
http://statistics.data.gov.uk/id/local-authority/12UE,Huntingdonshire District Council,23/10/2014,156813,417,5,"1,284.00",Pool Maintenance Ltd,CR422505,One Leisure Huntingdon,Plant & Equipment Maintenance,380
http://statistics.data.gov.uk/id/local-authority/12UE,Huntingdonshire District Council,20/11/2014,159406,,5,484.8,Pool Maintenance Ltd,CR422505,One Leisure Huntingdon,Gen Building Mtce - Responsive,303
http://statistics.data.gov.uk/id/local-authority/12UE,Huntingdonshire District Council,27/11/2014,159785,WM40012787Q008G,5,124.2,British Telecommunications Plc,CR027071,Off Street Parking,I T Line Rental,248
http://statistics.data.gov.uk/id/local-authority/12UE,Huntingdonshire District Council,27/11/2014,159785,WM40012787Q008G,5,154.2,British Telecommunications Plc,CR027071,Off Street Parking,I T Line Rental,248
http://statistics.data.gov.uk/id/local-authority/12UE,Huntingdonshire District Council,18/12/2014,159867,INV535324,5,840.76,Ecocleen Services Limited,CR406985,Off Street Parking,Building Cleaning Internal,440
http://statistics.data.gov.uk/id/local-authority/12UE,Huntingdonshire District Council,27/11/2014,159690,I5029 31-10-14,5,29.2,Zurich Municipal,CR003638,Off Street Parking,Insurance Public Liability,160
http://statistics.data.gov.uk/id/local-authority/12UE,Huntingdonshire District Council,18/12/2014,160555,B3121183,5,354.47,Bemrose Mobile Ltd,CR422668,Off Street Parking,Mobile Telephones & Radios,241
http://statistics.data.gov.uk/id/local-authority/12UE,Huntingdonshire District Council,16/10/2014,155993,26152/4663,5,300,J Breheny Contractors Ltd,CR000314,Off Street Parking,Sitework,359
http://statistics.data.gov.uk/id/local-authority/12UE,Huntingdonshire District Council,11/12/2014,159847,1147229796,5,14.4,Orange Airtime,CR455799,Off Street Parking,Mobile Telephones & Radios,241
http://statistics.data.gov.uk/id/local-authority/12UE,Huntingdonshire District Council,13/11/2014,157821,1138945952,5,14.5,Orange Airtime,CR455799,Off Street Parking,Mobile Telephones & Radios,241
http://statistics.data.gov.uk/id/local-authority/12UE,Huntingdonshire District Council,16/10/2014,156170,1130284308,5,12,Orange Airtime,CR455799,Off Street Parking,Mobile Telephones & Radios,241
http://statistics.data.gov.uk/id/local-authority/12UE,Huntingdonshire District Council,02/10/2014,156556,791226553,5,-456.4,Swalec,CR407130,Off Street Parking,Electricity,420
http://statistics.data.gov.uk/id/local-authority/12UE,Huntingdonshire District Council,20/11/2014,159219,611226358,5,254.87,Swalec,CR407130,Off Street Parking,Electricity,420
http://statistics.data.gov.uk/id/local-authority/12UE,Huntingdonshire District Council,11/12/2014,160497,581127268,5,255.09,Swalec,CR407130,Off Street Parking,Electricity,420
http://statistics.data.gov.uk/id/local-authority/12UE,Huntingdonshire District Council,09/10/2014,156557,491225588,5,280.87,Swalec,CR407130,Off Street Parking,Electricity,420
http://statistics.data.gov.uk/id/local-authority/12UE,Huntingdonshire District Council,04/12/2014,159890,441567103,5,"1,322.65",Swalec,CR407130,Off Street Parking,Electricity,420
http://statistics.data.gov.uk/id/local-authority/12UE,Huntingdonshire District Council,11/12/2014,160136,371226896,5,605.97,Swalec,CR407130,Off Street Parking,Electricity,420
http://statistics.data.gov.uk/id/local-authority/12UE,Huntingdonshire District Council,20/11/2014,158144,73781946,5,267.29,Vodafone Limited,CR029120,Off Street Parking,Mobile Telephones & Radios,241
http://statistics.data.gov.uk/id/local-authority/12UE,Huntingdonshire District Council,27/11/2014,158150,534561,5,840.76,Ecocleen Services Limited,CR406985,Off Street Parking,Building Cleaning Internal,440
http://statistics.data.gov.uk/id/local-authority/12UE,Huntingdonshire District Council,27/11/2014,158151,534557,5,264,Ecocleen Services Limited,CR406985,Off Street Parking,Subcontractors,777
http://statistics.data.gov.uk/id/local-authority/12UE,Huntingdonshire District Council,23/10/2014,156449,533845,5,840.76,Ecocleen Services Limited,CR406985,Off Street Parking,Building Cleaning Internal,440
http://statistics.data.gov.uk/id/local-authority/12UE,Huntingdonshire District Council,18/12/2014,161067,99573,5,"3,446.22",Cale Briparc Ltd,CR401137,Off Street Parking,Car Park Machines,522
http://statistics.data.gov.uk/id/local-authority/12UE,Huntingdonshire District Council,27/11/2014,159324,98317,5,"3,446.22",Cale Briparc Ltd,CR401137,Off Street Parking,Car Park Machines,522
http://statistics.data.gov.uk/id/local-authority/12UE,Huntingdonshire District Council,16/10/2014,156474,97691,5,"3,385.31",Cale Briparc Ltd,CR401137,Off Street Parking,Equipment Purchases,500
http://statistics.data.gov.uk/id/local-authority/12UE,Huntingdonshire District Council,30/10/2014,157683,97601,5,"3,446.22",Cale Briparc Ltd,CR401137,Off Street Parking,Car Park Machines,522
http://statistics.data.gov.uk/id/local-authority/12UE,Huntingdonshire District Council,09/10/2014,156960,92919,5,"3,391.52",Cale Briparc Ltd,CR401137,Off Street Parking,Car Park Machines,522
http://statistics.data.gov.uk/id/local-authority/12UE,Huntingdonshire District Council,18/12/2014,160657,28723,5,"20,285.25",Cbre Richard Ellis Ltd,CR487227,Off Street Parking,Car Park Machines,522
http://statistics.data.gov.uk/id/local-authority/12UE,Huntingdonshire District Council,16/10/2014,156482,18884,5,417.79,B. S. Graves Electrical Ltd,CR000363,Off Street Parking,Sitework,359
http://statistics.data.gov.uk/id/local-authority/12UE,Huntingdonshire District Council,18/12/2014,160629,11926,5,"6,032.88",Jade Security Services Ltd,CR422256,Off Street Parking,Cash Collection,702
http://statistics.data.gov.uk/id/local-authority/12UE,Huntingdonshire District Council,27/11/2014,158923,11837,5,"6,491.16",Jade Security Services Ltd,CR422256,Off Street Parking,Cash Collection,702
http://statistics.data.gov.uk/id/local-authority/12UE,Huntingdonshire District Council,30/10/2014,158112,11799,5,"6,498.00",Jade Security Services Ltd,CR422256,Off Street Parking,Cash Collection,702
http://statistics.data.gov.uk/id/local-authority/12UE,Huntingdonshire District Council,16/10/2014,156024,4242,5,"1,656.00",Lattenbury Services,CR406847,Off Street Parking,Security,450
http://statistics.data.gov.uk/id/local-authority/12UE,Huntingdonshire District Council,18/12/2014,160485,4083,5,"1,761.79",Oastlodge Ltd,CR479114,Off Street Parking,Rent,410
http://statistics.data.gov.uk/id/local-authority/12UE,Huntingdonshire District Council,16/10/2014,156433,147725,5,758.11,Direct Access Supplies Ltd,CR455267,Oak Tree Health Centre R & R,Gen Building Mtce - Responsive,303
http://statistics.data.gov.uk/id/local-authority/12UE,Huntingdonshire District Council,04/12/2014,159712,26371/4663,5,741.91,J Breheny Contractors Ltd,CR000314,Oak Tree Health Centre,Sitework,359
http://statistics.data.gov.uk/id/local-authority/12UE,Huntingdonshire District Council,18/09/2014,570058,CIEH10388,5,270,Mr Toby Lewis,CR406609,Nuisances,Training - Operational,131
http://statistics.data.gov.uk/id/local-authority/12UE,Huntingdonshire District Council,02/10/2014,155188,14485,5,90,Campbell Associates,CR407137,Nuisances,Equipment Maintenance,511
http://statistics.data.gov.uk/id/local-authority/12UE,Huntingdonshire District Council,02/10/2014,155188,14485,5,306,Campbell Associates,CR407137,Nuisances,Equipment Maintenance,511
http://statistics.data.gov.uk/id/local-authority/12UE,Huntingdonshire District Council,18/12/2014,160919,16007405,5,"161,020.13",Cambridgeshire County Council,CR006678,Non Distribtd Redundancy Costs,Pension Early Retirements,151
http://statistics.data.gov.uk/id/local-authority/12UE,Huntingdonshire District Council,17/10/2014,570523,PO26533,5,"1,540.00",Hmcts,CR030090,N N D R Administration,Legal Fees,729
http://statistics.data.gov.uk/id/local-authority/12UE,Huntingdonshire District Council,17/10/2014,571196,PO26533,5,"-1,540.00",Hmcts,CR030090,N N D R Administration,Legal Fees,729
http://statistics.data.gov.uk/id/local-authority/12UE,Huntingdonshire District Council,27/11/2014,158601,232062,5,284.5,Jacobs,CR422350,N N D R Administration,Bailiffs,703
http://statistics.data.gov.uk/id/local-authority/12UE,Huntingdonshire District Council,30/10/2014,157850,91875,5,682.83,Newlyn Plc,CR409114,N N D R Administration,Bailiffs,703
http://statistics.data.gov.uk/id/local-authority/12UE,Huntingdonshire District Council,18/12/2014,159657,26364/4663,5,"4,361.94",J Breheny Contractors Ltd,CR000314,Mobile Homes Park Capital,Sitework,359
http://statistics.data.gov.uk/id/local-authority/12UE,Huntingdonshire District Council,04/09/2014,568717,INV007,4,"1,000.00",Rural Cambs Citzens Advice Bureau,CR455454,Miscellaneous Grants,Grants (Paid Out),800
http://statistics.data.gov.uk/id/local-authority/12UE,Huntingdonshire District Council,13/11/2014,572153,COM CHEST GRANT,4,"2,000.00",Hemingfords Regatta,CR422638,Miscellaneous Grants,Grants (Paid Out),800
http://statistics.data.gov.uk/id/local-authority/12UE,Huntingdonshire District Council,18/12/2014,161129,4TH QTR GRANT,4,"7,500.00",Hunts Shopmobility,CR429218,Miscellaneous Grants,Grants (Paid Out),800
http://statistics.data.gov.uk/id/local-authority/12UE,Huntingdonshire District Council,18/12/2014,160134,900687923,5,807.04,Portakabin Ltd,CR478566,Miscellaneous Grants,Grants (Paid Out),800
http://statistics.data.gov.uk/id/local-authority/12UE,Huntingdonshire District Council,18/12/2014,160130,900687922,5,850.2,Portakabin Ltd,CR478566,Miscellaneous Grants,Grants (Paid Out),800
http://statistics.data.gov.uk/id/local-authority/12UE,Huntingdonshire District Council,27/11/2014,158418,900684857,5,807.04,Portakabin Ltd,CR478566,Miscellaneous Grants,Grants (Paid Out),800
http://statistics.data.gov.uk/id/local-authority/12UE,Huntingdonshire District Council,27/11/2014,158419,900684856,5,850.2,Portakabin Ltd,CR478566,Miscellaneous Grants,Grants (Paid Out),800
http://statistics.data.gov.uk/id/local-authority/12UE,Huntingdonshire District Council,30/10/2014,156458,900681806,5,807.04,Portakabin Ltd,CR478566,Miscellaneous Grants,Grants (Paid Out),800
http://statistics.data.gov.uk/id/local-authority/12UE,Huntingdonshire District Council,30/10/2014,156459,900681805,5,850.2,Portakabin Ltd,CR478566,Miscellaneous Grants,Grants (Paid Out),800
http://statistics.data.gov.uk/id/local-authority/12UE,Huntingdonshire District Council,16/10/2014,156129,900680574,5,475.72,Portakabin Ltd,CR478566,Miscellaneous Grants,Grants (Paid Out),800
http://statistics.data.gov.uk/id/local-authority/12UE,Huntingdonshire District Council,30/10/2014,570132,,4,"26,328.88",Rural Cambs Citzens Advice Bureau,CR455454,Miscellaneous Grants,Grants (Paid Out),800
http://statistics.data.gov.uk/id/local-authority/12UE,Huntingdonshire District Council,30/10/2014,155840,,4,"9,250.00",Huntingdonshire  Volunteer Centre,CR410643,Miscellaneous Grants,Grants (Paid Out),800
http://statistics.data.gov.uk/id/local-authority/12UE,Huntingdonshire District Council,30/10/2014,155838,,4,"7,500.00",Hunts Shopmobility,CR429218,Miscellaneous Grants,Grants (Paid Out),800
http://statistics.data.gov.uk/id/local-authority/12UE,Huntingdonshire District Council,30/10/2014,155843,,5,"4,750.00",Disability Information Service Huntingdonshir,CR408884,Miscellaneous Grants,Grants (Paid Out),800
http://statistics.data.gov.uk/id/local-authority/12UE,Huntingdonshire District Council,30/10/2014,155841,,5,"2,500.00",Care Network,CR477579,Miscellaneous Grants,Grants (Paid Out),800
http://statistics.data.gov.uk/id/local-authority/12UE,Huntingdonshire District Council,09/10/2014,570742,,4,"2,300.00",Spotlight Productions,CR422574,Miscellaneous Grants,Grants (Paid Out),800
http://statistics.data.gov.uk/id/local-authority/12UE,Huntingdonshire District Council,09/10/2014,570741,,4,600,St Neots Vamps,CR422573,Miscellaneous Grants,Grants (Paid Out),800
http://statistics.data.gov.uk/id/local-authority/12UE,Huntingdonshire District Council,23/10/2014,157864,PO26539,5,465,Information Commissioner,CR404972,Member Allowances & Support,Registration Fee,748
http://statistics.data.gov.uk/id/local-authority/12UE,Huntingdonshire District Council,04/12/2014,159054,742878104/1114,5,6.9,Virgin Media Business,CR033120,Member Allowances & Support,I T Line Rental,248
http://statistics.data.gov.uk/id/local-authority/12UE,Huntingdonshire District Council,02/10/2014,155453,742878104/0914,5,6.9,Virgin Media Business,CR033120,Member Allowances & Support,I T Line Rental,248
http://statistics.data.gov.uk/id/local-authority/12UE,Huntingdonshire District Council,30/10/2014,157038,7.42878E+11,5,6.9,Virgin Media Business,CR033120,Member Allowances & Support,I T Line Rental,248
http://statistics.data.gov.uk/id/local-authority/12UE,Huntingdonshire District Council,18/12/2014,160692,74287104001,5,6.9,Virgin Media Business,CR033120,Member Allowances & Support,I T Line Rental,248
http://statistics.data.gov.uk/id/local-authority/12UE,Huntingdonshire District Council,11/12/2014,159847,1147229796,5,31.2,Orange Airtime,CR455799,Member Allowances & Support,Mobile Telephones & Radios,241
http://statistics.data.gov.uk/id/local-authority/12UE,Huntingdonshire District Council,13/11/2014,157821,1138945952,5,33.6,Orange Airtime,CR455799,Member Allowances & Support,Mobile Telephones & Radios,241
http://statistics.data.gov.uk/id/local-authority/12UE,Huntingdonshire District Council,16/10/2014,156170,1130284308,5,33.6,Orange Airtime,CR455799,Member Allowances & Support,Mobile Telephones & Radios,241
http://statistics.data.gov.uk/id/local-authority/12UE,Huntingdonshire District Council,08/12/2014,160512,5072,5,"1,137.00",Brice Catering Ltd,CR135386,Member Allowances & Support,Catering,710
http://statistics.data.gov.uk/id/local-authority/12UE,Huntingdonshire District Council,27/11/2014,159386,1830,7,528,Tim George,CR415398,Member Allowances & Support,Other Office Expenses,295
http://statistics.data.gov.uk/id/local-authority/12UE,Huntingdonshire District Council,25/09/2014,569851,18818,5,388.5,B. S. Graves Electrical Ltd,CR000363,Markets,Sitework,359
http://statistics.data.gov.uk/id/local-authority/12UE,Huntingdonshire District Council,16/10/2014,156391,8095/B,5,640.21,Lightning Recruitment,CR028184,Managing Directors,Hired Staff,100
http://statistics.data.gov.uk/id/local-authority/12UE,Huntingdonshire District Council,20/11/2014,158144,73781946,5,5.88,Vodafone Limited,CR029120,Managing Directors,Mobile Telephones & Radios,241
http://statistics.data.gov.uk/id/local-authority/12UE,Huntingdonshire District Council,20/11/2014,159432,8695,5,810.59,Lightning Recruitment,CR028184,Managing Directors,Hired Staff,100
http://statistics.data.gov.uk/id/local-authority/12UE,Huntingdonshire District Council,11/12/2014,158880,8631,5,795.11,Lightning Recruitment,CR028184,Managing Directors,Hired Staff,100
http://statistics.data.gov.uk/id/local-authority/12UE,Huntingdonshire District Council,27/11/2014,158625,8568,5,629.89,Lightning Recruitment,CR028184,Managing Directors,Hired Staff,100
http://statistics.data.gov.uk/id/local-authority/12UE,Huntingdonshire District Council,30/10/2014,158135,8506,5,774.46,Lightning Recruitment,CR028184,Managing Directors,Hired Staff,100
http://statistics.data.gov.uk/id/local-authority/12UE,Huntingdonshire District Council,23/10/2014,157857,8450,5,795.11,Lightning Recruitment,CR028184,Managing Directors,Hired Staff,100
http://statistics.data.gov.uk/id/local-authority/12UE,Huntingdonshire District Council,16/10/2014,157406,8391,5,583.42,Lightning Recruitment,CR028184,Managing Directors,Hired Staff,100
http://statistics.data.gov.uk/id/local-authority/12UE,Huntingdonshire District Council,16/10/2014,157070,8328,5,784.78,Lightning Recruitment,CR028184,Managing Directors,Hired Staff,100
http://statistics.data.gov.uk/id/local-authority/12UE,Huntingdonshire District Council,23/10/2014,156792,8265,5,795.11,Lightning Recruitment,CR028184,Managing Directors,Hired Staff,100
http://statistics.data.gov.uk/id/local-authority/12UE,Huntingdonshire District Council,16/10/2014,156392,8207,5,784.78,Lightning Recruitment,CR028184,Managing Directors,Hired Staff,100
http://statistics.data.gov.uk/id/local-authority/12UE,Huntingdonshire District Council,16/10/2014,156393,8150,5,795.11,Lightning Recruitment,CR028184,Managing Directors,Hired Staff,100
http://statistics.data.gov.uk/id/local-authority/12UE,Huntingdonshire District Council,23/10/2014,157596,LOCAL PLAN WORK,5,"1,776.00",Michael Jenner,CR422545,Local Development Framework,Consultants,711
http://statistics.data.gov.uk/id/local-authority/12UE,Huntingdonshire District Council,27/11/2014,159050,LOCAL PLAN WORK,5,370,Michael Jenner,CR422545,Local Development Framework,Consultants,711
http://statistics.data.gov.uk/id/local-authority/12UE,Huntingdonshire District Council,20/11/2014,157754,CONS LOCAL PLAN,5,740,Michael Jenner,CR422545,Local Development Framework,Consultants,711
http://statistics.data.gov.uk/id/local-authority/12UE,Huntingdonshire District Council,18/12/2014,160920,1111125243,5,"25,685.78",Deloitte Llp,CR400573,Local Development Framework,Consultants,711
http://statistics.data.gov.uk/id/local-authority/12UE,Huntingdonshire District Council,11/09/2014,569600,10548801,5,"7,670.00",Cambridgeshire County Council,CR006678,Local Development Framework,Consultants,711
http://statistics.data.gov.uk/id/local-authority/12UE,Huntingdonshire District Council,23/10/2014,157278,6019173,5,"3,000.00",Urs Infrastructure & Environment Uk Ltd,CR032963,Local Development Framework,Consultants,711
http://statistics.data.gov.uk/id/local-authority/12UE,Huntingdonshire District Council,13/11/2014,158208,T24563,5,878.4,Mogo Uk,CR410378,Licences,Licence Plates,564
http://statistics.data.gov.uk/id/local-authority/12UE,Huntingdonshire District Council,13/11/2014,158208,T24563,5,17.88,Mogo Uk,CR410378,Licences,Postage,231
http://statistics.data.gov.uk/id/local-authority/12UE,Huntingdonshire District Council,11/12/2014,159847,1147229796,5,7.2,Orange Airtime,CR455799,Licences,Mobile Telephones & Radios,241
http://statistics.data.gov.uk/id/local-authority/12UE,Huntingdonshire District Council,13/11/2014,157821,1138945952,5,4.8,Orange Airtime,CR455799,Licences,Mobile Telephones & Radios,241
http://statistics.data.gov.uk/id/local-authority/12UE,Huntingdonshire District Council,16/10/2014,156170,1130284308,5,4.8,Orange Airtime,CR455799,Licences,Mobile Telephones & Radios,241
http://statistics.data.gov.uk/id/local-authority/12UE,Huntingdonshire District Council,18/12/2014,160239,122046,5,"2,181.70",T C Harrison Ford,CR405072,Licences,Vehicle Inspection,618
http://statistics.data.gov.uk/id/local-authority/12UE,Huntingdonshire District Council,27/11/2014,158635,122045,5,"1,708.50",T C Harrison Ford,CR405072,Licences,Vehicle Inspection,618
http://statistics.data.gov.uk/id/local-authority/12UE,Huntingdonshire District Council,30/10/2014,157365,92014,5,"2,327.85",T C Harrison Ford,CR405072,Licences,Vehicle Inspection,618
http://statistics.data.gov.uk/id/local-authority/12UE,Huntingdonshire District Council,27/11/2014,159058,533,5,293,Mo'S Motors,CR406493,Licences,Vehicle Inspection,618
http://statistics.data.gov.uk/id/local-authority/12UE,Huntingdonshire District Council,30/10/2014,157364,517,5,410.2,Mo'S Motors,CR406493,Licences,Vehicle Inspection,618
http://statistics.data.gov.uk/id/local-authority/12UE,Huntingdonshire District Council,09/10/2014,157040,2099,5,"7,910.40",Cycling Projects,CR455898,Leisure Services Capital,Equipment Purchases,500
http://statistics.data.gov.uk/id/local-authority/12UE,Huntingdonshire District Council,11/12/2014,159847,1147229796,5,36,Orange Airtime,CR455799,Leisure Development,Mobile Telephones & Radios,241
http://statistics.data.gov.uk/id/local-authority/12UE,Huntingdonshire District Council,13/11/2014,157821,1138945952,5,36.16,Orange Airtime,CR455799,Leisure Development,Mobile Telephones & Radios,241
http://statistics.data.gov.uk/id/local-authority/12UE,Huntingdonshire District Council,16/10/2014,156170,1130284308,5,40.32,Orange Airtime,CR455799,Leisure Development,Mobile Telephones & Radios,241
http://statistics.data.gov.uk/id/local-authority/12UE,Huntingdonshire District Council,04/12/2014,160261,19042,5,85.02,Thomas Sports,CR411308,Leisure Development,Equipment Purchases,500
http://statistics.data.gov.uk/id/local-authority/12UE,Huntingdonshire District Council,04/12/2014,160261,19042,5,352.37,Thomas Sports,CR411308,Leisure Development,Sports Equipment,524
http://statistics.data.gov.uk/id/local-authority/12UE,Huntingdonshire District Council,27/11/2014,159671,3863,5,492,Later Life Training Ltd,CR452146,Leisure Development,Training - Operational,131
http://statistics.data.gov.uk/id/local-authority/12UE,Huntingdonshire District Council,11/09/2014,569829,123,5,165,Abbotsley Golf & Squash Club Limited,CR170095,Leisure Development,Hire Of Rooms,411
